{"text_format":"1","workbook":"xlsx","n_sheets":2,"sheets":["Importation","Extraction"],"not_rendered":{"charts":0,"images":4,"macros":0,"external_links":1,"defined_names":0,"comments":0,"pivot_tables":0},"unopened":[],"bounds":{"document_bytes":16777216,"sheet_cells":100000,"rows_first":2000,"rows_last":500,"rows_between":2000,"halvings":0,"cell_chars":16384,"cell_head_chars":4096},"cells_cut":0,"cells_raw":0,"read":"whole","date_system":"1900"}

{"sheet":"Importation","index":0,"n_rows":273,"n_cols":14,"rows_kept":273,"cut":false,"hidden":false,"merged":[]}
[]
[null,"Id","Nom","Activité","Dép.","Ville","Description","Miniature","Adresse","Référence","Repère"]
[null,364,"MAISON PIC - Relais et Chateaux Pic","Restaurant","26-Drome","Valence","En 1891, Sophie Sahy, épouse Pic, prenait en main les destinées du café de campagne du Pin. Après plusieurs années aux commandes, elle enseigna à son fils, André ses secrets de simplicité et de terroir. Le talent d'André faisait merveille. Son gratin d’écrevisses est immortel. Trois étoiles Michelin le distingaient déjà en 1934. En 1936 André installait Pic à Valence. Jacques Pic, né en 1932, entrait à son tour en scène avec le même bonheur. Aujourd'hui après Alain, c’est la fille de Jacques Pic, Anne-sophie, qui est à la tête de la célèbre brigade. Son mari, David Sinapian, dirige l'hôtel et veille sur la cave. Anne-Sophie nous a fait l'honneur de répondre à nos questions. Elle nous parle d'émotions.-<FONT size=+0>~D'une part, le goût appelle l'émotion. C'<FONT size=+0>est très affectif. C'est ancré dans le passé, ça fait appel aux souvenirs. Par exemple, le goût d'une bonne purée de pommes de terres évoque toute une époque, une ambiance, et fait surgir l'émotion. A mes débuts, en cuisine, je faisais référence aux produits que j'avais aimés étant enfant. Je recherchais les goûts et les émotions liées à la découverte. Lorsqu'on est enfant, on découvre sans cesse de nouveaux goûts. Avec l'âge, les émotions liées à la découverte sont plus rares, forcément. Alors lorsque l'on mange quelque de chose de bon, qui est à son goût, c'est beaucoup d'émotion. Dès lors, il ne faut pas s'étonner que certaines personnes qui ont apprécié la cuisine d'un chef à l'occasion d'un repas dans un restaurant soient capables de se rappeler longtemps après ce qu’elles ont mangé et ce qu'elles ont ressenti à l'instant de le goûter. Et puis d'autre part, le goût c'est aussi le bon assaisonnement. Même un très bon produit peut être fade s'il n'est pas bien révélé par l'assaisonnement. C'est le côté technique du goût. La technique pour créer l'émotion. C'est ce que je ressens en tant que Chef.~-MAISON PIC-285, Avenue Victor Hugo-26000 Valence-",null,null,{"$f":"SUBSTITUTE(LOWER(LEFT(C3,20) & \";\" & LEFT(E3,2) & \";\" & IFERROR(LEFT(D3,SEARCH(\" \",D3)-1),D3) & \";\" & IFERROR(LEFT(F3,SEARCH(\" \",F3)-1),F3)),\"/\",\"-\")","v":"maison pic - relais ;26;restaurant;valence"},null,null,null,{"$f":"\"Importation!\"&ADDRESS(ROW(M3),COLUMN(M3))","v":"Importation!$M$3"}]
[null,365,"VILLA AUGUSTA","Hôtel/Restaurant","26-Drome","Saint paul trois chateaux"," -L'hôtel - Les Chambres-Ici l'ancien et le moderne se marient, se conjuguent et s'harmonisent. Quelle chambre choisir ? Chacune à sa façon rend hommage avec délice au culte du sommeil. Ici règne la courbe, l'exubérance joyeuse. J'aime l'harmonie confortable et le charme unique de ces lieux. Rouge violet, rouge fruité, pourpre, grenat, se mêlent d'ocres safranés et de turquoises. Mon coeur est en fête devant cette symphonie audacieuse de couleurs. L'ancienne maison de Maître a su conserver son authenticité, ici les chambres sont tantôt romantiques aux couleurs du sud, les meubles dénichés pour certains chez notre brocanteur. La Chambre d'Augusta au sud, dans les tons de bleu et vert, romantique. Des tissus de velours lisses ornés de fleurs. Dans la salle de bain, les cabochons dorés agrémentent les carreaux pâte de verre.--   -L'équipement des chambres :-Télévision LCD, connection ADSL, coffre, climatisation.-L'hôtel - La piscine-Une piscine de 12 m x 6 m, sur sa plage ses transats comme un appel au repos, son bar pour vous offrir des rafraîchissements tout au long de votre journée.-Une ambiance musicale légère.--Nos tarifs : <A href=~mailto:contact@villaaugusta.fr~ target=_blank>contact@villaaugusta.fr-Réservation : <A href=~mailto:contact@villaaugusta.fr~>contact@villaaugusta.fr-",null,null,{"$f":"SUBSTITUTE(LOWER(LEFT(C4,20) & \";\" & LEFT(E4,2) & \";\" & IFERROR(LEFT(D4,SEARCH(\" \",D4)-1),D4) & \";\" & IFERROR(LEFT(F4,SEARCH(\" \",F4)-1),F4)),\"/\",\"-\")","v":"villa augusta;26;hôtel-restaurant;saint"}]
[null,367,"LA CHAUMETTE","Hôtel","07-Ardèche","Privas","Ambiance ! Bar intime, musique de fond, soirée dansantes, jeux pour les enfants, déjeuners au bord de la piscine. Nuit ! Calme et confort.-LES CHAMBRES-Toutes personnalisées et climatisées, elles sont joliment décorées dans des teintes vives ou pastel. Salle de bains, téléphone direct, télévision (Canal+ et TPS, avec des bouquets variés), minibar.-LES SERVICES-Coffre, fax, minitel, presse, room-service.-ET AUSSI-Salle de jeux pour enfants, salle de billard-",null,null,"la chaumette;07;hôtel;privas"]
[null,371,"Domaine du Colombier","Hôtel/Restaurant","26-Drome","Malataverne","Hôtel *** -Ancienne bastide du XIV siècle, servant de relais pour les pèlerins, admirablement restaurée, au milieu d'un parc fleuri de 4 hectares aux arbres plusieurs fois centenaires. Hotel 3 étoiles de 25 chambres climatisées, et restaurant gastronomique. Ouvert tous les jours de l'année. Parking privé et garage fermé. Possibilités de séminaires (contacter la direction).--Le Domaine du Colombier vous propose une sélection d'articles pour décorer votre table du plus bel effet, tels que vaisselle, lampes, bougies, ainsi que des produits régionaux de qualité, comme le nougat, l'huile d'olive, etc...-Domaine du Colombier-Route de Donzère-26780 Malataverne-",null,null,"domaine du colombier;26;hôtel-restaurant;malataverne"]
[null,372,"Domaine de la Valdaine","Hôtel/Restaurant","26-Drome","Montboucher sur jabron","Un domaine aux parfums de Provence-En plein coeur de la Drôme provençale, à 5km de Montélimar, le Domaine de la Valdaine conjugue idéalement hébergement de charme, sport et nature pour une escapade au vert ou une halte agréable sur la route des vacances.-Une histoire ~vue du ciel~-Aux portes de la Provence, cette demeure conserve les restes d'un petit château du 14ème siécle, le Chateau du Monard. Ce dernier devint vers 1780, la demeure du Marquis d'Arlande, premier navigateur aérien français. En effet, il effectua avec le physicien Pilâtre de Rozier la première ascension à bord du ballon conçu par les frères Mongolfier. Le Marquis d'Arlande eut ensuite l'idée d'utiliser la montgolfière pour le transport du courrier.- -",null,null,"domaine de la valdai;26;hôtel-restaurant;montboucher"]
[null,373,"Golf d'Albon","Golf","26-Drome","Albon","Golf d'Albon-Senaud -Situé entre Valence et Lyon dans un cadre magnifique de 120 hectares, entre vignes et forêts, le golf d'Albon qui jouit d'un climat exceptionnel comprend : Un parcours 18 trous, 'Les Seigneurs' un parcours de 9 trous, 'Les Poètes' un putting-green, et un practice. - -Le restaurant gastronomique du golf d’Albon - Champagolf.-Menu spécial golfeur, menus gastronomiques, cartes, spécialité, poissons... Repas d’affaires, séminaires 10 à 150 personnes, service en terrasse dominant le golf.-Bar salons, billard, salle de télévision, piscine, jeux d’enfants.--Réservation: 04 75 03 18 76 ou 04 75 03 03 90.-Ouvert tous les jours, sauf dimanche soir. -Restaurant ouvert aux non-membres du golf.-",null,null,"golf d'albon;26;golf;albon"]
[null,374,"Walibi","parc d'attraction","38-Isère","Les avenieres ","Walibi, Un jour à sauter de joie.-Au coeur du Dauphiné, le parc Walibi entraîne petits et grands, fonceurs et curieux à vivre mille et une sensations.---Emotions et sensations garanties--Ecrin verdoyant de 35 hectares, Walibi Rhône-Alpes propose à ses visiteurs une escapade en trois temps tantôt au pays de la modernité la plus performante qui soit avec des montagnes russses aux virages serrés, tantôt pour une plongée en apnée dans l'éclaboussant Aqualibi ou encore pour une extraordinaire découverte de spectacles à vous couper le souffle.--Des moments inoubliables pour toute la famille. -",null,null,"walibi;38;parc;les"]
[null,375,"SAFARI DE PEAUGRES","Parc animalier","07-Ardèche","Peaugres","Le Safari Parc de Peaugres-En Swahili, SAFARI signifie voyage, ou expédition, venez effectuer un fantastique tour du monde à la découverte de la faune sauvage.-Situé au coeur de l'Ardèche verte. Il s'étend sur plus de 80 hectares répartis en deux parcs. Une partie se visite en voiture et la seconde à pied. Il faut compter un minimum d'une demie journée pour profiter pleinement de votre visite. Plus de 800 animaux se partagent ce territoire et les 120 espèces représentées sauront vous faire partager des moments intenses en émotion. Le Parc voiture, à faire avec votre véhicule. Le parcours durera environ 3/4 d'heure. Le Safari de Peaugres héberge environ 800 animaux, dont 170 au parc voiture.--Le Parc à pied, il vous faudra au moins 2h à 2h30 pour en faire le tour et vous y trouverez différents points de restaurations et des boutiques.-",null,null,"safari de peaugres;07;parc;peaugres"]
[null,402,"Thermes de Neyrac-les-bains","Thermes","07-Ardèche","Meyras","-ESCAPADES BIEN ETRE AU NATURAL SPA***-Découvrez également le charme du Natural Spa***, et prolongez votre séjour avec une ou plusieurs nuits dans  notre nouvelle résidence.-24 studios  équipés d'une kitchenette, téléphone, TV, avec accès  direct au centre de Remise en  Forme.-LES THERMES DE NEYRAC-07380 Neyrac les bains-",null,null,"thermes de neyrac-le;07;thermes;meyras"]
[null,404,"Hôtel de France","Hôtel","26-Drome","Valence","Hôtel de France **-Corinne et François-Xavier Prouteau ont le plaisir de vous recevoir à l'Hôtel de France et de vous faire partager leur région.--L'hôtel est ouvert toute l'année, 24h sur 24. Un veilleur de nuit vous accueille quelle que soit votre heure d'arrivée.--Une fois votre voiture en sécurité dans le garage privé, vous vous rendez, à pied, dans les meilleurs restaurants de Valence, les boutiques des beaux quartiers, les musées ou bien encore les théâtres, ou cinémas.--Offrant des chambres pouvant accueillir de 1 à 4 personnes, elles sont toutes insonorisées, climatisées et équipées d'une connection Wifi illimitée. -Les tarifs : http://www.hotel-valence.com/fr/tarifs/index.html -",null,null,"hôtel de france;26;hôtel;valence"]
[null,407,"Thermes de Vals les Bains","Thermes","07-Ardèche","Vals les bains","Offrez vous une parenthèse de Bien-être ...---Le forfait Choco-Passion  avec 1 bain parfumé à la noix de coco,  1 cocon d'enveloppement anti-stress au chocolat, 1 gommage exotique, 1 modelage à la bougie parfumée chocolat, accès Hammam &amp; Spa.-Le forfait Délice d'Ardèche, avec 1 gommage au sucre &amp; miel, 1 bain à la lavande,1 modelage californien à la crème de châtaigne, 1 enveloppement gourmand à la châtaigne, accès Hammam &amp; Spa.-Le forfait Bio Nature, avec 1 gommage aux sels et huile de lavandin bio, 1 douche au jet, 1 modelage californien au beurre de karité bio, 1 soin du visage bio (30 min), accès Hammam &amp; Spa-A consommer sans modération...-",null,null,"thermes de vals les ;07;thermes;vals"]
[null,411,"CEGEP","Vacances","26-Drome","Valence","Valence - Hôtel L'Epervière-La Drôme est une véritable palette de couleurs, du vert du Vercors au violet de la Provence, elle offre des nuances toutes plus belles les unes que les autres.--Hotel L'Epervière vous attend à Valence pour vous permettre de découvrir la région ou tout simplement de faire une étape sur la route des vacances.--Votre hébergement - Hôtel **-50 chambres avec sanitaire privé, téléphone et télévision,Formule Class'Eco : 18 chambres de 4 à 6 lits avec lavabo dans la chambre, WC et douche communs.Votre hébergement - Camping ***-150 emplacements (borne de vidange pour auto-caravanes).-Tarifs Printemps, été, automne. -Tarifs Hiver. -Votre restauration-Notre restaurant ~Les Berges du Rhône~ vous propose une formule plat du jour ou à la carte. -L'été, un snack vous accueille en plein air..-Complice de vos loisirs-GRATUIT SUR PLACE :-Terrain de volley, tennis de table, mini-golf, piscine de plein air. --ÉGALEMENT À PROXIMITÉ :-Vous aurez l'occasion de faire une partie de bowling ou de tennis aux abords de l'hôtel.-Découverte de la région-Pour les amateurs de découverte, vous pourrez partir au pays du Diois déguster la clairette de Die, vous évader dans les gorges de l'Ardèche, profitez de l'immensité du parc du Vercors pour vous ressourcer ou visitez Grignan et son célèbre château.--Les plus curieux pourront éveiller leur sens en goûtant aux produits du terroir : -la pogne de Romans, les Ravioles du Royans, le fromage de Saint Marcellin. Le pays aux mille saveurs et senteurs vous attend... -CEGEP-Chemin de l'Epervière-26000 Valence-",null,null,"cegep;26;vacances;valence"]
[null,420,"Les châteaux de la drôme","Visite/Loisir","26-Drome","Valence","Les châteaux de la Drôme-Château de Grignan-Le plus grand château Renaissance du Sud-Est de la France, rendu célèbre par les correspondances de la Marquise de Sévigné. Fêtes nocturnes en été, concerts classiques au printemps, concerts jazz à l'automne.-Visite guidée ou libre des intérieurs, visite thématique, visites groupe jeune public et adultes sur rendez-vous.-26230 GRIGNAN - Tél : 04 75 91 83 55Château des Adhémar à Montélimar - Centre d'art contemporain-Un des plus importants exemples d'architecture médiévale de la moyenne vallée du Rhône. Expositions d'art contemporain.-Visite libre du site et des expositions, visite groupes sur rendez-vous, audioguide gratuit..-26200 MONTELIMAR - Tél : 04 75 00 62 30Château de Suze la Rousse-Forteresse bâtie par les Princes d'Orange. Cour d'honneur Renaissance. Expositions de photographies. Le Château abrite l'Université du Vin. Au pied du château, se trouve le Jardin des Vignes, une collection ampélographique de 70 cépages différents, français et étrangers.-Visite guidée ou libre des intérieurs et des expositions, visite thématique, visite groupes sur rendez-vous.-26790 SUZE-LA-ROUSSE - Tél : 04 75 04 81 44Horaires : les 3 châteaux sont ouverts tous les jours de 9h30 à 12h et de 14h à 18h.-Fermeture :le mardi du 1er novembre au 31 mars, le 1er janvier et le 25 décembre.-Réservations pour les groupes jeune public et adultes au 04 75 91 83 64 du lundi au vendredi de 9h30 à 12h30 ; ou à l'adresse mail suivante : resa-visite-chateaux a ladrome.fr-Programmation culturelle des 3 châteaux sur http://chateaux.ladrome.fr-Les Châteaux de la Drôme - BP 21 - 26230 GRIGNAN - chateau-grignan a ladrome.fr / Etablissement rattaché au Conseil Général de la Drôme-",null,null,"les châteaux de la d;26;visite-loisir;valence"]
[null,422,"L'OLIVERAIE","Hôtel/Restaurant","26-Drome","Valence","L'Oliveraie - Le restaurant-Envie de plonger avec délice dans les plus fins trésors des recettes du sud de la France ? L'Oliveraie a le goût de vous proposer une cuisine traditionnelle, aussi variée que raffinée, le midi comme le soir. Cuisiner le sud était une envie, c'est devenu notre passion. Alors, n'hésitez pas à venir découvrir des saveurs et des senteurs telles que le pistou, le thym, le romarin, l'anis, la canelle...qui accompagnent nos viandes et nos poissons, nos fruits et nos légumes.  Nous vous recevons tous les jours (sauf le dimanche soir) et nous sommes heureux de vous accueillir sur notre terrasse à la belle saison. --Une cuisine au rythme des saisons Vous rêvez d'une cuisine inventive, fine et conviviale à la fois ? L'Oliveraie vous présente une nouvelle carte à chaque changement de saison qui met en valeur les produits du moment. Nos formules, simples et attractives, vous permettent de choisir parmi les plats de notre carte selon vos goûts et vos envies.-",null,null,"l'oliveraie;26;hôtel-restaurant;valence"]
[null,423,"Ardèche Montgolfières","Loisir/Sport","07-Ardèche","Annonay","Embarquez à bord de nos nacelles !-Les montgolfières qui glissent dans le ciel vous font rêver, embarquez à bord de nos nacelles, offrez-vous un moment de vie intense et de souvenirs inoubliables. Vous découvrirez du ciel, Annonay, cité des inventeurs, patrie des frères Montgolfier, et la coquette campagne ardéchoise.--Après l'étonnement et l'enthousiasme du vol, vous apprécierez l'accueil chaleureux et convivial de l'équipage.-Nos baptêmes de l'air sont aussi un cadeau original : une surprise pour vos amis, parents, collègues ; un bon-cadeau à offrir pour les fêtes, anniversaires, mariages, départs en retraite, etc. -Programme : -Accueil à notre base,Conduite jusqu'au lieu de décollage,Préparatifs du vol,Le vol (durée une heure minimum suivant Météo),Dégonflement et pliage du ballon,Retour effectué en véhicule 4x4,Casse-croûte Ardéchois (matins seulement),Remise d'un document retraçant l'historique,Et d'un certificat d'ascension,Traditionnel baptême au champagne,Assurance professionnelle de transports aériens,Pour vous assurez un vol agréable et en toute sécurité, nous volons par temps propice excluant pluie et grands vents. -",null,null,"ardèche montgolfière;07;loisir-sport;annonay"]
[null,425,"Le bateau à roue","Visite/Loisir","26-Drome","St nazaire en royans","Le bateau à roue-Notre compagnie, forte de 18 ans de navigation sur l'Isère, vous invite à découvrir tous les aspects méconnus de cette rivière venue des Alpes.--Entre le Massif du Vercors et les douces collines du pays de Saint-Marcellin, elle offre l'aspect tranquille d'un vaste lac.--Marécages et roselières sont le lien entre la terre et l'eau. Peuplés d'oiseaux aquatiques, ces grands espaces de roseaux et de saules blancs constituent une des principales zones ornithologiques de la région Rhône-Alpes.--Silencieux, notre bateau s'y glisse pour se fondre harmonieusement dans un somptueux décor naturel. Notre croisière, commentée en direct vous permet de découvrir tous les points forts qui jalonnent le parcours: faune, flore, architecture, évocation de la navigation d'antan.--Le capitaine et l'équipage sont heureux de vous accueillir à bord pour vous offrir ces instants de plaisir.-Le jardin des fontaines pétrifiantes- Flaneries florales dans un jardin extraordinaire... --Dans ce paradis aux milles sources, vous êtes attendus pour un véritable tour du monde botanique. Plantes rares d'Asie, d'Afrique, d'Amérique, d'Australie... acclimatées dans un somptueux décor de bassins et de cascades. --Le long des allées, venez flâner parmi les Hibiscus, le Ginkgo Biloba... bercé par le ruissellement des eaux dans un milieu calme et serein.--Détente et dépaysement.--Harmonie des couleurs et des senteurs.  -",null,null,"le bateau à roue;26;visite-loisir;st"]
[null,426,"Le jardin des fontaines pétrifiantes","Visite/Loisir","38-Isère","La sone","Le jardin des fontaines pétrifiantes-Flaneries florales dans un jardin extraordinaire... --Dans ce paradis aux milles sources, vous êtes attendus pour un véritable tour du monde botanique. Plantes rares d'Asie, d'Afrique, d'Amérique, d'Australie... acclimatées dans un somptueux décor de bassins et de cascades.  --Le long des allées, venez flâner parmi les Hibiscus, le Ginkgo Biloba... bercé par le ruissellement des eaux dans un milieu calme et serein.--Détente et dépaysement.--Harmonie des couleurs et des senteurs. -www.jardin-des-fontaines.com --Le bateau à roue-Notre compagnie, forte de 18 ans de navigation sur l'Isère, vous invite à découvrir tous les aspects méconnus de cette rivière venue des Alpes.--Entre le Massif du Vercors et les douces collines du pays de Saint-Marcellin, elle offre l'aspect tranquille d'un vaste lac.-- Marécages et roselières sont le lien entre la terre et l'eau. Peuplés d'oiseaux aquatiques, ces grands espaces de roseaux et de saules blancs constituent une des principales zones ornithologiques de la région Rhône-Alpes.--Silencieux, notre bateau s'y glisse pour se fondre harmonieusement dans un somptueux décor naturel. Notre croisière, commentée en direct vous permet de découvrir tous les points forts qui jalonnent le parcours: faune, flore, architecture, évocation de la navigation d'antan.--Le capitaine et l'équipage sont heureux de vous accueillir à bord pour vous offrir ces instants de plaisir.-www.bateau-a-roue.com -<A href=~mailto:bateau-a-roue@wanadoo.fr~>bateau-a-roue@wanadoo.fr-La Grotte Préhistorique de Thaïs-Rendez-vous avec les derniers grands chasseurs de la Préhistoire---",null,null,"le jardin des fontai;38;visite-loisir;la"]
[null,427,"La Grotte Préhistorique de Thaïs","Visite/Loisir","26-Drome","St nazaire en royans","La Grotte Préhistorique de Thaïs-Rendez-vous avec les derniers grands chasseurs de la Préhistoire--A la fin du dernier âge glaciaire, dans un paysage de steppe froide où vivent les rennes, les ours, les loups et les perdrix des neiges, des groupes humains s’installent.--C’est le pays des roches rouges, le pays des deux rivières, au pied du grand massif.  Dans la grotte, rouge et noire, ou dehors près de l’eau on dresse le camp et les activités s’organisent : chasse, cuisine, taille du silex, travail des peaux...-",null,null,"la grotte préhistori;26;visite-loisir;st"]
[null,428,"Aqueduc de St Nazaire","Visite/Loisir","26-Drome","St nazaire en royans","Aqueduc, la vue est belle-A l'entrée du village, l'Aqueduc, construit en 1876 vous accueille du haut de ses 35 mètres.-Au bord du lac, un musée archive à entrée libre en retrace l'historique. un ascenseur panoramique permet d'accéder au canal aménagé en voie piétonne.--Visite de l'Aqueduc  --Dépliant : GUIDE DE LA VISITE disponible à l'entrée.--~Les Fantômes de l'aqueduc~ 2ème saison :-Promenade-Spectacle sur l'aqueduc et dans les rues anciennes du village :-du 14 juillet au 20 août 2006-tous les jours sf lundi (voir)--Manifestations 2006: Le mot du Maire :-Des animations riches, variées, s'adressant à tous les publics : voilà une volonté forte de la Municipalité Nazairoise...... la suite -St Nazaire En Royans - Drôme -Les Fantômes de l'Aqueduc - Saison II - version 2006-Une Balade - Spectacle dans laquelle vous emmènent deux personnages :-un Guide assermenté 11ème échelon et un Revenant des temps anciens.--Histoire avec un grand H de Saint Nazaire et sa région, mais aussi ses petites histoires,ses légendes, de la construction du canal de la Bourne aux guerres de religions en passant par la légende de la raviole ou les origines du Royans...-Par la Compagnie AGORA avec Jean-Louis Debard et Juan Antonio Martinez.--De la mi-juillet à la mi-aout-Séances à 17 heures tous les jours sauf le lundi -Séances à 16 H et 18 h les dimanches -Durée: 1 h 20 environ - Rendez-vous devant la Maison de l'Aqueduc.-Renseignements: Tél: 04 75 48 49 80-",null,null,"aqueduc de st nazair;26;visite-loisir;st"]
[null,430,"HOTEL RESTAURANT CHARTRON","Hôtel/Restaurant","26-Drome","Saint donat sur herbasse","HOTEL RESTAURANT CHARTRON-Véronique et Bruno Chartron vous accueillent dans le décor authentique d'une vieille demeure Dauphinoise, située au pied de la collégiale de Saint-Donat, un hotel classé 3 étoiles. Les saveurs intactes de la truffe, des asperges, du chevreau ... accompagnées des grands crus des cotes du Rhône vous content des saisons et vous font découvrir les milles et unes saveurs de la Drôme des collines.-Le Week End Truffe...!-De la truffière à l'assiette, laissez vous guider sur les chemins de la gourmandise. La saison truffière débute fin Novembre avec les premières gelées. Cependant, les meilleures truffes se ramassent en janvier et Février car elles atteignent alors leur pleine maturité. Durant toute la saison nous organisons des séjours découverte : Ivoire notre chienne Labrador se fera un plaisir de vous guider à la recherche du DIAMANT NOIR dans notre truffière située au coeur des collines environnantes. Un week end en forme de dépaysement qui vous permettra de lever un coin de voile sur le mystère du Diamant noir.-",null,null,"hotel restaurant cha;26;hôtel-restaurant;saint"]
[null,431,"LE MOULIN DE VALAURIE","Hôtel/Restaurant","26-Drome","Valaurie","LE MOULIN DE VALAURIE-Blotti au coeur de la Drôme provençale, cet ancien moulin restauré avec passion vous accueille pour un séjour enchanteur. Entre tradition et modernité, vous serez charmés par le véritable bien-être qui émane de ces volumes joliment maîtrisés.-Harmonies fraîches et raffinées pour ces chambres spacieuses et lumineuses au confort douillet, joliment décorées de meubles anciens et d'objets chinés chez les antiquaires.-",null,null,"le moulin de valauri;26;hôtel-restaurant;valaurie"]
[null,434,"GRAND HOTEL DES BAINS","Hôtel/Restaurant","07-Ardèche","Vals les bains","GRAND HOTEL DES BAINS-Le Grand Hôtel des Bains en sud Ardèche aux portes de la Provence se situe dans un écrin de verdure.--L'hôtel a le charme des anciennes demeures. Il date de 1870 de style victorien. L'hôtel se trouve au centre des excursions en sud-ardèche, il bénéficie par sa situation géographique du climat provençal.--L'HÔTEL-Les années s'en vont, les belles maisons demeurent. Le Grand Hôtel des Bains n'a rien perdu de son cachet fin XIXème et garde encore l'écho d'une vie brillante tout en ouvrant son vaste parc ombragé à la balade romantique. Nous vous invitons à découvrir l'art de vivre de cette belle région en vous proposant les Week-ends Champagne.--Hôtel 3 étoiles, 65 chambres à partir de 65 euros. Chiens acceptés, terrasse, jardin, piscine, salle de réunion, accès handicapés, parking, CB, AE, DC. Pour plus d'informations concernant les mariages, séminaires et accueil de groupes. -Pour consulter les tarifs de l'hôtel, cliquez ici !,-Pour consulter les tarifs groupe, cliquez ici !,-Pour consulter les tarifs séminaires, cliquez ici !,-Pour nous contacter, cliquez ici !.-LE RESTAURANT-Dans le cadre agréable de la salle de restaurant, nous servons différentes formules (à choisir dans notre carte) :-Mise en bouche-entrée au choix-Plat au choix-Dessert au chois 33 euros.Mise en bouche-entrée au choix-Plat au choix-Fromage au chois 36 euros.Menu dégustation : 60 euros.Nos spécialités sont inventives et savoureuses. La cuisine accompagne de ses parfums légers de longs dîners sous les étoiles : médaillon de fois gras mi-cuit à la pomme, roulade de pintade en habit vert farci à la tapenade, assiette gourmande. -",null,null,"grand hotel des bain;07;hôtel-restaurant;vals"]
[null,435,"L'Atelier de la soierie","Visite/Loisir","69-Rhone","Lyon 1er","L'ATELIER DE SOIERIE-Histoire-A Lyon, ville de la soie depuis le 16e siecle, l'Atelier de Soierie accueille les visiteurs pour la decouverte d'un savoir-faire lyonnais: L'IMPRESSION SUR SOIE, appelée aussi impression au Cadre ou à la Lyonnaise. Elle constitue la dernière étape de la longue chaîne des métiers de la soie: la mise en couleurs du carré de soie. --Technique-La technique de l'impression s'est développée en France au 17e siècle. On a d'abord utilisé des planches de bois gravées en relief, puis dès 1920 des cadres de zinc. La soie blanche est tendue sur une table. L'imprimeur place de la couleur dans le cadre préalablement posé sur la soie et, avec l'aide d'un racle, il l'etend sur toute la surface. La couleur traverse les mailles de gaze du cadre : c'est la technique du pochoir. Sous vos yeux apparaît le foulard.-Horaires : du lundi au samedi de 9h à 12h et de 14h à 19h.-VISITES-Les visites. Il est possible de visiter L'Atelier de Soierie du lundi au samedi de 9H à 12H et de 14H à 19H.-L'Atelier peut organiser, sur demande, des visites pour les groupes (de 40 à 50 personnes environ). Le travail d'impression est présenté depuis la préparation des couleurs jusqu'à la réalisation d'un carré. Prix : 1,5 Euro par personne. -Pour nous contacter, cliquez ici !-Atelier de Soierie-33 rue Romarin-69001 Lyon--",null,null,"l'atelier de la soie;69;visite-loisir;lyon"]
[null,436,"Le Petit Musée Fantastique de Guignol","Spectacle","69-Rhone","Lyon 5eme","Le Petit Musée Fantastique de Guignol-6 rue Saint Jean-69005 Lyon-Gepetto, facteur d'automates et marionnettiste a créé les pièces maîtresses géantes de ce musée : deux automates, l'un présentant le célèbre Laurent Mourguet divertissant ses clients, et l'autre, Gnafron, en train de fabriquer des marionnettes.-Un florilège de très belles pièces uniques vous est proposé rassemblant des oeuvres d'artistes créateurs tels que Reynaud, Langlois, Fantoche, Camus, Forchino, Filopat, et Gepetto.-Ne se dérobant pas au plaisir de vous distraire, Guignol vous donne l'occasion d'en apprendre davantage sur son passé et sur l'histoire du Vieux Lyon.-Illuminez votre passage dans le Vieux Lyon en découvrant les trésors qu'abrite la boutique Disagn' Cardelli, dans un lieu unique d'architecture, témoignage des siècles passés. L'exposition sera régulièrement enrichie par de nouvelles créations. Oubliez donc les tracas du quotidien et venez partager la féerie de Guignol en compagnie de votre famille et de vos amis.--Horaires d'ouverture :-11H00 - 12H30 /14H30 - 18H30,-Fermé Lundi Matin,-Dimanche 11H00 - 13H00 (en saison) 15H00 -18H30,-Ouverture possible sur RDV. Groupes, Comités, Ecoles, etc...- -",null,null,"le petit musée fanta;69;spectacle;lyon"]
[null,441,"Musée Gallo-Romain","Visite/Loisir","69-Rhone","Lyon 5eme","Musée Gallo-Romain-Présentation-Le musée et le site de Lyon-Fourvière occupent les pentes de la colline de Fourvière, jadis au centre de Lugdunum, où ont été édifiés deux monuments majeurs de la cité : le théâtre et l'odéon, désormais intégrés au secteur classé Patrimoine Mondial par l'UNESCO.--Ce superbe parc, lieu privilégié de promenade et de méditation, s'anime en été pour les spectacles du festival des Nuits de Fourvière, point fort de la vie culturelle du Rhône.---Collections--Cinq siècles de découvertes-Dès le XVIe siècle, les érudits lyonnais se passionnent pour les ruines, les inscriptions et les objets, statues, monnaies, céramiques... dont ils constituent les premières collections.--Au début des années 1980, Lyon sera une ville pionnière en matière de protection du patrimoine, avec la mise en place systématique des fouilles préventives, préalables aux grands travaux urbains.--Enrichies par près de cinq siècles de découvertes, les collections du Musée abordent tous les chapitres de la vie publique et privée d'une capitale de l'Empire.-Musée gallo - romain-17 Rue Cléberg-69005 Lyon--",null,null,"musée gallo-romain;69;visite-loisir;lyon"]
[null,444,"Musée Lumière","Visite/Loisir","69-Rhone","Lyon 8eme","Le musée Lumière offre au visiteur un parcours esthétique, scientifique et historique sur l'histoire de l'invention du Cinématographe par Louis Lumière en 1895. La collection d'appareils anciens de la Ville de Lyon acquise en 2003 comporte d'incontournables chefs d'oeuvre techniques. Parmi eux, le Cinématographe dit ~n°1~, celui qui projeta les dix premiers films le soir du 28 décembre 1895 au Grand Café à Paris devant 33 curieux qui devinrent les premiers spectateurs. Cette collection a été rassemblée par le docteur Paul Génard et se mêle avec celle de l'Institut Lumière.-Le scénario d'exposition du musée Lumière a été réalisé par Dominique Païni, Directeur du Département du Développement Culturel du Centre Georges Pompidou, d'emblée passionné par le projet qu'il a mené depuis l'été 2002. Dominique Païni a été choisi pour ce qu'il est : un intellectuel praticien, un homme de cinéma et un homme des arts plastiques qui porte une réflexion originale sur la question muséographique du cinéma.--Musée Lumière-25 rue du Premier Film-B.P. 8051-69352 LYON CEDEX 08 --",null,null,"musée lumière;69;visite-loisir;lyon"]
[null,447,"Parc de la Tête d'Or","Visite/Loisir","69-Rhone","Lyon 6eme","Le Parc de la Tête d'Or-Le Parc de la Tête d'Or, patrimoine lyonnais depuis 1856 est un des plus grands parcs situé au coeur d'une métropole européenne.-Le nom Tête d'Or vient d'une légende selon laquelle un trésor avec une tête de Christ en or y a été enfoui.-La réalisation des 117Ha de ce parc est l'oeuvre du paysagiste DENIS BUHLER.----Des travaux titanesques sont entrepris, comme le creusement du lac.-Dès ses débuts, le Parc a le même aspect qu'on lui connaît aujourd'hui, avec son zoo, sa botanique, ses allées, ses perspectives, son lac et ses rives ombragées, seule la roseraie est plus récente. Les grilles qui ornent ses portes datent, elles de 1898.--Dans ce cadre exceptionnel, vous découvrirez, restaurants et buvettes, activités ludiques, piste de jogging et bien sûr un théâtre de Guignol.--ENTREE GRATUITE 1er avril - 30 septembre 6H - 23 H,-jusqu'à 21h le reste de l'année. --Parc de la Tête d'Or-69006 LYON--",null,null,"parc de la tête d'or;69;visite-loisir;lyon"]
[null,450,"LE NAUTILE","parc d'attraction","69-Rhone","Villefranche sur saone","Les accros de la natation-25 m de long pour 6 lignes d'eau et jusqu'à 2,50 m de profondeur ! Les nageurs décontractés comme les sportifs les plus acharnés y trouveront leur bonheur,Vous pouvez y accéder directement à la sortie des vestiaires, ou par la rivière à courants en partant de la zone ludique-L'eau côté détente-Variez les plaisirs au gré de vos envies. nage à contre-courant,banquettes bouillonnantes,geysers,rivière à courants,glissades,bassin d'initiation.,-...toutes les activités sont au rendez-vous pour faire de votre baignade un grand moment de détente. --Pour consulter les infos pratiques, cliquez ici !. -",null,null,"le nautile;69;parc;villefranche"]
[null,451,"LE PARC DE COURZIEU","Parc animalier","69-Rhone","Courzieu","Les Aigles-Dans un amphithéâtre sonorisé en plein air, les rapaces diurnes et nocturnes sont présentés tour à tour volant sans contrainte au dessus des têtes, répondant à la demande des fauconniers.--Les rapaces ne volent pas tous de la même manière. Il y a : -Le vol silencieux du hibou ou de la chouette,Le vol percutant du faucon lanier,Le vol acrobatique du milan noir,Le vol planant de la buse,Le vol majestueux de l'aigle royal,Le vol lourd du vautour.- Chaque rapace a sa particularité. -Le vautour joue les récupérateurs de carcasses,Le faucon heurte sa proie en plein vol,Le pygargue pêche,Le percnoptère utilise un outil pour atteindre sa nourriture.Les Loups-Ce nouveau concept interactif a pour but de provoquer un changement de représentation du loup dans l'esprit du public.--Le loup réel--Cheminement dans le labyrinthe où est expliquée l'évolution du louveteau jusqu'à l'âge adulte.--La tête géante du loup dans laquelle on joue à ~avoir peur~.--Le pont ~passe loup~ qui domine la vallée sert à identifier les différents membres du clan.--Le loup imaginaire--Les conflits entre l'homme et l'animal : La ~maison des pièges~ illustre et reconstitue à l'échelle humaine les moyens utilisés pour exterminer le loup : FRISSON GARANTI !-",null,null,"le parc de courzieu;69;parc;courzieu"]
[null,452,"CANOED","Loisir/Sport","69-Rhone","Condrieu","Voir à -Base de Loisirs de Condrieu les Roches-Nautic Concept- -",null,null,"canoed;69;loisir-sport;condrieu"]
[null,466,"MEGAZONE LASER GAMES","parc d'attraction","69-Rhone","Lyon 6eme","Motivez vos collaborateurs lors d'un évènement précis : séminaire, lancement de produit.... -Organisez vos opérations de relation publique de façon inédite Stimulez votre force de vente en alliant esprit d'équipe et compétitivité-Locaux climatisés,salle de réunion équipée,service traiteur... Munis de votre armure électronique et de votre arme laser, vous évoluez dans un labyrinthe truffé d'obstacles, d'effets spéciaux et de pièges.. Vous avez 20 minutes pour accomplir votre mission; les bases adverses doivent être prises et vos adversaires désactivés. -Le laser vous guidera dans vos tirs à travers la fumée et le rayon Infra rouge garantit la précision de touche. Faites attention à la mine et aux bases programmées en auto-défense. --MEGAZONE LASER GAMES-104 Rue de Sèze-69006 Lyon--",null,null,"megazone laser games;69;parc;lyon"]
[null,469,"NAUTILUS CLUB","Discotheque","69-Rhone","Cublize","Le Nautilus club vous informe :--Les photographies de vos soirées sont mises à votre disposition sur notre site internet. Vous pourrez ainsi vous revoir.- -Le Nautilus club propose ce service à titre gracieux et ne fait pas commerce de ces photos. Elles vous seront sur simple demande offerte lors de votre prochaîne visite.  Les photographies sont protégées et ne peuvent être copiées. Si toutefois vous ne souhaitez pas apparaitre sur notre site ainsi que sur notre tableau d'honneur, il suffit pour cela de nous en informer.-",null,null,"nautilus club;69;discotheque;cublize"]
[null,471,"NEW ORLEANS","Discotheque","69-Rhone","Lyon 5eme","Tous les soirs une animation différente-Vous pouvez venir tous les soirs au New Orleans, et tous les soirs vous aurez droit à une animation différente. Les soirées se suivent et ne se ressemblent pas au New Orleans. Voyez nos programmes, choisissez votre soir de sortie en fonction de vos goûts musicaux ou de vos aspirations du moment. Notre équipe vous attend de toute façon, du mercredi au samedi, de 22h à l'aube pour vous faire passer la meilleure soirée de la semaine. ...--Choisissez votre soirée-Vous aimez le Rock, le Boogie-Woogie, le Rythm n'Blues, la Salsa, les Variétés, vous aimez danser, vous aimez jouer au billard, vous cherchez un endroit sympa et animé : le New Orleans est fait pour vous. Nous avons sélectionné pour vous les meilleurs titres dans tous les types de musique pour votre plus grand plaisir. Nous mettons plus de 500 titres de chansons diverses à votre disposition pour que vous nous fassiez participer à vos talents de danseur, ou de danseuse.  -Vous allez pouvoir redécouvrir ou découvrir d'anciens tubes qui ont été incontournables, et vous allez aussi pouvoir danser sur tous les titres que vous entendez aujourd'hui sur la FM. Venez et découvrez la Sélection qui a fait la réputation du New Orleans-New Orleans-12 quai Romain Rolland-69005 Lyon 5-",null,null,"new orleans;69;discotheque;lyon"]
[null,472,"LE PAPAGAYO","Discotheque","69-Rhone","Lyon 5eme","Bienvenue au Papagayo !- -Une soirée entre amis ?-Un enterrement de vie de jeune fille ou de garçon ?-Un repas de fin d'année organisé par votre entreprise ?- -Vous aimerez chanter, danser, vous amusez jusqu'au bout de la nuit !- -Entrez dans l'univers festif du Papagayo,-Votre restaurant-karaoké dansant à Lyon !- -Franck et Carine nouvellement cogérants du Papagayo vous accueillent tous les jours de la semaine sur réservation pour vous faire passer une soirée inoubliable.- -Aux platines DJ'Francky comme toutes les semaines mettra le feu dans le salle comme sur le dance floor et vous en fera voir de toutes les couleurs au Karaoké.- -Aux fourneaux Franck qui sait cuisiner avec talent les plats traditionnels que nous proposons.- -Pour vous servir Eddy et Romeo toujours de bonne humeur seront à vos petits soins.- -Une capacité de 100 couverts, un bar avec une carte fournie (alcool et softs classiques, coktails maison), un salon de réception pour que vous puissiez passer un moment tranquille si vous le souhaitez- -Karaoké :-Plus de 500 références, ..une des plus grosses selection de la ville- -Nous n'attendons plus que vous !!--LE PAPAGAYO-92 Quai de Pierre-Scize-69005 Lyon--",null,null,"le papagayo;69;discotheque;lyon"]
[null,474,"La Cour des Loges","Hôtel","69-Rhone","Lyon 5eme","-Hôtel ****- -Le mariage de l'histoire et de la modernité-Au coeur de la capitale de la gastronomie les 62 chambres de La Cour des Loges offrent le mariage exceptionnel du confort contemporain et du charme d'authentiques demeures des XIVe, XVIe et XVIIe siècle.- -Car ici, les appartements, suites, duplex et autres triplex symbolisent à eux seuls l'esprit magique d'un lieu romantique unique en Europe.- -Les chambres - 62 ~loges~ en capitale-Chambres, Suites et appartements, -chacun avec espace bains,-TV cable, Wifi, mini bar, certains en duplex,-avec cheminée, plafond à la française ou sur jardin.-Thermes et sauna.-Jardins suspendus et Belvédère.-Salons privatifs.- --Hôtel Cour des Loges-6 rue Boeuf-69005 Lyon--",null,null,"la cour des loges;69;hôtel;lyon"]
[null,475,"Hôtel de Bretagne - Hotel Lyon","Hôtel","69-Rhone","Lyon 2eme","Hôtel de Bretagne-10 r Dubois-69002 LYON- -Hôtel de Bretagne - Lyon-Situé en plein centre de Lyon, au coeur de la presqu'île, l'hôtel de Bretagne vous propose 30 chambres pour une à quatre personnes. Toutes les chambres sont équipées de douche, de toilettes, d'un téléphone et d'une télévision. -Entre Rhône et Saône, l'emplacement privilégié de l'hôtel de Bretagne vous offre l'accès à une grande variété de restaurants, de commerces et de salles de spectacle. La place Bellecour, la rue de la République, la rue Mercière, l'Opéra de Lyon, la place des Terreaux et le quartier du Vieux Lyon sont tous à moins de 5 minutes à pieds de l'hôtel deBretagne. -L'hôtel de Bretagne est à proximité de plus de 2000 places de parking et des transports en communs (métro et bus). -Les chambres-L'hôtel de bretagne vous propose plusieurs types de chambres :-Les chambres pour une personne, avec un lit simple,Les chambres pour deux personnes, avec un lit double,Les chambres pour trois personnes, avec un lit double et un lit simple,Les chambres pour quatres personnes, avec deux lits doubles.Toutes les chambres sont équipées de douche, de toilettes, d'un téléphone et d'une télévision.- -",null,null,"hôtel de bretagne - ;69;hôtel;lyon"]
[null,476,"Grand Hôtel des Terreaux","Hôtel","69-Rhone","Lyon 1er","-Grand Hôtel Des Terreaux ***-16 rue Lanterne-69001 Lyon- - -Au centre de la ville ~le Grand Hôtel des Terreaux~ est l'un des plus anciens hôtels de Lyon. Rénové, il bénéficie d'une situation géographique remarquable; à deux pas de l'Opéra, du Théâtre des Célestins, du Musée Saint Pierre et des Beaux Arts, du Vieux Lyon et de toute l'animation culturelle et ludique du Centre Presqu'Ile.-Les Chambres-Corbeille-Grande chambre raffinée pour une, deux ou trois personne(s). Coin salon. Mobilier à thème (23 à 32 m², lit de 160 x 200 cm, ou 2 lits de 90 x 200 cm, bain).--Loge- -Petite chambre de caractère pour une personne. Mobilier en bois exotique (12 à 13 m², lit de 120 x 190 cm, douche).- -<st1:PersonName w:st=~on~ ProductID=~La Privilège~>Balcon-<st1:PersonName w:st=~on~ ProductID=~La Privilège~> -<st1:PersonName w:st=~on~ ProductID=~La Privilège~>Chambre élègante pour une ou deux personne(s). Mobilier contemporain audacieux (15 à 21 m², lit de 140 x 200 cm douche ou bain).- -Piscine intérieure- -Ancienne demeure du quartier des terreaux, notre maison a conservé de son histoire un riche patrimoine (pierres d'une ancienne église voisine pour la piscine, escalier du XVIIIe siécle). Celui que le XIXe avait fait relais de poste, le XXe transforma en élégant hôtel alliant marbre et bois précieux. - -Le Bar- -Notre salon et son bar sont un lieu de détente idéal pour nos résidents.- -",null,null,"grand hôtel des terr;69;hôtel;lyon"]
[null,477,"Hôtel Dubost","Hôtel","69-Rhone","Lyon 2eme","Hôtel Dubost **-Au coeur de LYON,à proximité des rues pietonnes du centre ville, de la Place Bellecour et à 50m du métro, de la gare SNCF de Perrache, de la navette aéroport et de la sortie autoroute Paris/Marseille. 56 chambres Tout confort. Réception 24h sur 24h Parking et garage partenaire à proximité.- - -Pour consulter les tarifs, cliquez ici !-Pour réserver, cliquez ici !--Hôtel Dubost-19 Place Carnot-69002 Lyon--",null,null,"hôtel dubost;69;hôtel;lyon"]
[null,481,"Hôtel Le Richelieu","Hôtel","69-Rhone","Lyon 6eme","L'Hôtel ***-Au centre du quartier des affaires et à quelques pas du Parc de la Tête d'Or. A 5 minutes à pied de la gare et du centre commercial de La Part-Dieu. Toute l'année, 24 heures sur 24 (veilleur de nuit) : accueil personnalisé et rapport qualité/prix attractif.- -Pour réserver, <A href=~http://www.hotelrichelieu.com/richelieu.htm?233,135~>cliquez ici !- --Hôtel Le Richelieu-25 Rue Lalande-69006 Lyon--",null,null,"hôtel le richelieu;69;hôtel;lyon"]
[null,482,"LA GRANGE AU BOUC","Discotheque","69-Rhone","Lyon 5eme","Le Club Discothèque des 25-50 ans, le plus chic et sympa de Lyon, ambiance disco, rock, slow. Ouvert du Mardi au Samedi de 23h à l'aube.--LA GRANGE AU BOUC-9 quai Romain Rolland-69005 Lyon--",null,null,"la grange au bouc;69;discotheque;lyon"]
[null,484,"LE FRIDGE","Discotheque","69-Rhone","Lyon 3eme","-Le Fridge-67 rue des Rancy-69003 Lyon--",null,null,"le fridge;69;discotheque;lyon"]
[null,485,"LE SIX","Discotheque","69-Rhone","Limas","Pub discothéque jusqu'à 5h du matin- Entrée libre - Terrasse d'été-",null,null,"le six;69;discotheque;limas"]
[null,487,"Hôtel du Théâtre","Hôtel","69-Rhone","Lyon 2eme","L'Hôtel **-Un cadre privilégié :-C'est dans un cadre privilégié que l’Hôtel du Théâtre vous accueille : un îlot de calme arboré, à l'écart de la circulation, en plein coeur de Lyon, et jouissant d'une vue superbe sur le théâtre et la place des Célestins.-Nous sommes situés sur la Presqu'île, entre la place Bellecour et le quartier St Jean, à 1 minute de <st1:PersonName w:st=~on~ ProductID=~la rue Mercière~>la rue Mercière, la rue « gourmande ».- -Un accès pratique :-A 2 stations de métro de la gare Perrache , à 4 stations de la gare Part Dieu, et à seulement 2 minutes de l'axe autoroutier. -Parking au pied de l'hôtel, sous la place des célestins.-Pour réserver, cliquez ici !-Pour nous contacter, cliquez ici !--Hôtel Du Théâtre-place des célestins - Entrée : 10 rue de savoie-69002 LYON --",null,null,"hôtel du théâtre;69;hôtel;lyon"]
[null,489,"CLUB PRIVE HAVANNA","Discotheque","69-Rhone","Corbas","Club privé pour les + de 20 ans. Location de- discothèque du lundi au jeudi soir. Musique,- ambiance, soirées à thèmes.-Club Privé Havanna - La Rocade-300 route de Marennes-69960 Corbas-",null,null,"club prive havanna;69;discotheque;corbas"]
[null,490,"KEYI KINGSTON LIFE ","Discotheque","69-Rhone","Lyon 5eme","-Keyi Kingston Life-64 quai Pierre Scize-69005 LYON--",null,null,"keyi kingston life ;69;discotheque;lyon"]
[null,491,"LE COPACABANA","Discotheque","69-Rhone","Lyon 7eme","<TABLE class=MsoNormalTable style=~WIDTH: 80%; mso-cellspacing: 0cm; mso-padding-alt: 0cm 0cm 0cm 0cm~ cellSpacing=0 cellPadding=0 width=~80%~ border=0><TD style=~PADDING-RIGHT: 0cm; PADDING-LEFT: 0cm; PADDING-BOTTOM: 0cm; WIDTH: 50%; PADDING-TOP: 0cm~ vAlign=top width=~50%~>...Encore plus chaud-Encore plus d'ambiance...-<TD style=~PADDING-RIGHT: 0cm; PADDING-LEFT: 0cm; PADDING-BOTTOM: 0cm; WIDTH: 50%; PADDING-TOP: 0cm~ vAlign=top width=~50%~>...Venez faire la fête toute l'année avec-nous dans la chaleur Brésilienne !!!---Une seule référence sur LYON--Le COPACABANA--le must des restaurants dansant et karaoké de LYON !!!-<TABLE class=MsoNormalTable style=~WIDTH: 80%; mso-cellspacing: 0cm; mso-padding-alt: 0cm 0cm 0cm 0cm~ cellSpacing=0 cellPadding=0 width=~80%~ border=0><TD style=~PADDING-RIGHT: 0cm; PADDING-LEFT: 0cm; PADDING-BOTTOM: 0cm; WIDTH: 45%; PADDING-TOP: 0cm; HEIGHT: 143.45pt~ vAlign=top width=~45%~>ANNIVERSAIRE-BAPTEME-CATHERINETTE-REPAS DE FIN D'ANNÉE-MARIAGE-DIVORCE et SÉPARATION-POSSIBILITE SPECTACLE A LA DEMANDE-TOUS LES VENDREDI SOIR ET SAMEDI SOIR POSSIBILITÉ DE STRIP-TEASERS POUR LES ENTERREMENTS DE VIE DE JEUNES FILLES ET LES ANNIVERSAIRES FILLES -<TD style=~PADDING-RIGHT: 0cm; PADDING-LEFT: 0cm; PADDING-BOTTOM: 0cm; WIDTH: 10%; PADDING-TOP: 0cm; HEIGHT: 143.45pt~ width=~10%~> -<TD style=~PADDING-RIGHT: 0cm; PADDING-LEFT: 0cm; PADDING-BOTTOM: 0cm; WIDTH: 45%; PADDING-TOP: 0cm; HEIGHT: 143.45pt~ vAlign=top width=~45%~>...ET AUSSI COPACABANA GRILL TOUS LES MIDIS DU LUNDI AU VENDREDI !!!--ACCES HANDICAPES-TERRASSE OMBRAGEE-SALLE CLIMATISEE-VMC-PARKING GRATUIT A 50 M--LOCATION DE SALLE POUR SOIREE DU DIMANCHE AU SAMEDI OUVERT POUR TOUT PUBLIC DE 2 A 90 COUVERTS - -                    NOUVEAU : L'APERICOPA !!-Pour tous vos rendez-vous d'affaires ou simplement pour passer un moment de détente dans un cadre chaleureux avec musique d'ambiance, le Copacabana vous propose son apéritif et ses amuse-bouche, du lundi au jeudi sur réservation.-- --COPACABANA-69 rue de Gerland-69007 Lyon-- -",null,null,"le copacabana;69;discotheque;lyon"]
[null,500,"Aquarium du Grand Lyon","parc d'attraction","69-Rhone","La mulatiere"," -Aquarium du Grand Lyon-7 rue Stéphane Déchant-69350 La Mulatière- -- - Voir Aquarium de Lyon-",null,null,"aquarium du grand ly;69;parc;la"]
[null,502,"All Suites La Reine Astrid","Hôtel/Restaurant","69-Rhone","Lyon 6eme","All Suites La Reine Astrid****- -La Reine Astrid, quel autre nom pouvait aussi bien évoquer le cadre raffiné et feutré de cette unique All Suite**** situé dans un quartier résidentiel de Lyon, face au parc de la Tête d’Or.--Hotel La Reine Astrid****-24 bd Belges-69006 LYON--",null,null,"all suites la reine ;69;hôtel-restaurant;lyon"]
[null,503,"Au Patio Morand","Hôtel","69-Rhone","Lyon 6eme"," -Le Patio Morand est un havre de paix dans un cadre de charme au coeur du 6ème arrondissement de Lyon. Cette demeure de pierre dorée à l'architecture originale abrite deux petites terrasses et un patio.- -Equipements et prestations Au Patio Morand- -Nombre de chambres total : 31-Confort : You will also have the possibility to have breakfast in your room, to work in the meeting room, of to watch TV in the small lounge. In order to organise some seminaries or merely work in good conditions, a meeting room, equipped by means of communication, is at your disposition. Our hotel boast 31 rooms (some of them with air conditioned) and all equipped with bathroom, television, telephone as well as Internet connection and Canal+.--Au Patio Morand**-99 Rue de Crequi-69006 Lyon--",null,null,"au patio morand;69;hôtel;lyon"]
[null,505,"Château de Pizay","Hôtel/Restaurant","69-Rhone","Lyon","LE CADRE--A 45mn de Lyon et à 30mn de Mâcon, au coeur du Beaujolais, le château de Pizay, édifié du XIème au XIXème siècle vous invite dans ces jardins à la française du XVIII ème siècle qui font de cet endroit un lieu hors du temps, idéal pour passer un séjour en toute sérénité. Au milieu de ses 62 hectares de vignes, le Château de Pizay est l'un des plus grands domaines de la région.-CHATEAU DE PIZAY****--Le Château de Pizay hôtel 4* propose 14 chambres et 48 suites Duplex. Les Chambres du Château se situent dans deux corps de bâtiments : la dépendance du Parc et la dépendance du Château. Chacune d'entre elle offre un maximum de confort dans des styles classiques ou contemporains. Elles disposent toutes de : climatisation, vue parc, piscine ou château, salle de bain, TV écran plat satellite, ligne téléphonique directe, mini-bar, coffres forts, connexion Internet WiFi. Les Suites Duplex sont équipées : espace salon, chambre à l'étage, 2 écrans plats, coffre fort, Wifi, minibar, terrasse privée, accès direct piscine et SPA* (*payant sur réservation).-LE SPA D EXCEPTION--Le Spa de 1000m² se trouve dans la dépendance du Parc. Il comprend 7 cabines de soins dont 2 VIP Duo et propose une carte de soins très variée avec les produits Terraké et Vinea. Comme dans la plupart des Spas, ce sont les soins esthétiques qui sont ici à l'honneur avec des soins du visage et des soins du corps du type modelage, massage ou enveloppement. Les produits Alice Gatet (Vinea) sont des cosmétiques 100% naturels, tirant le meilleur des vignes du Beaujolais pour créer des crèmes de soins aux extraits de raisin, incorporant les fameux polyphénols aux effets anti-âge, ces produits sont composés uniquement d'ingrédients locaux. Les soins et rituels se déclinent sous le nom de Divins Raisins, Amour de Bacchus ou Exception du Château. Quant aux cosmétiques Terraké, ils ont pour secret une alchimie des univers qui nous entourent : Terra Magica (gommage au sable blanc de Polynésie), Eaux Premières (gommage aux coquillages de l'Atlantique), d'Air et de Lumière (gommage au coton de Méditerranée) et Végétal Luxuriant (soin fondant à la cassonade et mandarine). Ces essences précieuses aux senteurs déroutantes sont partenaires des Spas les plus huppés du monde. Vous pourrez profiter également d un Bassin Ludique d Hydrothérapie comprenant : 2 cols de cygne, 1 queue de carpe, 4 plages hydromassantes, 5 postes hydromassants assis, 2 geysers et volcans, animations hydromassantes et d un Espace Multisensoriel comprenant : sauna méditation, douche cascade, fontaine de glace, douche à expériences, bassin tiède, hammam et salle de gommage sur table chaude.--LA RESTAURATION --Le restaurant gastronomique vous accueille dans 7 salles privatives du XVIIème « contemporanisé ». Dès les beaux jours, les repas sont proposés à l'extérieur en cour d'honneur. Le Chef, Aurélien Mérot, formé au Fouquets, à la Chèvre dOr, et chez Paul Bocuse, vous propose une carte qui sait mettre les richesses culinaires de la région en vedette en leur donnant une irrésistible touche de nouveauté et d élégance. Tenue correcte requise au restaurant.-À VOTRE DISPOSITION--Bar, salle de billards, réception 24h/24, piscine extérieure chauffée, court de tennis, jeux dans le parc, VTT, dégustation des vins fins produits au Château et visite des caves centenaires commentée par un oenologue (en supplément et sur réservation). À proximité : 4 golfs à moins de 30 mn, ULM à 2 mn, route des crus du Beaujolais, La voie verte, Lyon, Pèrouges, promenade Lamartine et Roche de Solutré, Quads, 4x4 dans les vignes, Hélicoptère, Karting..-Château de Pizay****-Route des Crus du Beaujolais -69220 MORGON/Saint-Jean-d'Ardières-",null,null,"château de pizay;69;hôtel-restaurant;lyon"]
[null,509,"HOTEL DU SIMPLON","Hôtel","69-Rhone","Lyon 2eme","- -L'hôtel du Simplon ** est situé dans la presqu'île, entre Rhône et Saône, à proximité de la gare de Perrache et des frondaisons de la place Carnot.--HOTEL DU SIMPLON **-11 rue Duhamel-69002 LYON--",null,null,"hotel du simplon;69;hôtel;lyon"]
[null,511,"HOTEL IBIS","Hôtel/Restaurant","69-Rhone","Lyon 7eme","-Situé en plein centre-ville, à égale distance de Bellecour, du parc de la Tête d'Or et du Technopôle de Gerland.--HOTEL IBIS LYON UNIVERSITE **-51 rue de l'Université-69007 LYON--",null,null,"hotel ibis;69;hôtel-restaurant;lyon"]
[null,513,"Hôtel Kyriad","Hôtel/Restaurant","69-Rhone","Lyon 2eme","Hôtel Kyriad Lyon Centre Perrache **- -24 quai Perrache -69002 LYON- -Description Hôtel Kyriad Lyon Centre Perrache **-L'hôtel Kyriad Lyon Centre Perrache vous offre des prestations de qualité et de services adaptés aux éxigences d'une clientèle d'affaires et de tourisme. A deux pas de la gare de Perrache, du tramway-métro, accès direct Marseille ou Paris, 160 chambres climatisées et insonorisées, 6 salles de réunion jusqu'à 120 personnes, parking privé payant. - -Avec des menus variés, des recettes régionales et la créativité du cuisinier, vous avez vraiment de quoi vous régaler !-Des plats savoureux différents chaque jour ou à choisir à la carte. - -Bienvenue dans le Royaume du Roi Sommeil. -Des chambres garantissant les normes de qualité d'un réseau européen, avec le charme de la diversité en plus. Climatisation individuelle, insonorisation, chambres handicapées, fumeur, non fumeur. - -Un hôtel bien pensé pour se réunir en toute sérénité !-Pour vos journées d'études ou vos séminaires, Kyriad vous propose des espaces modulables et des pauses appétissantes.- -L'équipement : rétroprojecteur, téléviseur, magnétoscope.--Hôtel Kyriad Lyon Centre Perrache**-24, quai Perrache-69002 LYON--",null,null,"hôtel kyriad;69;hôtel-restaurant;lyon"]
[null,514,"HOTEL LA RESIDENCE","Hôtel","69-Rhone","Lyon 2eme","- -Description HOTEL LA RESIDENCE **-Notre hôtel a le plaisir de vous accueillir dans un quartier pittoresque de Lyon, entre Saône et Rhône, tout proche de la place Bellecour...- --Nombre de chambres total : 67- -HOTEL LA RESIDENCE ***-18 rue Victor Hugo-69002 LYON--",null,null,"hotel la residence;69;hôtel;lyon"]
[null,515,"Hôtel La Tour Rose","Hôtel/Restaurant","69-Rhone","Lyon 5eme","Hôtel La Tour Rose ****-22 Rue du Boeuf-69005 Lyon- - -L'Hôtel La Tour Rose **** est située au coeur du Vieux Lyon et occupe trois bâtiments du 15ème au 18ème siècle. Bien plus qu'un hôtel, la Tour Rose est une maison de confort et de convivialité.- -Nombre de chambres total : 12- -Confort :-The 12 suites at La Tour Rose are decorated in celebration of Lyon's venerated silk industry. In this Tuscan garden atmosphere cook and aesthete Philippe Chavent cultivates the related traditions of silk and gastronomy. Within these three buildings of the 15th to 18th centuries, culinary and architectural features unite. In a former chapel, under a glass and steel roof, Philippe Chavent innovatively combines nouvelle and classic cuisine with the fruits of his journeys. La Tour Rose is a remarkable and rewarding experience. - --Equipements :-télévision, mini bar, wifi.--Services :-petit déjeuner en chambre, restaurant gastronomique, terrasse en été.--- -",null,null,"hôtel la tour rose;69;hôtel-restaurant;lyon"]
[null,524,"HOTEL RESTAURANT SAPHIR","Hôtel/Restaurant","69-Rhone","Lyon 9eme","HOTEL RESTAURANT SAPHIR ***-18 rue Louis Loucheur -69009 LYON- -Le Best Western Saphir vous offre un service de qualité, un accueil chaleureux et convivial.--Nombre de chambres : 111- -Equipements/services : -Salle de réunion,Anglais parlé,Carte de crédit,Restaurant,Parking,Ascenseur.Accès-Depuis Lyon centre et Marseille : par le tunnel de Fourvière, prendre sortie Vaise-St Just, direction métro-bus Gorge de Loup. Premier feu à gauche, puis, deuxième feu à gauche.--Depuis Paris par A6 : sortie Porte du Valvert. Au rond point, direction Lyon centre puis suivre métro-bus Gorge de Loup.--Depuis Grenoble : Périphérique Nord, sortie Porte du Valvert. Au rond point, direction Lyon centre puis suivre métro-bus Gorge de Loup.  -",null,null,"hotel restaurant sap;69;hôtel-restaurant;lyon"]
[null,525,"Hôtel Villa Florentine","Hôtel","69-Rhone","Lyon 5eme"," -Description Hôtel Villa Florentine-De notre magnifique Villa, la vue sur Lyon et la vieille ville est unique. Nous vous proposons 28 chambres ainsi qu'un restaurant gastronomique, Les terrasses de Lyon, étoilé au guide Michelin, salles de séminaires et une salle de fitness.- --Hôtel Villa Florentine ****-25 Montée St Barthélémy-69005 Lyon--",null,null,"hôtel villa florenti;69;hôtel;lyon"]
[null,526,"LA CROIX ROUSSE","Hôtel","69-Rhone","Lyon 4eme"," -Situé dans un quartier vivant, le Citôtel La Croix Rousse vous réserve un accueil sympathique et familial. Situé au nord du centre ville, dans le quartier des 'canuts', inscrit au patrimoine mondial par l'Unesco.- --LA CROIX ROUSSE **-157 bd de la Croix Rousse-69004 Lyon--",null,null,"la croix rousse;69;hôtel;lyon"]
[null,528,"L'ARC EN CIEL","Discotheque","69-Rhone","Quincie en beaujolais ","L'ARC EN CIEL DEVIENT NEW ARC EN CIEL -L'ARC EN CIEL DEVIENT NEW ARC EN CIEL---Nouvelle génération de Discothèque.--Un centre de Loisirs de Nuit avec 5 salles pour vous accueillir dans un lieu de rêve, de dépaysement, de plaisirs et de mélange des genres.--Depuis 23 ans, les plus grands spectacles, les animations et les stars se sont succédés sur les dancefloors du NEW ARC EN CIEL.--COMPLEX MULTI-SALLES -LA SALLE ACTU, LE PAPA CUBA, L'IRISH PUB, ses terrasses, LE DALI ET LE FLORIDA (coin repas) vous reçoivent dans un espace de 1500 m2.---Pour votre confort, un parking éclairé de 1000 places est à votre disposition, sécurisé par ses maîtres-chiens.--Le NEW ARC EN CIEL, c'est aussi 25 personnes pour vous accueillir dans les meilleures conditions et vous faire passer des soirées inoubliables. -5 AMBIANCES -Leader dans sa région, 5eme Discothèque de France, le NEW ARC EN CIEL vous propose une ambiance musicale sélectionnée pour toutes les générations.--De la Techno Dance en passant par le Rock, le Funk, sans oublier le Soleil, les Années Disco, et l'incontournable Groove, R'n'b, Hip Hop.---Le NEW ARC EN CIEL vous accueille les vendredis, samedis et veilles de fêtes de 22h00 à 5h00 du matin.- -CLUB KALIMBA -Le NEW ARC EN CIEL fait partie depuis 15 ans du Groupe ~CLUB KALIMBA~, premier groupe européen de discothèques, récompensé par la presse spécialisée pour la qualité de ses services. ----",null,null,"l'arc en ciel;69;discotheque;quincie"]
[null,529,"FLAMENCO ROCK","Discotheque","69-Rhone","Lyon 9eme"," --Tous les styles de musique s'y côtoient, bien que house et techno soient surtout à l'honneur. Des concerts de musique live sont parfois organisés dans l'une des deux salles. Cependant lorsque l'on pénètre dans cette arène, toute vêtue de rouge et blanc, l'ambiance des Quais transforme le clubber tel le taureau : prêt à passer un bon moment. Quand vous n'en pouvez plus, il est l'heure d'aller au Flamenco Rock pour vos afters. On y danse encore, on y boit toujours et la fête continue ainsi quelques heures de plus. Un peu de flamenco, un peu de rock et beaucoup de musiques actuelles.- --Flamenco Rock-47 quai Pierre Scize-69009 LYON--",null,null,"flamenco rock;69;discotheque;lyon"]
[null,530,"LE KOBDO","Discotheque","69-Rhone","Lyon 5eme","Le Kobdo- -Sur les quais les clubs sont légions, mais le Kobdo se distingue en fournissant de temps en temps des en-cas aux clients. Pour les récompenser de leurs efforts fournis en danse !! - -Moyen de paiement:Master Moyen de paiement:Visa.- -Kobdo-Quai Romain Rolland-69005 Lyon-",null,null,"le kobdo;69;discotheque;lyon"]
[null,548,"LE MARAIS","Discotheque","69-Rhone","Lyon 2eme","Le Marais-3, rue terme-69001 Lyon- -La boîte Lesbienne de Lyon!- -Annick et Sylvie vous accueillent du jeudi au Samedi.- -Horaires : -Jeudi : 21h - 3h - Piano chantant suivi de la soirée dansante.Vendredi et Samedi : 23h - 5h - DiscothèqueOuverture les veilles de jours fériés (entrée gratuite)- -Tarifs :-Jeudi et vendredi : entrée gratuiteSamedi : 10 euros avec conso-",null,null,"le marais;69;discotheque;lyon"]
[null,551,"LE PARADISO","Discotheque","69-Rhone","Lyon 1er","PROGRAMME DE NOS SOIREES- -Tous les jeudis : Open bar pour les filles de 23 h à 1h du matin.-Tous les vendredis : Soirée des Célibataires et open bar pour les filles de 23 h à 1 h du matin.- -Pour réserver, cliquez ici !- --PARADISO-24 rue Pizay-69001 Lyon--",null,null,"le paradiso;69;discotheque;lyon"]
[null,554,"BLACK AND WHITE","Discotheque","69-Rhone","Lyon 5eme"," -Des soirées à thèmes mercredi et vendredi, un show érotique le mardi, et de la musique qui favorise le contact.- --Le Black And White-18 quai Romain Rolland-69005 LYON --",null,null,"black and white;69;discotheque;lyon"]
[null,560,"Hôtel Radison","Hôtel","69-Rhone","Lyon 3eme"," -Le Radisson SAS Hotel, Lyon est situé au coeur du quartier des affaires à 2 pas de la gare TGV. Il est à deux pas du centre commercial de la Part-Dieu (260 magasins).- --Hôtel Radisson SAS Lyon-129 rue Servient-69003 LYON--",null,null,"hôtel radison;69;hôtel;lyon"]
[null,561,"Résidence Park & Suites Part-Dieu","Hôtel/Restaurant","69-Rhone","Lyon 3eme","Park and Suites Part Dieu-111 boulevard Marius Vivier Merle-69003 LYON-Idéalement située au coeur du quartier d'affaires à Lyon, à quelques pas de la Gare Lyon Part-Dieu, notre résidence hôtelière logée dans un immeuble des années 1930 entièrement rénové et décoré sur le thème de l'Orient Express propose 140 studios et suites spacieux et contemporains, équipés et meublés dans un style élégant et design.-L'ambiance, le décor feutré, confortable et distingué rendront votre séjour au Park &amp; Suites Part-Dieu inoubliable...-Pour votre bien-être : un véritable spa abrite un jacuzzi, un sauna, une salle de fitness et une salle de massage.-",null,null,{"$f":"SUBSTITUTE(LOWER(LEFT(C68,20) & \";\" & LEFT(E68,2) & \";\" & IFERROR(LEFT(D68,SEARCH(\" \",D68)-1),D68) & \";\" & IFERROR(LEFT(F68,SEARCH(\" \",F68)-1),F68)),\"/\",\"-\")","v":"résidence park & sui;69;hôtel-restaurant;lyon"}]
[null,562,"Résidence Residéal Lyon Bellecour","Hôtel/Restaurant","69-Rhone","Lyon 2eme","-Au coeur du prestigieux Lyon historique inscrit au Patrimoine Mondial par l'UNESCO, à 200 mètres seulement de la place Bellecour, Residéal Lyon Bellecour - votre hôtel à Lyon, ou votre résidence de tourisme à Lyon - vous propose les conditions idéales pour vos séjours d'affaires et de loisirs. --Residéal Lyon Bellecour-6 rue Tony Tollet-69002 LYON--",null,null,"résidence residéal l;69;hôtel-restaurant;lyon"]
[null,563,"Balladins Confort","Hôtel","26-Drome","Montelimar","Description Balladins Confort **- -Notre Hôtel Balladins c'est aussi l'endroit idéal pour organiser vos salons d'affaires et séminaires. a 10 minutes de l’autoroute.-",null,null,"balladins confort;26;hôtel;montelimar"]
[null,565,"LE BLUE NOTE","Discotheque","26-Drome","Chabeuil","Une des meilleures références de la nuit valentinoise- -Le Blue Note ou le Light ? Difficile de choisir entre les deux ambiances. Le Light est le rendez-vous étudiant par excellence. Comme souvent dans ces soirées, la jouissance suprême provoquée par les tubes du moment, exacerbe les pulsions fraternelles. C'est donc en coeur que l'on reprend les refrains. On ne fait pas dans la finesse certes, mais c’est volontiers que l’on se laisse absorber par l'immense bonheur collectif. Le Blue Note (le club) est quant à lui, un peu plus select ce qui a l’avantage (ou l’inconvénient) de calmer les ardeurs joyeuses de certains. A vous de voir !- -2 SALLES - 2 AMBIANCES-Ouvert du jeudi au samedi soir et les veilles de jours fériés à partir de 22h 30- -Le Light-Le Club -CHABEUIL TEL. 04 75 85 24 77 -- -Prix Entrée :-Plein tarif 11 Euros entrée + une consommation alcoolisée ou 2 soft.-",null,null,"le blue note;26;discotheque;chabeuil"]
[null,569,"Laser Game ","Loisir/Sport","26-Drome","Valence","Nouvelle adresse de votre Lasergame Evolution : - -URBAN Complex-99 route de Lyon-Parc d'activités des Geais-26500 BOURG LES VALENCE- - -LASERGAME Evolution- -Moins violent que le paintball, aussi défoulant- -Fini les bleus et les bosses du paintball. Dans un immense hangar enfumé, sorte de labyrinthe à la Mad Max, tout le monde se tire dessus allégrement…au laser. En équipe ou en solo, par session de 20 minutes, chacun tente de lasérifier ses petits camarades le maximum de fois. Ça court, ça crie dans tous les sens mais surtout ça défoule. On peut dire d'ailleurs que le concept attire foule de tout age et pas spécialement masculine. Sur réservation. Possibilité de carte d'adhérent.- -Prix 7euros par partie de 20 min et par personne - -URBAN Accro- -Prenez de la hauteur et dépassez vos limites avec ce pàarc acrobatique en hauteur en indoor unique.- -Grace à notre système de ligne de vie continue, évoluez en toute sécurité et découvrez une façon unique de vous amusez sur des parcours dans la pénombre pleins de surprises- -URBAN Accro : 9 euros par personne - Durée illimitée.- -- Sur Réservation au 04.75.411.107 --- Horaires Classique-- Mardi           16:00 - 00:00-- Mercredi       14:00 - 00:00-- Jeudi           16:00 - 00:00-- Vendredi      16:00 - 00:00-- Samedi        14:00 - 00:00-- Dimanche     14:00 - 20:00           - Jours Fériés, Vacances Scolaires : Contactez nous-        - Attention Changement d'adresse-",null,null,"laser game ;26;loisir-sport;valence"]
[null,570,"LE KAYA","Discotheque","26-Drome","Alixan"," -Samedi et dimanche, le KAYA devient une superbe bodega. Ouverte à tous à partir de 16h. Décontraction chic autour de la piscine, fashion négligé devant des shows live. Le KAYA authentique endroit, qu'on aime.- -Le Kaya - Alixan-Quartier Bonlieu-26300 ALIXAN- --",null,null,"le kaya;26;discotheque;alixan"]
[null,571,"LE RETRO","Discotheque","26-Drome","Gervans"," --Club Discothèque Le Retro -Avenue du Midi -26600 Gervans- -",null,null,"le retro;26;discotheque;gervans"]
[null,572,"LE SUMBA","Discotheque","26-Drome","Epinouze","Le SUMBA est ouvert le vendredi, samedi et veilles de jours  feriés de 22h30 à 5h00.--Tarifs:-Entrée 10 euros avec 1 conso,Entrée gratuite pour les femmes le vendredi avant minuit. Conso 4 euros/1/2 bouteille 45 eurosBouteille champagne 80 eurosBouteille champagne haut de gamme. 95 eurosCocktail 4 euros.Le Sumba-quartier de la gare-26210 Epinouze-",null,null,"le sumba;26;discotheque;epinouze"]
[null,573,"LE SUNSHINE","Discotheque","26-Drome","Valence","LE SUNSHINE-CLUB-89, Avenue Sadi Carnot-26000 Valence-Le SunShine situé au centre de Valence vous ouvre ses portes à partir de 23Heures,.-Le nom du club préfigure qu'il s'agit d'un phare prêt à éclairer vos nuits.-Le SunShine vous propose différentes soirées à thème, les DJ's mettent le feu au dancefloor toute la nuit.-Tous les mardis de 23H00 à 1H00 soirées KARAOKETous les mercredis Soirées Disco - Années 80Tous les jeudis, soirées Ladies Night, entrée gratuite pour les filles toute la nuit et une boisson offerte toutes les heures;Pour vous accueillir 2 salles, dont une équipée d'un dancefloor disco....-Tous les vendredis et samedis, pensez à reserver votre table, en appelant le club au 04 75 78 06 06 aux heures d'ouverture, elle vous sera réservée jusqu'a 1H00.- -",null,null,"le sunshine;26;discotheque;valence"]
[null,578,"Château de Rochegude ****","Hôtel/Restaurant","26-Drome","Rochegude","CHATEAU DE ROCHEGUDE-26790 ROCHEGUDE - -Sous le soleil de la Provence- -Les statues de pierre veillent sur le jardin intérieur dont les feuillages se reflètent dans le miroir d'un petit bassin.  Dans l'immense parc peuplé de biches, la piscine et le tennis ouvrent sur des sentiers odorants qui se perdent sous les frondaisons.- -Le charme d'un déjeuner en terrasse et, la nuit venue, la vision fantastique d'un vaisseau illuminé où la pierre devient dentelle dans une atmosphère un peu magique.- -Une table aux senteurs de Provence à la fois traditionnelle et inventive, mise en valeur par une cave exceptionnelle où le terroir des Côtes du Rhône présente ses meilleurs crus.- -Ambiance Princière- -Des chambres de châtelain provençal où l'on voudrait que la nuit ne finisse plus.- -Pour les réservations et tarifs, cliquez ici !-Pour consulter les forfaits et les offres, cliquez ici !- - -",null,null,"château de rochegude;26;hôtel-restaurant;rochegude"]
[null,581,"RELAIS DE L'EMPEREUR","Hôtel/Restaurant","26-Drome","Montelimar","LE RELAIS DE L'EMPEREUR ***- -Vous trouverez dans cet Hôtel-Restaurant ~Le Napoléon~ tout le confort d'une vieille demeure fondée en 1758 où Napoléon avait choisi de faire étape à chacun de ses voyages. Le Relais de l'Empereur garde ainsi gravé dans son décor, l'empreinte d'un prestigieux passé.- -Situé au coeur de la ville, à 15 minutes des sorties d'autoroute ~Montélimar Nord ~ et ~Montélimar Sud~ vous trouverez toute la chaleur et l'accueil que saura vous donner la Famille Latry .- -C'est en terrasse ou dans le jardin que pourront être servis repas et petits déjeuners. Un Parking et un garage privés et fermés vous attendent dans l'enceinte de notre établissement. Accueil à toute heure de la nuit assuré par notre veilleur. Pension, demi-pension, soirée-étape mais aussi, séminaires, réunions, cocktails.-",null,null,"relais de l'empereur;26;hôtel-restaurant;montelimar"]
[null,582,"LE LOGIS DE L'ESCALIN ***","Hôtel/Restaurant","26-Drome","La garde adhemar","Une hostellerie de charme, une restauration riche des trésors du terroir de <st1:PersonName ProductID=~la Drôme~ w:st=~on~>la Drôme, le calme de la campagne avoisinante, la qualité de l'accueil dans une vieille bastide restaurée.- -Le Logis de l'Escalin ouvre ses portes aux voyageurs épris de douceur de vivre.- - -Le Restaurant- -Dans ses quatre salles de restaurant Le Logis de l'Escalin cultive l'authentique :- -Grands vins de terroirs, petits crus choisis, produits de saisons et produits régionaux, recettes inventives et gourmandes. - -Tout contribue ici au caractère raffiné et sincère d'une grande table de Provence.-",null,null,"le logis de l'escali;26;hôtel-restaurant;la"]
[null,583,"LES ARCADES LE LION D'OR **","Hôtel/Restaurant","26-Drome","Buis les baronnies","Un jardin entièrement clos et arboré- -Ou il fait si bon s'activer au farniente sur les chaises longues sous le  soleil de la  Provence. ou à l'ombre de la glycine  et du grand pin.- -Laissez vous prendre par la douceur du lieu avec ses murs millénaires, le perpétuel clapotis de l'ancien lavoir et cette sensation de paradis terrestre.- -Une piscine découvrable blotties entre les murs ocres. - -Avec sa couverture haute amovible, le plaisir de la baignade est réel.- -Prenez votre copieux petit-déjeuner sur la terrasse surplombant la piscine ou dans l'ancienne salle de restaurant.--15 chambres charmantes aux décors chatoyants- -Toutes rénovées dans le respect de l'histoire du lieu.-vastes calmes confortables chaleureuses ravissantes...Toutes différentes, toutes authentiques- -Le charme de l'ancien et les agréments d'un hôtel d'exception et de tradition.-Toutes nos chambres sont équipées de douche ou bain, WC, TV, téléphone... -certaines ont le WC séparé de la salle de bain. Les plus spacieuses ont un séche-cheveux - -Un somptueux mariage de couleurs- -votre chambre s'ouvre soit :-sur la pittoresque place du Marché sur les ruelles du village sur les toits sur des cours intérieures un balcon privatif une terrasse",null,null,"les arcades le lion ;26;hôtel-restaurant;buis"]
[null,587,"L'HACIENDA","Discotheque","26-Drome","Sauzet"," -L'Hacienda-Quartier Pavon-26740 Sauzet-4 Salles, 4 Ambiances-RetroDiscoSixtiesL'Etage -",null,null,"l'hacienda;26;discotheque;sauzet"]
[null,593,"LA FERME","Discotheque","26-Drome","Chateauneuf du rhone"," -CLUB LA FERME-Quartier le Pélican-26780 CHATEAUNEUF DU RHONE-",null,null,"la ferme;26;discotheque;chateauneuf"]
[null,598,"LE JABRON","Hôtel/Restaurant","26-Drome","La begude de mazenc","L'Hôtel-Restaurant Le Jabron ** est situé à la sortie du village <st1:PersonName w:st=~on~ ProductID=~La Bégude~>La Bégude de Mazenc, entouré par les champs de lavande et bénéficiant du micro climat réputé de Dieulefit. - -<st1:PersonName w:st=~on~ ProductID=~La Bégude~>La Bégude est idéalement située pour vous permettre de découvrir tous les charmes de <st1:PersonName w:st=~on~ ProductID=~la Drôme. De~><st1:PersonName w:st=~on~ ProductID=~la Drôme.~>la Drôme. De la terrasse ombragée par les platanes vous pourrez admirer les collines de la drôme provençale. Chaleur humaine, convivialité, bonne table, toute l'équipe du Jabron saura vous accueillir et vous faire partager la qualité de vie et l'environnement unique qu'elle a trouvé dans <st1:PersonName w:st=~on~ ProductID=~la Drôme.~>la Drôme.- -Vacances actives, culturelles, ou ludiques. Nous vous aiderons à découvrir <st1:PersonName w:st=~on~ ProductID=~la Drôme Provençale~>la Drôme Provençale à pied, à vélo, à moto ou bien à cheval.-Tout est possible...-",null,null,"le jabron;26;hôtel-restaurant;la"]
[null,603,"HOTEL DU COMTE **","Hôtel","26-Drome","Suze la rousse","Hôtel du Comte **- -Entre Comtat Venaissin et Dauphiné, siège de l'Université du Vin, Suze la Rousse offre les trésors de <st1:PersonName ProductID=~la Drôme Provençale.~ w:st=~on~>la Drôme Provençale. Dans le calme et le confort de l'Hôtel du Comte, laissez vous séduire par le château de Suze et de Grignan, les olives de Nyons, les truffes du Tricastin, les vignobles des Côtes du Rhône et des Coteaux du Tricastin. - -Pour votre confort les onze chambres de l'hôtel sont équipées de bain/douche et WC, téléphone direct, TV couleur. Jardin ombragé, parking privé et piscine.- -Votre maison à l'hôtel : dans le cadre du parc de l'hôtel, un appartement de <st1:metricconverter ProductID=~90 m²~ w:st=~on~>90 m², tout confort. Deux chambres, deux salle-de-bains, cuisine équipée, salle à manger, salon, terrasse privée. Accès direct à la piscine, aux jardins et jeux d'enfants. Pour 4 à 6 personnes. Convient à une famille ou à des proches. Location à la semaine.- -Aux portes de Suze la Rousse, vous découvrirez Saint-Paul-Trois-Châteaux et sa cathédrale du XIIe siècle, <st1:PersonName ProductID=~La Garde Adhémar~ w:st=~on~>La Garde Adhémar petit village médiéval, Grignan et son château rendu célèbre par la Marquise de Sévigné, Saint-Restitut et ses Caves Cathédrales, l'Abbaye Notre-Dame d'Aiguebelle...- -HOTEL DU COMTE **-Route de Bollène-26270 SUZE LA ROUSSE-",null,null,"hotel du comte **;26;hôtel;suze"]
[null,604,"LA BADIANE","Hôtel/Restaurant","26-Drome","Montauban sur l'ouveze","-La Badiane-La Provence avec un zeste d’Orient- -Au coeur de la région des BARONNIES en DRÔME PROVENCALE- -Restaurée et aménagée avec élégance et une pointe d'originalité aux influences orientales, cette bergerie surprend toujours le visiteur.- -Située au coeur d'une nature exceptionnelle, son équipement et aménagement sont entièrement dévoués à votre bien-être et votre confort.- -Piscine panoramique et chauffée, hammam-Sauna.-Massages sur demande.-Ambiance conviviale et chaleureuse.- -En plus d'un accueil soigné et individuel, nous proposons tout au long de l'année des séjours bien-être à thèmes autour du massage.- -La Badiane-Hameau de Ruissas-26170 Montauban sur l'Ouvèze-",null,null,"la badiane;26;hôtel-restaurant;montauban"]
[null,609,"Parc Le Petit Cirque","parc d'attraction","26-Drome","Chateaudouble","Le Petit Cirque-La Compagnie du West-Garaland/Le Grand Lierne-26120 Chateaudouble-Au  pied du Vercors à quelques kilomètres de Valence dans la Drôme , ce Parc de loisirs de 12000 m2 est installé au coeur du bois Garaland, totalement aménagé et sécurisé.-Le Petit Cirque vous propose un accueil de qualité, une infrastructure originale en parfaite harmonie avec la nature. De multiples activités pour les petits et les grands à découvrir en famille ou entre amis.--* Chaque jour d'ouverture  *SPECTACLE DE CIRQUE* à 16 h 00, sous le chapiteau des artistes.- -- -",null,null,"parc le petit cirque;26;parc;chateaudouble"]
[null,617,"Laser Game Le Complex Indépendant","Loisir/Sport","26-Drome","Montelimar"," -Le Complex-4 Place Sarda-26200 Montélimar-",null,null,"laser game le comple;26;loisir-sport;montelimar"]
[null,625,"L'OPERA","Discotheque","07-Ardèche","Lamastre","L'Opéra-1 Faubourg Reyne-07270 LAMASTRE-Généralist club-htpp://loperadiscotheque.skyrock.com-lopera-club discotheque/facebook- -",null,null,"l'opera;07;discotheque;lamastre"]
[null,629,"DISCOTHEQUE CHATEAU LACOUR","Discotheque","07-Ardèche","Saint agreve","-Chateau Lacour--Pub - Discothèque-Salle de Concerts-Lacour-07320 SAINT-AGREVE-Site : www.chateau-lacour.com-Ouvert Vendredi, Samedi-et veilles de jours de Fetes--",null,null,"discotheque chateau ;07;discotheque;saint"]
[null,631,"LA BODEGA","Discotheque","07-Ardèche","Le cheylard"," -La Bodega-Avenue de Jagornac-07160 Le CHEYLARD- -",null,null,"la bodega;07;discotheque;le"]
[null,636,"Auto Méca ","Location de voitures","26-Drome","Chateauneuf sur isere","Vous souhaitez louer un véhicule pour une durée supérieure à 1 mois, pensez AUTO-MECA.-    -La location mensuelle renouvelable comporte de nombreux avantages :-Véhicules assurés et entretenus par nos soinsVéhicules de remplacementRenouvellement périodique des véhiculesPossibilité de suspendre le contrat en cas d'inactivitéChoix du véhicule (tous types, utilitaires et tourisme)Loyers déductibles des revenusPas d'immobilisation au niveau du bilan de l'entreprise.",null,null,"auto méca ;26;location;chateauneuf"]
[null,638,"SIXT LOCATION DE VOITURES","Location de voitures","26-Drome","Valence","au centre ville de Valence, 24 rue Chevandier (face à la gare)<FONT size=+0>Véhicules utilitaires, véhicules de tourismeMinibus 9 places... A vous de choisir.-SIXT LOCATION DE VOITURES-Valence Centre-24 Rue Chevandier-26000 Valence--",null,null,"sixt location de voi;26;location;valence"]
[null,639,"GOLF CLUB DU BEAUJOLAIS","GOLF","69-Rhone","Lucenay","A 20 Km au nord de Lyon, les abords du golf offrent aux joueurs la vision de vallons aux vignes bien alignées et de villages aux pierres dorées. Les golfeurs auront beaucoup de plaisir à se retrouver dans le club house installé dans une importante demeure Beaujolaise en pierres du pays, et à déguster dans son caveau les 10 crus sélectionnés par le club. Le parcours est agréable au jeu, technique, accessible pour tous les niveaux. Des obstacles d'eau latéraux sont présents sur 8 trous, les greens sont vastes, les surfaces travaillées. Grâce au drainage et au vallonnement, on peut jouer tout l'hiver sur des départs et des greens d'été.-Cette formule s'adresse à des personnes qui sont totalement débutantes mais qui souhaitent découvrir le golf et en essayer les différents coups.Pour cette première approche, nous mettons à leur disposition un ou plusieurs enseignant du Club. (Nous pouvons encadrer des groupes de 5 à 80 personnes)Débutant Individuel : Elle est réservée aux nouveaux joueurs qui souhaitent s'initier et se former en toute tranquillité à ce nouveau sport. Un forfait vous est proposé pour une durée de trois mois vous permettant de bénéficier: demi-heures de leçons particulières avec l'un de nos enseignants:  Pierre MALARTRE , Thierry MERLE,  Paul Der Kazarian (du prêt du matériel)avantages de cette formule sont : des cours particuliers où l'enseignant se consacre uniquement à vous, par opposition à des cours collectifs, asssurément moins efficaces. -Golf Club du Beaujolais -69480 LUCENAY - ANSE-",null,null,"golf club du beaujol;69;golf;lucenay"]
[null,649,"CASINO DE VALS LES BAINS","Casinos","07-Ardèche","Vals les bains"," -100 machines à sous de 0.2 à 2 euros  7j/7 dès 12hRoulette Anglaise et Black Jack           7j/7 dès 21h (20H vendredi, samedi, dimanche)Texas Hold'em Poker                         Fermé le mercredi, jeudi -Casino de Vals-les-Bains-Avenue Claude Expilly-07600 Vals les Bains-",null,null,"casino de vals les b;07;casinos;vals"]
[null,650,"FITNESS AVENUE","Clubs de forme","26-Drome","Portes les valence","Espace Fitness  Cours collectifs musculaire et cardio vasculaire sur parquet flotant. Le meilleur moyen pour améliorer sa forme et combattre les calories. Une ambiance assurée et une musique emvoutante vous permettront de vous depasser. - Le cardio trainning favorise votre condition physique en niveau respiratoir. Des appareils spécifiques sont a votre disposition, programmables et personalisés. Ils s'adapteront à votre condition et favoriseront vos résultats.- Notre espace musculation, dernière génération, permet un travail musculaire sur  toutes les parties du corps. Le matériel adapté a chacun possède un chargement par tirette. Pratiquer de la musculation c'est, changer son apparence corporelle, se tonifier, s'affiner, se sculter.-Notre piscine, chauffée toute l'année a 30°, vous permettra de nager et de profiter des bienfaits de l'eau. Les buses de massage balnéo vous permetteront de vous détentre, de vous tonifier et faciliteront votre circulation sanguine.-Cours d'aquadynamic, l'évolution de l'aqua gym, plus rythmés et plus tonic, il mèle tonus et vitaliter sans impact. S'adapte à tout age et procure des résultats impréssionnants.-Conseillé à tout ages. Gymnastique effectuée dans l'eau, l'état d'apesanteur partiel permet d'effectuer des mouvements tout en douceur, mais aussi avec une certaine résistance, favorisant l'éffort sans traumatismes.-Bain de vapeur chauffé à 45°, parfumé à l'eucalyptus d'origine orientale. Le hammam est trés relaxant et permet l'élimination des toxines par la transpiration qu'il génére. Il adoucit la peau. ",null,null,"fitness avenue;26;clubs;portes"]
[null,654,"VELLY INSTITUT","Clubs de forme","26-Drome","Valence","50 ans d'expérience-Musculation - fitness-Entrainement personnalisé-Suivi individuel-Velly Institut -1 rue des Repenties-26000 VALENCE -",null,null,"velly institut;26;clubs;valence"]
[null,655,"Auberge la Tour de Brisson","Hôtel/Restaurant","07-Ardèche","Sanilhac","Auberge la Tour de Brisson **- -L'Hôtel ** offre tous les services pour rendre votre séjour en Ardèche le plus agréable :-Chambres climatisées (3, 4 et 5 personnes), Chambres communicantes, Chambres avec mezzanines, Téléphone - Accès Numéris, Ascenseurs, Baignoires Balnéo, Douches Hydrojets, Tennis (courts en terre battue), Ping-Pong, Piscine chauffée 16 X 6 m + petit bain, Restaurant, Salle de conférence, Réception de Séminaires.- -L'hébergement est gratuit pour les enfants de moins de deux ans.-",null,null,"auberge la tour de b;07;hôtel-restaurant;sanilhac"]
[null,657,"Le relais de la poste","Hôtel/Restaurant","07-Ardèche","Grospierres","Le relais de la poste : -En saison, ouvert de 7 h 30 à minuit, à partir du 7 mai au 27 août, 7 jours sur 7.-Hors saison de 10 h 30 à 14 h et de 16 h 30 à 22 h 30, fermé le samedi midi et la journée de dimanche.- - -Nos services :-Le matin-De 8 h à 11 h petit déjeuner complet. -Le midi -De 12 h à 15 h le bistro. -Le soir -De 18 h 30 à 22 h le bistro.-De 19 h à 22 h le restaurant (La terrasse arrière- Uniquement sur réservation!) - - -Le bar :-Nous vous offrons le loisir de déguster des coupes de glaces ou de boire un petit verre entre copains, devant une bonne bière, vins d’Ardèche ou une boisson rafraîchissante.- - -Le bistro :-Vous êtes friands de bonne viande ? Notre restaurant saura vous combler avec son steak frites ou son pavé de bœuf géant, son steak tartare, son carpaccio de bœuf et autres spécialités comme la carbonnade flamande, les moules - frites et bien d’autres plats… Menu du jour à partir de 11 € (le midi)- - -Le Restaurant :-Du 7 mai au 27 août ouvert tous les jours sauf le lundi soir.-La terrasse arrière- Uniquement sur réservation !- -Avec ses menus de dégustation, semi gastronomiques, Cuisine fine -Ex : Foie gras (maison) – sorbet – magret de canard – fromage – moelleux au chocolat, vin inclus.- -Pour les groupes et festivités, consultez nous pour diverses formules.-Tous les soirs, menu à partir de 11 euros...- - -Soirée Barbecue :-Chaque lundi soir à partir du 7 mai et jusqu'au 27 août : enfant 9,5 euros, adulte 15 euros -Bistro et restaurant fermés.- -Espace Jeux :-Billards, flippers et jeux tactiles-",null,null,"le relais de la post;07;hôtel-restaurant;grospierres"]
[null,659,"Le Clos Charmant","Hôtel/Restaurant","07-Ardèche","Vallon pont d'arc","Au cœur des gorges de l'Ardèche, au calme, à <st1:metricconverter ProductID=~200 mètres~ w:st=~on~>200 mètres du centre de Vallon pont d'Arc, - -Pascale et Jean-Michel vous accueillent à l'hôtel, restaurant Le Clos Charmant- -Parking privé, piscine, terrasse ombragée. - -Ses chambres entièrement rénovées : douche, wc, lavabo, sèche-cheveux, télévision...-",null,null,"le clos charmant;07;hôtel-restaurant;vallon"]
[null,660,"Grand Hôtel des Bains ***","Hôtel/Restaurant","07-Ardèche","Vals les bains","L'Hôtel ***- -Les années s'en vont, les belles maisons demeurent. Le Grand Hôtel des Bains n'a rien perdu de son cachet fin XIXème et garde encore l'écho d'une vie brillante tout en ouvrant son vaste parc ombragé à la balade romantique. Nous vous invitons à découvrir l'art de vivre de cette belle région  en vous proposant les ~Week-ends Champagne~.- -Hôtel 3 étoiles, 65 chambres à partir de 65 euros. Chiens acceptés, terrasse, jardin, piscine, salle de réunion, accès handicapés, parking, CB, AE, DC.- -Le Restaurant- -Dans le cadre agréable de la salle de restaurant, nous servons différentes formules (à choisir dans notre carte) :-Mise en bouche-entrée au choix-Plat au choix-Dessert au chois 33 eurosMise en bouche-entrée au choix-Plat au choix-Fromage au chois 36 eurosMenu dégustation : 60 eurosNos spécialités sont inventives et savoureuses. La cuisine accompagne de ses parfums légers de longs dîners sous les étoiles : médaillon de fois gras mi-cuit à la pomme, roulade de pintade en habit vert farci à la tapenade, assiette gourmande. Pour plus d'informations concernant les mariages, séminaires et accueil de groupes, cliquez ici. Le restaurant piscine ouvre l'accès gratuit à la piscine.-",null,null,"grand hôtel des bain;07;hôtel-restaurant;vals"]
[null,661,"Le Mas de mon Père","Hôtel/Restaurant","07-Ardèche","Saint jean le centenier","Dans une Bâtisse en pierres, située entre Montélimar et Aubenas , Le Mas de Mon Père vous offre une hôtellerie de qualité. Nous vous réservons un accueil chaleureux et familial.- -Le restaurant L'Alambic vous fera découvrir ne cuicine haute en couleurs.Nous vous invitons pour un voyage des rivages de la Méditerranée au Monts D'Ardèche. Laissez vous charmer par les douces saveurs et les subtils parfums du Sud de la France.- -L'Hôtel** est ouvert toute l'année, nous disposons de 13  chambres, confortables et aménagées avec soin.- -Confort :-Chambres spacieuses et confortables climatisationTéléphoneTV, Canal+, CanalSatelliteWifi gartuit dans les chambresSalle de Bains, sèche cheveuxBureau, commode, penderie Chambre à partir de 60 euros- -Restaurant- -Ouverture du restaurant du -Mardi Midi au Vendredi Soirde Samedi soir à Dimanche MidiOuverture Juillet / Août du Lundi Soir au Dimanche Midi-Possibilité pour la Samedi Midi pour les réservations groupes.- -Formule Midi à partir de 12.50 euros ( Mardi au Vendredi ) -Menu à partir de 22 euros le soir- -Séminaires et Journée de Travail : - -Salle de réunion de 55 m² à la lumière du jour. -Forfait à partir de 29 euros- -Repas de famille ou de groupe : - -Etude personnalisé de votre menu et de votre budget.-",null,null,"le mas de mon père;07;hôtel-restaurant;saint"]
[null,662,"Grand Hôtel de Lyon ***","Hôtel/Restaurant","07-Ardèche","Vals les bains","Grand Hôtel de Lyon ***- -Agréable lieu de séjour ou d'étape, l'hôtel de Lyon allie le charme de l'ancien au confort moderne, dans une ambiance chaleureuse et familiale.- -Pour la détente et les loisirs, vous pourrez profiter dès le moi de mai de la piscine, située au premier étage pour votre tranquillité, elle peut être couverte et chauffée ou de plein air selon le temps. La terrasse solarium, à la fois spacieuse et intime, vous permettra de passer de bons moments de farniente ou de lecture ; nage à contre courant, ping-pong et jeu de fléchettes sauront distraire ceux qui aiment bouger !- -Si vous êtes intéressés par un peu d'exercice, Inès vous propose gratuitement un à deux cours d'aquagym par semaine (hors juillet-août).- -Au salon, billard, coin lecture et coin télé, livres, jeux de cartes et de société sont mis à votre disposition. Le bar et la terrasse vous accueilleront pour une pause détente.- -Gratuit pour les motos, un garage fermé ainsi que deux box individuels vous permettrons de savoir votre voiture à l'abri. Devant l'hôtel plusieurs places de stationnement sont gratuites ainsi que le parking municipal situé à 50m derrière l'hôtel.- -Vous pourrez vous garer temporairement devant notre garage pour vous présenter à l'accueil ou décharger vos bagages.- -Le Restaurant- -Au restaurant Les Arcades vous sont proposés des menus soignés et variés pour vos longs séjours, une carte de spécialités et, à votre demande, des repas diététiques ou diabétiques.- -Marc se fera un plaisir de vous faire découvrir les meilleures recettes ardéchoises et de terroir. Traditionnelle et régionale, sa cuisine est préparée à base de produits locaux frais, pâtisseries et viennoiseries sont entièrement réalisées maison.- -Le petit déjeuner, en buffet, est servi, comme les repas en salle à manger ou sur notre terrasse couverte.-Riche en couleur et en saveur, simple ou raffinée, la cuisine ardéchoise saura vous faire retrouver le goût du naturel.-",null,null,"grand hôtel de lyon ;07;hôtel-restaurant;vals"]
[null,663,"Hôtel Restaurant des Marronniers **","Hôtel/Restaurant","07-Ardèche","Thueyts","Hôtel Restaurant des Marronniers **- -Menus gastronomiques régionaux -Repas d'affaires Séminaires Banquets Groupes Service jardin -Profitez de votre séjour en Ardèche, pour déguster toutes nos spécialités : charcuterie de montagne, champignons, truites, gibiers, châtaigne dans tous ses états, nougat, cerises et myrtilles feront le délice de votre palais. De nos délicieuses eaux minérales aux propriétés reconnues, en passant par nos grands crus tels le cabernet et le chardonnay, sans oublier les jus de fruits de nos producteurs locaux et la bière Bourganel nature ou aromatisée; tous sauront se faire apprécier !-",null,null,"hôtel restaurant des;07;hôtel-restaurant;thueyts"]
[null,672,"Hôtel-Restaurant Le Sarrazin","Hôtel/Restaurant","07-Ardèche","Orgnac   l'aven","Hôtel *** de l’Aven – Restaurant Sarrazin- -Au centre du village, entouré de vignobles, garrigues et chênes verts, blotti entre les Gorges de l’Ardèche et la Vallée de la Cèze, à proximité de l'Aven d'Orgnac, Grand Site de France.- -Laissez vous séduire par notre hôtel pittoresque et son restaurant de campagne où chaque saison apporte des arômes différents.-- -Que vous soyez en famille, en groupe ou simplement de passage, vous apprécierez le calme, la détente, le confort de notre hôtel où toute une équipe sympathique et conviviale vous réservera un accueil chaleureux. Leur savoir-faire et leur bonne humeur vous feront profiter pleinement de vos escapades chez nous.-",null,null,"hôtel-restaurant le ;07;hôtel-restaurant;orgnac"]
[null,677,"CENTRE EQUINOXE","Clubs de forme","26-Drome","Romans","Présentation Le concept unique et global proposé repose sur l'idée que la forme, la beauté et la détente sont avant tout un état d'esprit. --Le Centre Equinoxe est aujourd'hui la référence dans le domaine de la santé, de la beauté et du bien-être. Dans une architecture agréable et lumineuse et une ambiance conviviale, une équipe de professionnels (ostéopathes, kinésithérapeutes, conseillers sportifs, esthéticiennes, hydrothérapeutes) est à votre disposition pour faire de votre bien-être une priorité. Ici, pas de contrainte, ni de pression, vous êtes seul maître de vos envies. --Notre équipe est à votre écoute pour vous aider à améliorer votre condition physique et à affiner votre silhouette. Quand le mouvement ralentit, dénouez vos muscles dans le hammam, éliminez vos toxines avec l'enveloppement aux algues, découvrez notre gamme de massages relaxants, le bain tourbillonnant... --Lieu de détente, accueillant et chaleureux, le Centre Equinoxe vous offre de nouveaux horizons placés sous le signe de la vitalité. -Activités Institut de beauté Centre d'amincissement SPAPose d'ongle américain résine et gelClub de remise en forme fitnessProduits et services Centre d'amincissement Soins anti-cellulite Icoone Venus New LifeCellu M6-LPG Ultrasonolipolyse Electrostimulation jambes lourdesBodydrain (technique exclusive de kinésithérapie) Lymphavision Data Vein Diététique et nutritionOstéopathie Ecole du dos : souplesse et maintien Avant et après-bébé Soins anti-âge Massages relaxants aux huiles essentielles Massages de détente Kiné Réflexologie plantaire   Power Plate ImooveFitness Cardio-training Musculation Méthode Pilates Coaching fitness et minceur Soins SPA et Hydrothérapie Enveloppements aux algues Bain tourbillonnant Douche à jet Hammam individuelGommage du corps  Soins visage et corps au féminin et au masculin Beauté des mains - Beauté des piedsOnglerie : pose d'ongle, remplissage, frenshAvant soleil : UVA Epilations à la cire Epilation durable EPILARMaquillage jour et nuitServices + Conseils et programmes personnalisés minceur et fitness Bons cadeaux Remises Comités d'Entreprises partenairesEtablissement climatiséCircuit Minceur : Bilan, suivi, coaching et résultatsEquipe de professionnels Vente de la Wellbox et de matériel Anti-âge, Minceur et FitnessMarques Aloha Power PlateIcoone Imoove CourmayeurKettlerWeiderLPG Phyt's Cosmétique 100% BioKlapp cosmétiqueVenus secretVenus new life  Provence Santé 100% BioWellbox Certification, Agrément, Label Professionnels diplômés d'Etat  Horaires Ouverturedu lundi au vendredi de 9h à 20h30 -le samedi de 9h à 12h30 --Fermeture le dimanche toute la journée -Moyens de paiement Cartes Bancaires par téléphone Espèces Bons cadeaux Chèques bancaires (possibilité en 3 fois sans frais)Chèques vacances ANCV Moyens d'accès Gare SNCF à 3 mn Gare routière place Jean Jaurès à 2 mn",null,null,"centre equinoxe;26;clubs;romans"]
[null,678,"ALFAGYM","Clubs de forme","07-Ardèche","Privas","Musculation-gym-step-préparation sportive-ALFAGYM-16 Avenue deChomerac-07000 PRIVAS---",null,null,"alfagym;07;clubs;privas"]
[null,679,"BODY FORM","Clubs de forme","07-Ardèche","Roiffieux","Musculation, Cardio-Training, Gym, Step, Fitness-Power Plate, Squash, Jorky Ball, Sauna, Hammam-Abonnements ou à la séance -24H cours/semaine-Ouvert 7 jours sur 7-Du lundi au vendredi 9h - 21h-Le samedi 9h - 17h-Le dimanche 9h - 12h-",null,null,"body form;07;clubs;roiffieux"]
[null,680,"KINTHEA","Clubs de forme","07-Ardèche","Aubenas","Centre de remise en forme- Paramédical - Aquagym - Endermologie Cellu M6- LPG - Piscine de rééducation",null,null,"kinthea;07;clubs;aubenas"]
[null,681,"FITNESS' CLUB","Clubs de forme","07-Ardèche","Saint peray","-Fitness Club-rue Levant-07130 SAINT PÉRAY--",null,null,"fitness' club;07;clubs;saint"]
[null,682,"Alizéa **","Hôtel","84-Vaucluse","Avignon","Alizéa **- -Hôtel de charme dans une batisse du 18ème siècle.-Situé au coeur de la cité papale et d'une région riche en culture. - -L'hôtel Alizéa est situé face à l'Office de Tourisme, sur l'artère principale conduisant de la gare SNCF centre au Palais des Papes en passant par la place de l'horloge.- -Son personnel vous y accueillera chaleureusement 24 heures sur 24 et sera à votre disposition en cas de besoin. - -L'hôtel dispose de 20 chambres classées **, équipées chacunes de douche ou bain ainsi que d'une télévision cablée. - -En voiture -Suivre Avignon centre, entrer dans les remparts par la porte face à la gare SNCF centre. L'hôtel est à <st1:metricconverter ProductID=~200 mètres~ w:st=~on~>200 mètres à gauche.-Train-La gare centre et la navette de la gare TGV sont à <st1:metricconverter ProductID=~200 mètres~ w:st=~on~>200 mètres. -Bus -La gare routière internationale se situe à <st1:metricconverter ProductID=~300 mètres~ w:st=~on~>300 mètres de l'hôtel.-Aéroport -L'aéroport d'Avignon est à 10 minutes du centre ville.-",null,null,"alizéa **;84;hôtel;avignon"]
[null,683,"AUBERGE DE CASSAGNE ****","Hôtel/Restaurant","84-Vaucluse","Avignon","Auberge de Cassagne ****- -A l'orée d'Avignon, cachée dans une oasis de jardins verdoyants et de fontaines rafraîchissantes, l'Auberge de Cassagne, au style architectural raffiné, vous ouvre ses portes. -La particularité de cette séduisante ancienne bastide datant de 1850, classée 4 étoiles, tient dans l'alliance parfaite entre la qualité des services d'un établissement haut-de-gamme et le sentiment de venir passer quelques jours dans une maison d'hôte.-La porte franchie, une vie de douceur commence : accueil, sourires, mobilier provençal, poutres et terres cuites vous plongent peu à peu dans ~l'Art de Vivre en Provence~.- -Le Restaurant-A l'heure des repas, laissez vous séduire par l'ambiance feutrée et conviviale de la belle salle à manger rustique avec ses poutres apparentes et sa grande cheminée.-Ce restaurant de renommée internationale est reconnu dans tous les guides gastronomiques. - -Depuis 1983, au fil des saisons, notre chef Philippe Boucher vous propose, une gastronomie de tradition provençale revisitée, emprunte des richesses du terroir.- -Les Saveurs Culinaires -Avec le souci de retrouver le goût des produits simples et vrais, les assiettes jouent toutes les nuances de la palette colorée du sud, les goûts subtils et contrastés des saveurs méditerranéennes.- -Séminaires -Une maison aux charmes multiples qui vous assure la réussite de vos séminaires: des salles de réunion modulables, climatisées, à lumière naturelle pouvant être occultée, équipées de paper board, écran, rétroprojecteur, téléphone, accès internet, télévision et magnétoscope- -Les Chambres-La magie se poursuit dans les 40 chambres, dont 3 appartements et une suite.- -Là, c'est toute la Provence que vous retrouvez à travers les meubles de noyer patinés et les tissus provençaux, avec notamment des étoffes qui vous rappellent les ~indiennes~ créées au XVIII eme siècle.- - -La Piscine -Bercés par le chant des cigales, vous découvrirez alors la piscine, et les jardins qui vous entourent dans une atmosphère d'ombre et lumière.- - -Espace Fitness -Au sein du domaine ou à l'extérieur, de nombreuses activités sont proposées tout au long de l'année:-Espaces détente, jacuzzi, fitness, saunajeux de boules, ping-pong, piscine, tennis, jardins.",null,null,"auberge de cassagne ;84;hôtel-restaurant;avignon"]
[null,684,"Avignon Grand Hôtel ****","Hôtel/Restaurant","84-Vaucluse","Avignon","Chambres et Suites- -Composez un appartement à votre convenance :- -Suites-Les Suites de <st1:metricconverter w:st=~on~ ProductID=~39 m²~>39 m², certaines équipées de kitchenette, ont chacune leur harmonie de couleurs et offrent un incomparable bien-être avec leur salon et leur chambre séparés. Les salles de bains raffinées sont toutes équipées de sanitaires complets incluant cabine de douche et baignoire. Il est même possible d'ajouter un vrai lit double dans le salon de certaines suites : pour vos voyages en famille ou une utilisation de 2 lits séparés. - - -Chambres -Les Chambres, toutes équipées de lit queensize, offrent un espace de <st1:metricconverter w:st=~on~ ProductID=~20 m²~>20 m² et une salle de douche fonctionnelle, spacieuse et claire. Elles peuvent communiquer avec une suite formant ainsi un trois pièces. - - -Appartements -De plain pied ou en duplex, ils bénéficient d'un bel ensoleillement et de la vue sur les remparts de la ville. Vous trouverez dans ces appartements tout le plaisir de la convivialité avec une surface de plus de <st1:metricconverter w:st=~on~ ProductID=~60 m²~>60 m², un salon, une kitchenette, deux chambres avec un lit queensize ou deux lits, une salle d'eau et une salle de bain à l'étage.- -Restaurant un brin de goût-Nous vous accueillons du lundi au vendredi de 12h00 à 14h30 et de 19h30 à 22h30. -Pour vos repas d'affaires ou simplement pour le plaisir, venez découvrir une cuisine traditionnelle au doux parfum de Provence.-",null,null,"avignon grand hôtel ;84;hôtel-restaurant;avignon"]
[null,685,"Best Western Hôtel du Lavarin","Hôtel/Restaurant","84-Vaucluse","Avignon","L'Hôtel ***- -Le Best Western Hôtel du Lavarin vous accueille dans la magnifique région de Provence. Venez découvrir le charme et l'authenticité de notre hôtel, récemment rénové et air-conditionné.- -L'hôtel est situé à Avignon, ville fameuse pour sa cuisine et son pont ! Vous pourrez profiter pleinement de sa piscine, de son restaurant et de ses 43 chambres (donc quelques-unes non-fumeurs) au décor calme et chaleureux. Chaque chambre est pourvue d'une telévision-satellite, d'un téléphone direct, d'un sèche-cheveux et d'une prise modem.- -De la porte d'Avignon, la possibilité de visiter de nombreux monuments et de déguster le vin de pays s'ouvre à vous... N'oubliez pas que vous êtes dans le pays de la Lavande et que les parcs régionaux du Lubéron et de la Camargue sont également tout proche de l'hôtel. De quoi rendre votre visite à Avignon inoubliable.-",null,null,"best western hôtel d;84;hôtel-restaurant;avignon"]
[null,686,"Best Western Hôtel La Magnaneraie ****","Hôtel/Restaurant","84-Vaucluse","Avignon","Située sur la rive droite du Rhône, face à la cité des Papes d'Avignon, à moins de 10 mn de la gare TGV et des accès d'autoroute.-  -Ambiance discrète -Traversez le pont et venez découvrir la Magnaneraie qui vous accueille sur les hauteurs du village historique de Villeneneuve-les-Avignon (petite soeur d'Avignon), dans une ambiance discrète et raffinée. Localisation idéale pour la découverte d'une région riche d'histoire et de sites exceptionnels.-  -La piscine -Une piscine d'extérieur, ouverte dès le début du mois de Juin, où petits et grands ont leur place. Chaises longues et draps de bains sont à votre disposition.-  -Le restaurant -Lieu de calme aux multiples essences, où se révèlent les senteurs méditerranéennes dès le printemps, promenade idéale après avoir passé un agréable moment à table.- -Les Chambres- -32 chambres et suites réparties sur 3 bâtiments : la maison principale, l'aile du jardin, et celle de la piscine, dont la majorité avec balcon et terrasse.- -Equipement grand confort : climatisation à commande individuelle, salle de bain avec baignoire (plus douche ou jacuzzi selon la catégorie), téléphone, minibar, téléviseur, prise modem- - -Best Western Hôtel La Magnaneraie ****-37, rue Camp-de-Bataille-BP 115-30400 Villeneuve-lès-Avignon-",null,null,"best western hôtel l;84;hôtel-restaurant;avignon"]
[null,687,"Les cèdres","Hôtel/Restaurant","84-Vaucluse","Villeneuve les avignon","Les Cèdres-39 Avenue Pasteur-30400 Villeneuve-lès-Avignon- - - -Les cèdres - Hôtel ** -Les cèdres majestueux qui ornent le parc fleuri ont donné son nom à cette maison aux allures de castel, née à la fin du XVIIIème siècle au coeur de la Provence avignonnaise. L'escalier de pierre, les vasques de terre-cuite débordant de fleurs, les lavandes, les lauriers et autres essences méridionales respirent les doux parfums de ce pays du soleil.- -Charmeuses : les 21 chambres regardent les fleurs et les frondaisons.-Toutes sont équipées de TV, minibar, sèche-cheveux, téléphone direct.- -Le RestaurantLe restaurant vous proposera dans une ambiance décontractée et familiale, des menus traditionnels et régionaux. Service en terrasse.-- -Séminaires-L'élégant salon-bibliothèque Louis XIV devient salle de séminaire pour 15 personnes.- -Tourisme en Provence-Quelques idées d'escapades à proximité : les arènes de Nîmes et d'Arles, ou le Théâtre Antique d'Orange, l'aqueduc romain au Pont du Gard, le duché d'Uzès, les Baux de Provence et les Alpilles, le Luberon, Saint Rémy de Provence, le Mont Ventoux, la Camargue...-Visiter également Villeneuve les Avignon, le Fort Saint André, la Chartreuse, la Tour Philippe le Bel au bord du Rhône, le marché provençal le jeudi matin et la brocante le samedi matin.-",null,null,"les cèdres;84;hôtel-restaurant;villeneuve"]
[null,688,"Hôtel Clarion Cloître Saint Louis ****","Hôtel/Restaurant","84-Vaucluse","Avignon","Vous êtes en Avignon, en plein centre commerçant, culturel, historique. La ville palpite autour de vous et pourtant vous vous sentez à l'abri. Une cour de cloître, des pierres anciennes, des platanes centenaires vous entourent. Seul le bruit d'une fontaine accompagne vos pas qui résonnent sous les voûtes.- -Vous êtes dans l'espace calme et clair de l'hôtel Cloître Saint Louis.- -Notre hôtel incomparable conjugue avec bonheur grandeur du passé et pureté contemporaine. Au delà de notre décor à la fois sobre et majestueux, de notre service professionnel et polyglotte, nous offrons toutes les prestations que l'on attend pour un hôtel de notre catégorie. Notre hôtel dispose de 80 chambres et suites réparties entre le bâtiment du 16ième siècle et l'aile contemporaine inspirée de Jean Nouvel, une terrasse panoramique à la vue saisissante, d'un jardin intime et verdoyant, de salles de réception, d'une piscine, d'un parking (espace limité).- -Bien sûr notre restaurant attire le monde  par notre carte aux accents du sud et notre service qui, selon la saison et l'humeur, s'effectue dans le déambulatoire, les salles voûtées ou le jardin....- -Pour vous un seul dilemme, choisir la vue de votre chambre: le cloître paisible et ses pierres blondes, le jardin arboré, ou les toits et les monuments d'Avignon ?- -Le Cloître Saint Louis, c'est aussi une autre définition du ~romantisme moderne~...-",null,null,"hôtel clarion cloîtr;84;hôtel-restaurant;avignon"]
[null,689,"Hôtel Danieli **","Hôtel/Restaurant","84-Vaucluse","Avignon","Avignon est une ville médiévale - ancien siège des Papes - et une capitale européenne de <st1:PersonName w:st=~on~ ProductID=~la culture. Située~>la culture. Située au coeur de la Provence, elle s'étend sur une des rives du Rhône. - -L'hôtel Danieli est situé au coeur de la vieille ville, à quelques pas de la Place de l'Horloge, du Palais des Papes et du célèbre Pont d'Avignon, le Pont Saint Bénézet. L'hotel est aussi proche de tous les divertissements de la ville : commerces et boutiques, restaurants, terrasses de café,... - -Malgré sa situation centrale, le Danieli reste un lieu tranquille - toutes les chambres sont insonorisées -, à l'ambiance délassante et intime.   - -Accueil - Chambres - Accès &amp; Loisirs - Tarifs &amp; Réservations - -Hôtel Danieli-Hôtel 2 étoiles à Avignon - -17, rue de la république - 84000 Avignon - France-Tél : +33 (0)490 864 682-Fax : +33 (0)490 270 924-",null,null,"hôtel danieli **;84;hôtel-restaurant;avignon"]
[null,690,"Kyriad Palais des Papes","Hôtel","84-Vaucluse","Avignon","Avignon, carrefour, culturel et historique, est aussi le point de départ vers de nombreux sites prestigieux : le Mont Ventoux, Arles, Nîmes, Saint Rémy, Orange, le Lubéron, la Camargue... - -L'hôtel Kyriad Avignon Palais des Papes, idéalement implanté au coeur de la cité, sur la place de l'horloge en face de l'Opéra, et à deux pas du Palais des Papes, vous réserve le meilleur accueil dans le respect de la tradition provençale. Né du regroupement de certains hôtels Clarine et Climat de France, Kyriad souhaite vous offrir le meilleur équilibre entre la garantie de qualité et le charme de <st1:PersonName ProductID=~la diversité. Caution~ w:st=~on~>la diversité. Caution d'un grand réseau avec des attentions privilégiées et des services en plus… - -Chaque établissement possède à la fois ces atouts et une personnalité unique. C'est pourquoi, quel que soit l'hôtel Kyriad où vous choisissez de séjourner, vous êtes certains de découvrir des caractéristiques différentes. En revanche pour le confort et pour l'accueil, chez Kyriad, c'est toujours la même qualité !-  -Avignon met un point d'honneur à sauvegarder son patrimoine architectural prestigieux dont le Palais des Papes qui domine le Pont St-Bénézet. Avignon vous accueille avec ses nombreux musées, monuments, expositions, spectacles, et circuits divers pour vous faire découvrir la Provence. -  -Curiosités et Loisirs -  -• Rocher des Doms,-• Visite de la ville en petit train,-• Marchés de Provence,-• Mini-croisière sur le Rhône,-• Descente de l'Ardèche en bateau,-• Excursions en Camargue, Nîmes, Arles, Parc du Lubéron,-• Visite des caves de Chateauneuf du Pape, Tavel, Lirac,-• Pont du Gard,-• Baux de Provence,-• Isle sur Sorgue (marché des antiquaires),-• Golf (Grand Avignon, Vedène) -  --Pour une journée pleine de vitalité, un bon petit déjeuner reste votre meilleur allié. Chez Kyriad nous l'avons bien compris. Servi tous les jours de 6h45 à 10h30 sous la forme d'un buffet très complet, il vous permet de composer votre premier repas de la journée à votre guise, et de vous régaler à volonté.-",null,null,"kyriad palais des pa;84;hôtel;avignon"]
[null,691,"MAGIQUE","Discotheque","38-Isère","Fontaine","Le Magique: discothèque, salle de concert- Java Beach : restaurant, bar, piscine- La 25ème Heure: restaurant, piano bar-",null,null,"magique;38;discotheque;fontaine"]
[null,694,"DRAC OUEST","Discotheque","38-Isère","Fontaine","-Le Magique: discothèque, salle de concert- Java Beach : restaurant, bar, piscine- La 25ème Heure: restaurant, piano bar-DRAC OUEST-135, Boulevard Paul Langevin-38600. Fontaine--",null,null,"drac ouest;38;discotheque;fontaine"]
[null,695,"JAME'S DEAN CAFE","Discotheque","38-Isère","Grenoble"," - - -Etablissement fermé-Voir établissements similaires- -",null,null,"jame's dean cafe;38;discotheque;grenoble"]
[null,697,"LE VIEUX MANOIR","Discotheque","38-Isère","Grenoble","Du jeudi au samedi inclus et veilles de fêtes- 3 salles et 3 ambiances,- soirées à thème- -Le Vieux Manoir ~l'Arkange~-~Le Club des Zétudiants~-50/52, rue St Laurent (rive droite)-38000 Grenoble--",null,null,"le vieux manoir;38;discotheque;grenoble"]
[null,705,"Car'Go Central Garage Frey Agent indépendant ","Location de voitures","26-Drome","Cliousclat","Présentation-Depuis 1973, le Garage Frey est implanté sur le secteur de Saulce sur Rhône. Une véritable équipe de professionnels au service de votre véhicule formée aux dernières innovations pour vous garantir un travail de qualité. Pour toutes demandes, n'hésitez pas à nous contacter aussi bien dans notre garage que sur notre site internet: www.garage-frey.com-",null,null,"car'go central garag;26;location;cliousclat"]
[null,716,"L'EPSILON","Discotheque","38-Isère","Izeron"," -L'Epsilon-Chagneux-38160 IZERON- -",null,null,"l'epsilon;38;discotheque;izeron"]
[null,727,"Auto Méca ","Location de voitures","26-Drome","Montelimar","Vous souhaitez louer un véhicule pour une durée supérieure à 1 mois, pensez AUTO-MECA.-    -La location mensuelle renouvelable comporte de nombreux avantages :-Véhicules assurés et entretenus par nos soinsVéhicules de remplacementRenouvellement périodique des véhiculesPossibilité de suspendre le contrat en cas d'inactivitéChoix du véhicule (tous types, utilitaires et tourisme)Loyers déductibles des revenusPas d'immobilisation au niveau du bilan de l'entreprise.",null,null,"auto méca ;26;location;montelimar"]
[null,728,"Auto Méca ","Location de voitures","26-Drome","Valence","Vous souhaitez louer un véhicule pour une durée supérieure à 1 mois, pensez AUTO-MECA.-    -La location mensuelle renouvelable comporte de nombreux avantages :-Véhicules assurés et entretenus par nos soinsVéhicules de remplacementRenouvellement périodique des véhiculesPossibilité de suspendre le contrat en cas d'inactivitéChoix du véhicule (tous types, utilitaires et tourisme)Loyers déductibles des revenusPas d'immobilisation au niveau du bilan de l'entreprise.",null,null,"auto méca ;26;location;valence"]
[null,732,"HOTEL SAINT GEORGE **","Hôtel","84-Vaucluse","Avignon","HOTEL SAINT GEORGE ** - AVIGNON -12, traverse de l'Etoile  84000  AVIGNON- -Bel hôtel proche du centre historique. patio exterieur pour petit dejeuner selon saison.- -Nous vous proposons 21 chambres agréables et confortables avec téléphone direct, télévision câblée, salle de bains, douches et W-C. - -Petit déjeuner servi en salle ou sur la terrasse. - -Parking privé fermé. - -M. et Mme Duchemin vous réserveront leur meilleur accueil. - -Notre coin détente et petit-déjeuner avec vue en trompe-l'œil sur patio est un espace accueillant. - -Votre étape sera chargée d'histoire, l'hôtel se trouvant à 3 mn des Remparts (800 m) et de l'animation d'Avignon intra-muros.-",null,null,"hotel saint george *;84;hôtel;avignon"]
[null,733,"Hôtel ACACIA","Hôtel","84-Vaucluse","Le pontet","L'hôtel ACACIA **- -L'hôtel ACACIA vous accueille en Provence. Au coeur du PONTET nous sommes situés face à l'église, à proximité du château de Fargues et l'hippodrome de Roberty.    - -La situation géographique de l'hôtel ACACIA vous permet de vous rendre en quelques minutes seulement dans <st1:PersonName w:st=~on~ ProductID=~la Cité~>la Cité des Papes et à proximité du Golf du Grand Avignon et du Golf de Chateaublanc et à proximité des principaux sites pronvençaux, Orange, Luberon, Ventoux, Nîmes, Camargue, Vaison la Romaine, St Rémy, Les Baux de Provence...- -34 AVENUE GUSTAVE GOUTAREL-84130 LE PONTET-",null,null,"hôtel acacia;84;hôtel;le"]
[null,734,"Régina","Hôtel","84-Vaucluse","Avignon","Hôtel Régina **-6 Rue de la République-84000 Avignon- -Entre le Palais des Papes et les Remparts, l’hôtel Regina de Serge Resplendy vous offre un véritable fauteuil d’orchestre sur le spectacle de la ville.- -Situé au cœur de la cité d’Avignon, l’hôtel Régina 2* vous propose 30 chambres, à deux pas de la Place de l’Horloge et du Palais des Papes. - -Vous pourrez apprécier le petit déjeuner continental à volonté, en salle ou dans votre chambre.- -Les chambres sont équipées de salle de bains ou douche, TV couleur, TPS, téléphone. Certaines chambres ont la climatisation.- -Stationnement aux alentours (tarif spécial pour le parking du Palais des Papes).- -",null,null,"régina;84;hôtel;avignon"]
[null,736,"Bonsai Hotel *","Hôtel","84-Vaucluse","Avignon","Bonzaï Hôtel *- -Arbre miniature, originaire de la Chine,-le Bonsaï fut le symbole de l'harmonie entre le ciel et la terre, entre l'homme et la nature.-Il est le lien entre Dieu et les hommes pour les moines bouddhistes...-~Escalier verdoyant conduisant au ciel~.-Au cours de la Dynastie Song, le bonsaï qui représente la noblesse et le raffinement dans l'art de vivre, a donné naissance à une abondante littérature poétique.-C'est au 10e siècle que le Bonsaï est introduit au Japon par les moines bouddhistes Zen.-Véritable philosophie de l'art de vivre, le Bonsaï signifie:-Détente, repos et équilibre intérieur.-",null,null,"bonsai hotel *;84;hôtel;avignon"]
[null,737,"Roques ***","Hôtel","30-Gard","Les angles","-Hôtel Roques ***-30 AVENUE DE VERDUN-30133 LES ANGLES--",null,null,"roques ***;30;hôtel;les"]
[null,739,"Le Magnan","Hôtel/Restaurant","84-Vaucluse","Avignon","Le Magnan **- -Coup de coeur assuré pour ce charmant hôtel au coeur d'Avignon !- -Réservez votre hôtel dans un îlot de verdure en ville à l'intérieur des Remparts. 31 chambres, la plupart sur le jardin, toutes équipées de bain ou douche, wc, téléphone, prise ordinateur, accès WI-FI, réveil automatique, TV (canal +, canal Sat), très calmes.- -63 RUE PORTAIL MAGNANEN-84000 AVIGNON-",null,null,{"$f":"SUBSTITUTE(LOWER(LEFT(C132,20) & \";\" & LEFT(E132,2) & \";\" & IFERROR(LEFT(D132,SEARCH(\" \",D132)-1),D132) & \";\" & IFERROR(LEFT(F132,SEARCH(\" \",F132)-1),F132)),\"/\",\"-\")","v":"le magnan;84;hôtel-restaurant;avignon"}]
[null,740,"Le Louvre","Hôtel/Restaurant","84-Vaucluse","Orange","Le Louvre ***- -Une institution de l'hôtellerie Orangeoise ! L'Hôtel Le Louvre propose à ses clients un établissement entièrement rénové et climatisé.- -En toute saison, nous nous ferons un plaisir de vous accueillir à notre bar ou dans notre salon ou sur notre terrasse extérieure.- -Vous apprécierez notre copieux petit déjeuner buffet dans une salle conviviale et chaleureuse ou, dès les beaux jours, en terrasse au bord d’une petite piscine balnéo.-- -LES CHAMBRES- -L'Hôtel Le Louvre vous propose 32 chambres équipées de bain ou douche, WC, climatisation, télévision avec canal+ et coffre fort.-- -LE RESTAURANT- -Notre Restaurant Les Jardins de l'Orangeraie vous propose toute l'année sa cuisine française et régionale de qualité.- -Notre chef Jean-Pierre Truchot se fera un plaisir de vous préparer sur demande vos repas de groupes ou de réunion de famille. N'hésitez pas à nous contacter. -- -Restaurant Les Jardins de l'Orangeraie-89, Avenue Frédéric Mistral-84100 Orange-Tel : +33.(0)4.90.34.74.32-",null,null,"le louvre;84;hôtel-restaurant;orange"]
[null,741,"Campanile Orange","Hôtel/Restaurant","84-Vaucluse","Orange","Campanile Orange **- -Sortie orange centre, numéro 21 sur A7, après péage suivre à gauche la D17 route de Caderousse 1er feu a gauche puis de nouveau a gauche a <st1:metricconverter ProductID=~50 mètres~ w:st=~on~>50 mètres. Notre hôtel est situé a <st1:metricconverter ProductID=~500 mètre~ w:st=~on~>500 mètre du centre ville et a 2 km de la gare, de nombreux lieux touristiques sont a visiter près de notre hôtel, nous mettons a disposition des brochures pour découvrir la Provence.- -Chambres: 44. Chaîne d'hôtels: Campanile, Louvre Hotels.-",null,null,"campanile orange;84;hôtel-restaurant;orange"]
[null,742,"Les Bories","Hôtel/Restaurant","84-Vaucluse","Gordes","-Hotel Les Bories ****-Route de l'abbaye de Senanque-84220 GORDES- -",null,null,"les bories;84;hôtel-restaurant;gordes"]
[null,744,"Domaine de la Petite Isle","Hôtel/Restaurant","84-Vaucluse","L'isle sur la sorgue","Domaine de la Petite Isle ***- -Situé au partage des eaux de la Sorgue, à proximité du Luberon (env.10 kms), à cinq minutes de l'Isle sur la Sorgue, LE DOMAINE DE LA PETITE ISLE vous offre la tranquillité de ses jardins sur un espace de deux hectares en bord de rivière.  -Hôtel Climatisé..- -Bar - Restaurant - Deux Piscines -Bord de rivière - Parking fermé - Personnel trilingue ( Français, Anglais, Allemand) - Chambres avec accès pour les handicapés. - - -ACTIVITES-Pêche à la moucheEquitation et Golf à proximitéAntiquitésVestiges et monuments historiquesFestival d'AvignonOpéra dans les arènes romaines d'Orange et de NimesOffice du tourisme : loisirs et spectacles",null,null,"domaine de la petite;84;hôtel-restaurant;l'isle"]
[null,745,"Hôtel du Fiacre","Hôtel","84-Vaucluse","Carpentras","A Carpentras dans le département du Vaucluse, au pied du Mont Ventoux, se situe L'HÔTEL DU FIACRE au coeur de la ville.- -Découvrez le charme, la tranquillité grâce à son patio et le caractère d'un ancien hôtel particulier du XVIIIème siècle en plein centre de Carpentras.- - -Hôtel du Fiacre ** - <st1:PersonName ProductID=~La Région~ w:st=~on~>La Région- -Les marchés de Carpentras : Tous les vendredi matin : marché provençal dans tout le centre ville, le plus important du département et considéré comme le plus beau de la ProvenceTous les dimanche aux allées Jean Jaurès à partir de 11 H : marché à la brocanteMarché aux truffes : de novembre à la fin mars le vendredi matin, rendez-vous place Aristide Briand à la recherche du diamant noir  -Pour découvrir les marchés de Provence, nous tenons à votre disposition une liste des marchés hebdomadaires du département.-",null,null,"hôtel du fiacre;84;hôtel;carpentras"]
[null,746,"Inter Hotel Du Parc","Hôtel","84-Vaucluse","Cavaillon","Inter Hotel Du Parc **- -Maison de maître du XIXe siècle, centre ville, au calme, au pied de la colline Saint-Jacques. L'été les fontaines du patio procurent fraîcheur et sérénité. Les 40 chambres sont tout confort, équipées de salle de bain, climatisation, téléphone et chaînes internationales. -Parking et garage privé -Emplacements autobus. -Supplément animal : 5 EUR. -Réception ouverte de 7h à 22h. - - -Chambres: 40. Chaîne d'hôtels: Inter-hotel.-",null,null,"inter hotel du parc;84;hôtel;cavaillon"]
[null,748,"Residence Provence Country Club ***","Hôtel","84-Vaucluse","Orange","Residence Provence Country Club ***- -Vacances en Provence-Vous souhaitez passer des vacances idylliques en Provence, alors regardez attentivement notre résidence Provence Country Club, à Isle sur la Sorgue, située dans un cadre magnifique et offrant de superbes opportunités pour les golfeurs ! Les appartements sont entièrement équipés, et ont tous une terrasse ou un balcon. De plus, vous bénéficiez d’un accès gratuit à la piscine de la résidence.- -En revanche, si vous recherchez un hôtel, vous serez certainement attires par les Appartements du Club, situés à proximité de la résidence Provence Country Club. Le petit déjeuner est inclus dans le prix, et vous avez accès à la piscine, au bar, au restaurant et au Club House. Vous ne pourrez oublier ces vacances passées dans une des plus belles régions de France !- -Avec des années d’expérience, Eurogroup connaît les attentes des clients, et c’est pour cette raison que vous ne pourrez être déçus. L’hôtel et les Appartements conviendront à tous les budgets. Réserver votre séjour en Provence en ligne maintenant ou contacter notre centrale de réservation pour plus d'information-",null,null,"residence provence c;84;hôtel;orange"]
[null,750,"FASTHOTEL","Hôtel/Restaurant","84-Vaucluse","Le pontet","FASTHOTEL AVIGNON NORD LE PONTET- -Le Fast Hotel est situé en périphérie d'Avignon au bord des grands axes. En voyage daffaires ou sur la route de vos vacances, vous trouverez un séjour sympathique pour un prix économique. L'accueil sera toujours chaleureux par des hoteliers qui vous reçoivent chez eux avec la sécurité d'une chaîne. nous vous proposons 48 chambres tout confort à petits prix.- -Vous trouverez tout le confort d'un hotel moderne. -Un garage fermé sera à votre disposition ainsi qu'un distributeur de clés 24/24 pour les arrivées tardives.-",null,null,"fasthotel;84;hôtel-restaurant;le"]
[null,757,"Campanile","Hôtel/Restaurant","84-Vaucluse","Bollene","Notre Hôtel est parfaitement situé à seulement 1.5 km du centre ville de Bollène. Bollène est une ville aux richesses architecturales, naturelles et culturelles.- -Equipements et prestations Hôtel Campanile :- -Nombre de chambres total : 39- -Confort :-Restaurant : Proche de la sortie Bollène sur la A7, sur la route des vins l'hôtel Campanile vous accueille dans l'une de ses 39 chambres climatisées.-",null,null,"campanile;84;hôtel-restaurant;bollene"]
[null,759,"LE K'DOC","Discotheque","38-Isère","Grenoble"," -LE K'DOC-29, rue Pierre Sémard-38000 Grenoble- -",null,null,"le k'doc;38;discotheque;grenoble"]
[null,761,"Hôtel Etap","Hôtel","84-Vaucluse","Bollene","Hôtel Etap- -Equipements et prestations Hôtel Etap Hôtel-Nombre de chambres total : 60- -Equipements :-Personne à mobilité réduite, Groupe accepté, Accueil individuel, Accueil famille, Accueil scolaires, Animaux admis avec supplément, Proche ville, village, périphérie, Parking autocars, Proche sortie autoroute, Parking fermé ou gardé, Chambre avec télévision, Chambre avec radio, Terrasse, Parc ou jardin,-",null,null,"hôtel etap;84;hôtel;bollene"]
[null,763,"Hôtel Formule 1","Hôtel","84-Vaucluse","Bollene","Hôtel Formule 1- -Nombre de chambres total : 62-",null,null,"hôtel formule 1;84;hôtel;bollene"]
[null,775,"ETAP HOTEL Cavaillon","Hôtel","84-Vaucluse","Cavaillon"," -ETAP HOTEL Cavaillon -175, Avenue du Pont-84300 CAVAILLON- -",null,null,"etap hotel cavaillon;84;hôtel;cavaillon"]
[null,777,"Ibis Luberon","Hôtel/Restaurant","84-Vaucluse","Cavaillon"," -Hôtel Restaurant Ibis -175 avenue du Pont-84300 Cavaillon- -",null,null,"ibis luberon;84;hôtel-restaurant;cavaillon"]
[null,786,"Campanile","Hôtel/Restaurant","84-Vaucluse","Le pontet","Description Hôtel Restaurant Gril Campanile- -Notre Campanile est idéalement situé dans la charmante ville de Le Pontet, à seulement 4 km du centre d'Avignon. L'hôtel Campanile, vous séduira par son atmosphère conviviale, son confort et ses prix attractifs.-",null,null,"campanile;84;hôtel-restaurant;le"]
[null,787,"La Bastide Rose","Chambres d'Hôtes","84-Vaucluse","Le thor","Une maison d’Amis-Ce n’est pas un hôtel mais une maison d’amis où chacun peut choisir entre discrétion et convivialité.- -Poppy Salinger et son fils Emmanuel de Menthon sont fiers d’accueillir leurs hôtes comme des amis personnels. Cette maison provençale traditionnelle est une retraite idéale pour les amoureux du calme, de la nature, de la musique, du théâtre ou des antiquités.- -Aux portes du Luberon-Merveilleusement bien située, aux portes du Luberon, à 20 minutes d’Avignon et de son TGV et à deux pas de l’Isle-sur-la-Sorgue, cette bastide, dont les murs en partie sont du XVIIe siècle, vous accueillera dans ses cinq chambres (dont une à mobilité réduite), ses deux suites et son Cottage. Nichée au creux d’un coude de la Sorgue, au milieu des champs agricoles, la maison est bordée par un canal qui s’éloigne ensuite sous le bâtiment central qui fût une papeterie au XIXe siècle, puis marbrerie au XXe siècle. Entre le canal et la rivière s’étend une retraite idyllique, « l’île » plantée d’arbres fruitiers qui se termine par un barrage dont les eaux poissonneuses font le délice des pêcheurs.--Le côté ouest de la maison borde une grande cour carrée typiquement provençale.-",null,null,"la bastide rose;84;chambres;le"]
[null,789,"Le Moulin de Lourmarin","Hôtel/Restaurant","84-Vaucluse","Lourmarin","Hôtel Restaurant le Moulin de Lourmarin- -Le Hall-S'attachant à retrouver la spontanéité ancestrale du langage de la nature, Édouard Loubet élabore une cuisine libérée de toutes références, où la pureté du goût et la simplicité jouent pleinement leurs pouvoirs expressifs.- -La Terrasse-Illuminé comme au temps des vieilles ruelles, son patio accueille une treille ombragée sous le figuier ou bien le magnolia... On entend encore l'eau qui s'écoule du Vieux Moulin pour rafraîchir le service de notre équipe jeune et dynamique.- -Les Chambres-En plein cœur du Luberon, 19 chambres et suites, pour un séjour aux couleurs de Provence. Les tons sont ocres, bleus ou blancs pour des pièces à vivre, lumineuses et gaies. Les fenêtres sont grandes ouvertes sur le village, le château ou le massif du Luberon.-L'ancien Moulin à Huile du XVIIIe siècle, est aujourd'hui un Hôtel de charme et de caractère.- -Le Restaurant-En 2005 Edouard Loubet transfère son restaurant gastronomique doublement étoilé à La Bastide de Capelongue**** à Bonnieux en Provence et propose au Moulin de Lourmarin son Comptoir d'Edouard ~Café Restaurant Traiteur Epicerie Patisserie~. Une table Café - bistrot aux prix plus sages. Ce concept se prolonge avec une patisserie &amp; boulangerie à l'ancienne, tant par la décoration que par les recettes de pains, pâtisseries et mets salés élaborés sur place. Enfin le Comptoir traiteur fait la part belle aux charcuteries, petits farcis provençaux, belles tartines, tians...avec un coin rôtisserie. - -Les Recettes-Grosse Gambas piquée de Vanille, Sauté de Poires au Gingembre- -Ingrédients pour 6 personnes: 6 grosses gambas décortiquées (taille 6 au kilo), 4 gousses de vanille, 6 petites poires épluchées et coupées en deux, 100g de beurre, 50g de gingembre taillé en julienne, 18 grainds de cardamome, 1c à café de sucre, 300g de jus d'orange, 50g d'huile d'olive (+ 20g pour la cuisson), assaisonnement.- -Couper 3 gousses de vaille en 18 morceaux. Clouter les queues de gambas décortiquées en laissant dépasser la vanille de moitié. Cuire les poires avec 1/4 litre d'eau, 50g de beurre, le gingembre, le sucre, la cardamome jusqu'à complète évaporation. Les poires doivent être alors fondantes et bien se tenir. Si nécessaire, prolonger la cuisson en ajoutant un peu d'eau.Caraméliser les poires sur chaque face dans leurs sucs de cuisson, jusqu'à l'obtention d'une couleur dorée.Réduire de moitié le jus d'orange, l'huile d'olive, 50g de beurre et la dernière gousse de vanille fendue. La sauce devient alors nappante. Poêler les gambas assaisonnées sur chaque face, en gardant leur coeur rosé. Dans chaque assiette, déposer 2 1/2 poires. Dessus dresser les gambas et napper de sauce. Décorer d'un bouquet de fenouil séché, attaché avec du raphia. -Bon appétit !-",null,null,"le moulin de lourmar;84;hôtel-restaurant;lourmarin"]
[null,790,"Le Domaine des Tilleuls ***","Hôtel","84-Vaucluse","Malaucene","Le Domaine des Tilleuls ***- -Au pied du mont Ventoux à Malaucène, Vaucluse, au sein d'un village typique de Provence, le Domaine des Tilleuls, hôtel*** de charme et de prestige, vous accueille dans un grand parc arboré avec piscine, parking privé. Idéal pour le tourisme d'affaires, les séminaires d'entreprise, les week-end en amoureux.- -Voyages, vacances, séjours, week end ou séminaires, venez profiter du calme et de la sérénité du lieu mais aussi de la région. Vaison la Romaine, Carpentras, Orange, Avignon... La Provence.- -Vous apprécierez l'espace, la piscine et sa plage, les jeux d'enfants, le terrain de boules, la terrasse et le parking privé. Arnould et Dominique Chastel vous reçoivent avec convivialité dans le cadre unique et authentique du Domaine des Tilleuls.- -Venez séjourner à ~l'hôtel le Domaine des Tilleuls~ à Malaucene en Provence, vous ne le regretterez pas !-",null,null,"le domaine des tille;84;hôtel;malaucene"]
[null,792,"Le Roy Soleil","Hôtel/Restaurant","84-Vaucluse","Menerbes","Luxueuse et authentique demeure provençale du XVIIe siècle, face au Lubéron et au village fortifié de Ménerbes. Magie d'un vaste parc, poésie des fleurs aux couleurs tendres qui s'épanouissent à l'ombre des pins et des oliviers. Une véritable invitation au voyage, à la découverte dans le respect d'un confort traditionnel. - -Au pays des parfums, les saveurs sont reines, privilégiant la fraîcheur des produits et des senteurs du terroir. Le chef crée une cuisine exquise, adaptée à chaque moment. Si ~Le Roy Soleil~ vous séduit par son ambiance feutrée, son charme et sa convivialité, il vous surprendra plus encore par la qualité de son service qui sait être prévenant. Le soin tout particulier apporté à sa décoration traduit l'art de vivre. Le Bar et Le Salon de Thé. - -Dans ce havre de paix, ici tout est plus intense. L'azur, le silence, le bonheur semble aussi se nourrir de la beauté des lieux. On y apprend la sagesse du repos et les vertus de la gastronomie, Le Roy Soleil égrène des jours paisibles, et vous propose de partager le charme de sa vie bucolique. Une étape pour vous combler.- - -Ce lieu de prédilection de notre hôtel sert d'écrin aux 19 chambres, suites et appartements de très grand confort. La plupart possède un jardin privé au rez-de-chaussée ou une terrasse au premier étage s'ouvrant sur le Lubéron. Emerveillement chaque jour renouvelé d'un site splendide glissant vers l'horizon. Toutes les chambres ont un nom : La Vallière, Montespan, Ninon, Versailles... avec leur propre style, couleurs de tissus très frais, lits très larges, télévision satellite, mini-bar, coffre particulier, téléphone direct avec numéro privé pour chaque client.-",null,null,"le roy soleil;84;hôtel-restaurant;menerbes"]
[null,794,"HOTEL Formule 1","Hôtel","84-Vaucluse","Orange","HOTEL Formule 1- -Nombre de chambres total : 50-Confort : Proximité autoroute idéal pour étape-",null,null,"hotel formule 1;84;hôtel;orange"]
[null,795,"Hôtel le Glacier","Hôtel","84-Vaucluse","Orange","Tenu par la même famille depuis 3 générations, toujours à votre écoute, Nathalie et Philippe Baudoin vous invitent dans leur hôtel, coquet, incontournable, rénové chaque année. Au calme, sur une cours ensoleillé, le Glacier est la réunion de plusieurs maisons (garage et parkings fermés, parking public sécurisé).- -Ses différents niveaux (ascenseur), lui confèrent un charme tout particulier vous incitant à poser vos valises pour partir à la découverte d'Orange et de son exceptionnel Théâtre Antique, des fontaines et placettes d'une petite ville provençale...--Soleil, Saveurs, Senteurs et cigales rendront votre séjour inoubliable…-",null,null,"hôtel le glacier;84;hôtel;orange"]
[null,796,"ETAP HOTEL","Hôtel","84-Vaucluse","Pertuis en provence","-ETAP HOTEL- -Le Mensonger-Route d'Aix en Provence-84120 PERTUIS EN PROVENCE-",null,null,"etap hotel;84;hôtel;pertuis"]
[null,797,"COUNTRY CLUB","Vacances","84-Vaucluse","Saumane de vaucluse","RESIDENCE PROVENCE COUNTRY CLUB ****-Route de Fontaine de Vaucluse-84800 SAUMANE DE VAUCLUSE- - -A 20 minutes d'Avignon.-Un cadre exceptionnel sur le golf de Saumane, pour cette superbe résidence de très grand standing équipée d'une piscine, 2 courts de tennis et composée de petites maisons de style provençal divisées en appartements (rdc et 1er étage) situées entre le 3ème et 5ème fairway.  - -Les appartements- -Les appartements, décorés avec élégance, sont confortables, parfaitement équipés avec cuisine avec lave-vaisselle, réfrigérateur, plaques vitrocéramiques, four ou micro-ondes, terrasse ou grand balcon. A votre disposition sur place : accueil-réception, salons, salle de petits déjeuners, golf 18 trous, le club house avec bar et restaurants, jardins et terrasses. Télévision satellite avec supplément. Distance de l'Isle sur la Sorgue : 3 kms. - -La Provence - -Face au Lubéron, Saumane, village, Terre de contrastes aux senteurs délicates, la Provence, merveille de beauté, enchante dès le premier regard. Sublimés par une nature généreuse, tous les sens sont en éveil, attirés par les champs d'oliviers, de lavandes, de tournesols ou de vignes...- -Mais chut, fermez les yeux, près de vous... le chant d'une cigale signale que vous êtes en Provence ! Village provençal perché, situé entre l'Isle sur la Sorgue et Fontaine de Vaucluse domine la vallée de la Sorgue, en toute tranquillité, et offre une vue superbe sur la plaine. Le voyage se poursuit, de villages perchés en collines colorées surmontées de donjons, forteresses ou clochers provençaux...- - -Les Alentours - -Visitez l'Isle sur la Sorgue, petite venise du sud, traversé de canaux, rendez-vous incontournable des artistes et des poètes séduits par la richesse de son patrimoine. Fief des brocanteurs et antiquaires, l'Isle sur la Sorgue attire les amateurs, chineurs, collectionneurs ou touristes venus du monde entier à la recherche d'objets d’arts incomparables, de décorations ou de brocante parmi les plus prisés. - -Une région riche en couleurs à découvrir passionnément :-Saumane et ses ruelles, fontaines, maisons de pierres, donjon, rempartsL'abbaye de Sénanque, l'Isle sur la Sorgue, Fontaine de Vaucluse, Gordes, Roussillon, Avignon, le Lubéron, les carrières d'ocre, Cavaillon, les marchés provençaux, les caves viticoles aux noms prestigieux : Beaumes de Venise, Gigondas, Chatêauneuf du Pape, le Mont Ventoux dominant en seul maître toute la région... et les fameux santons de provence.-",null,null,"country club;84;vacances;saumane"]
[null,799,"Formule 1 - Avignon Nord","Hôtel","84-Vaucluse","Sorgues","Hôtel Formule 1- -Equipements et prestations Hôtel Formule 1-Nombre de chambres total : 64- -Equipements :-Personne à mobilité réduite, Groupe accepté, Accueil individuel, Accueil famille, Accueil scolaires, Proche ville, village, périphérie, Parking autocars, Zone commerciale, Proche sortie autoroute, Parking fermé ou gardé, Chambre avec télévision, Coffres, Carte bancaires, Chèques vacances, Eurochèques.-",null,null,"formule 1 - avignon ;84;hôtel;sorgues"]
[null,800,"Novotel Avignon Nord","Hôtel","84-Vaucluse","Sorgues","Novotel Avignon Nord ***- -Equipements et prestations Hôtel Restaurant Novotel Avignon Nord-Nombre de chambres total : 100- -Confort :-Hôtel climatisé à 200 m du péage A7 Avignon Nord. Piscine, tennis, jeux d'enfants. Piscine de juin à septembre. - -Equipements :-Personne à mobilité réduite, Groupe accepté, Accueil individuel, Accueil famille, Animaux admis avec supplément, Parking autocars, Zone commerciale, Proche sortie autoroute, Parking fermé ou gardé, Ascenseur, Climatisé, Chambre avec télévision, Chambre avec Mini-Bar, Chambre avec radio, Terrasse, Parc ou jardin, Jeux pour enfants, Salle de réunion, Piscine, Tennis, Coffres, Carte bancaires, Chèques vacances.-",null,null,"novotel avignon nord;84;hôtel;sorgues"]
[null,801,"Hôtel du Golf","Hôtel/Restaurant","84-Vaucluse","Vedene","LE DOMAINE-De nombreux hébergements de catégories différentes se trouvent à proximité du golf ainsi que dans le centre ville d’Avignon situé à 10 minutes du golf.- -Residhotel Golf Grand Avignon-L’hôtel - résidence se situe sur le domaine du golf et vous propose de nombreux forfaits golf.- -L’Auberge de Cassagne-L’hôtel 4 étoiles se situe à 1 km du golf et vous propose de nombreux forfaits golf et gastronomie.- -<st1:PersonName ProductID=~La Banastière~ w:st=~on~>La Banastière -Chambre d’hôtes de charme 4 épis se situe à <st1:metricconverter ProductID=~500 mètres~ w:st=~on~>500 mètres du golf et vous propose une réduction sur les green-fees.- -N'hésitez pas à contacter l’accueil du golf pour toute information complémentaire concernant votre hébergement.-",null,null,"hôtel du golf;84;hôtel-restaurant;vedene"]
[null,804,"Les Terrasses **","Hôtel/Restaurant","38-Isère","Allevard","Hôtel-Restaurant Les Terrasses **-29 Avenue de Savoie-38580 Allevard- -L'Hôtel-restaurant les Terrasses est idéalement situé à trente minutes de Grenoble et de Chambery. Au coeur du Massif de Belledonne, venez découvrir les joies d'une station de basse altitude et la cuisine du nouveau chef que vous pourrez déguster dans le parc.- - -Nombre de chambres : 16- -",null,null,"les terrasses **;38;hôtel-restaurant;allevard"]
[null,806,"Chalet Le Printemps de Juliette","Hôtel/Restaurant","38-Isère","Alpe d'huez ","Chalet Printemps de Juliette ***- -Un chalet hôtel aux airs de bonbonnière avec 8 chambres et suites, jacuzzi et balcons donnant sur les sommets enneigés...- -Situé dans le village même de l'Alpe d'Huez, au coeur de toutes les boutiques, proche de la piscine chauffée, de la patinoire artificielle, de toutes les activités culturelles et sportives du Palais des Sports…, c'est la bonbonnière idéale pour vivre l'Alpe dans toute sa splendeur !- -Vous rejoindrez le départ des pistes en 3 minutes à pieds. Si vous le souhaitez, notre chauffeur vous y conduira dans notre 4/4...- -Au retour de votre longue journée d'effort, rentrez vite au chaud et ...- -Venez déguster notre bon chocolat ~Grand Mère~ à la vanille et des crêpes à volonté, que vous pourrez vous faire vous-même !- -Les non-skieurs pourront aussi profiter à loisir du salon de thé et de ses animations musicales l'après-midi plusieurs fois par semaine !-  -Le soir, Juliette, toujours à ses fourneaux vous mijotera des bons petits plats délicats et typiques comme sa Soupe à la Banane, ses Ravioles à la crème fraîche, et bien d'autres surprises !- -Salon de Thé-Restaurant-Vous serez enchanté par l'ambiance chaleureuse et conviviale qui règne dans notre belle Maison où l'on se détend en savourant un chocolat fait maison, des pâtisseries et des crêpes à gogo que Juliette, <st1:PersonName w:st=~on~ ProductID=~la Maîtresse~>la Maîtresse des lieux sera heureuse de vous servir !- -Le soir, nous vous proposons une restauration délicate, familiale et riche...comme sait faire notre Mère-Grand ! Chaque soir, un menu plein de surprises avec des produits artisanaux...ne manquez pas nos soupes à la banane ou à la châtaigne !- -Le restaurant est ouvert à tous, que vous soyez à l'hôtel ou de passage. Et si vous le souhaitez, vous pouvez même commander votre soupe et venir la chercher toute chaude ! Nous organisons tous vos évènements importants: séminaires de travail mais aussi baptêmes, mariages,  jusqu'à 40 personnes.- - -Les Chambres-Accueillis dans un cadre tout «doux», vous vous installerez dans des suites et des chambres de 2 à 4 personnes, toutes avec de spacieuses salles de bain avec jacuzzi et wc privés, téléphone direct, radio, tv couleur-satellite, avec balcon indépendant en plein sud  et vue sur la station notre magnifique paysage de hautes montagnes.- -Les différentes catégories de chambres :-4 chambres ~classiques~ avec télévision, salle de bain-jacuzzi, balcon vue montagne et village.-2 Junior Suites au même confort, + un coin salon.-2 Senior Suites,  une chambre et un véritable salon.- - -Chalet- Hôtel-« Le Printemps de Juliette »-Avenue des Jeux-38750 Alpe d'huez-",null,null,"chalet le printemps ;38;hôtel-restaurant;alpe"]
[null,807,"Le Chamois","Hôtel","38-Isère","Alpe d'huez ","Le Chamois- -Description :-Notre hôtel bénéficie d'une situation idéale avec accès aux pistes et aux ascenseurs, aux pieds des pentes. Le resort des Alpes d'Huez se situe dans le sud des Alpes.  - -Nombre de chambres : 14-<FONT size=+0> - -Le Chamois-Chemin de la Chapelle-38750 Alpe-d'Huez-",null,null,"le chamois;38;hôtel;alpe"]
[null,808,"Royal Ours Blanc ****","Hôtel/Restaurant","38-Isère","Alpe d'huez ","Hôtel Royal Ours Blanc - Madame Vacances-avenue des Jeux-38750 ALPE D'HUEZ- -Situé au coeur de l'Alpe d'Huez, à <st1:metricconverter w:st=~on~ ProductID=~100 mètres~>100 mètres des pistes, vous trouverez un hôtel récemment rénové. Le domaine skiable de l'Alpe d'Huez, un des plus grands du monde, orienté plein sud face au somptueux panorama des Ecrins, offre 220 km de pistes entre 1250 et <st1:metricconverter w:st=~on~ ProductID=~3330 mètres~>3330 mètres d'altitude. - -L'Alpe d'Huez est également réputée pour le grand choix d'activités qu'elle propose : -patinoire découverte, piscine extérieure chauffée, plus de 27 activités sportives et culturelles permanente dans le moderne et spacieux Palais des Congrès, cinémas. Vous trouverez également pour vos loisirs et vos achats un grand nombre de boutiques, bars et restaurants, ainsi que tous les services et infrastructures pour des vacances sans soucis !!- -Le Restaurant- -Côté table, le restaurant ~L'Ours Blanc~ vous propose sa cuisine traditionnelle et raffinée, le dîner avec 5 plats au choix et un grand buffet le matin avec plats chauds et froids ou petit déjeuner. Room service proposé en chambre. Service voiturier, garage fermé. - -Situation -Par route : Autoroute jusqu’à Grenoble puis A 480 et N91 jusqu’à Bourg d'Oisans et Alpe d'HuezPar train : Gare de Grenoble puis liaisons busPar avion : Aéroports de Grenoble St Geoirs (99 km), Lyon St Exupéry (150 km), Genève Cointrin (220 km) puis liaisons bus, taxis, hélicoptères.Les Chambres - -Situé au coeur de la station à 100 m des pistes et du Palais des Congrès, l'hôtel offre 47 chambres toutes équipées de : télévision satellite avec magnétoscope, téléphone, mini-bar, coffre de sécurité, salle de bains avec baignoire, sèche cheveux, WC séparés.  Toutes les chambres et suites ont un balcon exposé sud. Les chambres de catégorie « Or », rénovées en 2000, offrent un confort raffiné. - -Les Suites- -Les chambres de catégorie « Platine », rénovées en 2002, offrent encore plus de confort avec décor luxueux, salle de bains en marbre, baignoire balneo.  - -La Piscine- -Côté détente, l'hôtel met à votre disposition :-son salon bar avec cheminée, idéal pour savourer une boisson et profiter d'un moment privilégié au coin du feuSauna -ses thermes avec piscine, hammam, saunas, salle de fitness, musculation, massages* et hydro-massages, esthétiques-beauté* (* avec supplément) : la relaxation associés aux soins de beauté pour des séjours de pleine détente.-",null,null,"royal ours blanc ***;38;hôtel-restaurant;alpe"]
[null,809,"Le Pic Blanc","Hôtel","38-Isère","Alpe d'huez ","Le Pic Blanc ***- -Parfaitement intégré dans son environnement, largement ouvert sur un panorama grandiose, le Pic Blanc vous offre : -Accueil et convivialitéUne équipe dynamique à votre serviceDes parties communes vastes et chaleureusesUn restaurant PanoramiqueUn parking couvertLe Pic Blanc et son équipe vous souhaitent la bienvenue! - - -Réception :-L'Alpe d'Huez est une station bénie des Dieux!-Une exposition plein sud, un ensoleillement unique et un surnom ~L'île au soleil~.- -Un domaine skiable et un panorama grandioses !-Entre 1860 et 3330 m d'altitude, 220 km de piste dont la plus longue d'Europe (17 km),des espaces pour les nouvelles glisses et 54 km de ski de fond. - -Au sommet du Pic Blanc, silence...Admirez!-Le Mont Blanc, le Cervin et le Meije...Les géants des Alpes vous saluent.- -Profitez!-Situé dans le quartier des Bergers, l'hôtel vous offre un accès direct aux pistes, aux animations et aux boutiques de la station. - -Le Pic Blanc-quartier des bergers-38750 ALPE D'HUEZ-",null,null,"le pic blanc;38;hôtel;alpe"]
[null,813,"Mister Bed City **","Hôtel","38-Isère","Bourgoin jallieu","Hôtel Mister Bed City-21 avenue Italie-38300 BOURGOIN JALLIEU- -Description Mister Bed City Bourgoin-Jallieu-Un hôtel en centre ville à un prix très compétitif. L'Hôtel Mister Bed City Bourgoin-Jallieu est situé à 200 m de la gare.- -Equipements et prestations Mister Bed City Bourgoin-Jallieu-Nombre de chambres total : 61- -",null,null,"mister bed city **;38;hôtel;bourgoin"]
[null,815,"BANZAÏ","parc d'attraction","38-Isère","Saint pierre d'allevard ","L'accrobranche, ça vous tente? -Le parcours BANZAÏ AVENTURE vous propose de vivre l'aventure au fil des arbres, en vous adonnant aux joies de la hauteur, de l'équilibre et de l'agilité.- -Au coeur de la forêt de Chantelouise, amusez-vous au gré de 3 parcours, en enchainant tyroliennes, ponts de singe, lianne de tarzan et même un skate suspendu dans les arbres!- -Des émotions fortes, du rire, du fun, en famille ou entre amis!- -BANZAÏ-AVENTURE c'est aussi:- -Des baptêmes en parapente avec deux moniteurs expérimentés, découvrez la magie du vol libre et partagez vos émotions avec nos vols synchronisés !- --Deux mini piscines en cascade, l'eau est traitée, la baignade est surveillée en juillet et en août. L'accès est gratuit. Pour se détendre, un snack-bar, des pelouses ombragées et un terrain de pétanque. Sur le site, plusieurs départs de sentiers de randonnées.- --Des journées Aventure :-Vous désirez animer un séminaire, programmer une sortie pour votre comité d'entreprise, renforcer la cohésion de votre équipe au travers d'épreuves sportives mais dans un esprit toujours ludique. Vous désirez fêter un anniversaire, un enterrement de jeune fille/garçon, une journée d'intégration d'étudiants... Nous nous chargeons de l'organisation, de l'encadrement et de l'animation de votre journée évènement. Toutes les activités peuvent se combiner selon vos envies et votre budget; nous pouvons même inclure des demandes spécifiques de votre part.- -Organisez votre Journée Aventure autour d'un lunch ou d'un repas champêtre...- --Les activités à choisir à la carte :- -Parc Aventure, Parapente, Tir à l'arc, Canirandonnée, VTT free-ride,-Canyoning, Cure Vitarelax.-",null,null,"banzaï;38;parc;saint"]
[null,818,"Campanile Chanas **","Hôtel/Restaurant","38-Isère","Chanas","Campanile Chanas- -L'hôtel Campanile de Chanas vous garanti confort et prix modérés. Situé à seulement 3km de Chanas. L'hôtel est aussi à quelques 60 km de Lyon, ville à ne pas manquer !!!- -Hôtel Restaurant Campanile-2 rue Avenir-38150 CHANAS-",null,null,"campanile chanas **;38;hôtel-restaurant;chanas"]
[null,819,"Formule 1 Chanas","Hôtel","38-Isère","Chanas","Formule 1 Chanas- -Nombre de chambres total : 72- -Confort :-Sur A7, entre Vienne et Valence. Dans Zone Hotelière , Près de Courte Paille.- -Formule 1 Chanas-Lieu-dit ~Les Bourgeons~-38150 CHANAS-",null,null,"formule 1 chanas;38;hôtel;chanas"]
[null,823,"FORMULE 1 - Chasse-sur-Rhône **","Hôtel","38-Isère","Chasse sur rhone","FORMULE 1 - Chasse-sur-Rhône **- -Nombre de chambres total : 72- -Confort :-Concept malin avec des chambres fonctionnelles et un prix unique pourune, deux ou trois personnes. Possibilité d'achat chambres 24h/24.- -Equipements :-Hollandais parlé, Allemand parlé, Italien parlé, Anglais parlé, Carte de crédit, Chèques vacances, Parking.-",null,null,"formule 1 - chasse-s;38;hôtel;chasse"]
[null,825,"Kyriad Eybens **","Hôtel","38-Isère","Eybens","Kyriad Eybens **- -L'Hôtel qui dit mieux! Le meilleur équilibre entre la garantie de qualité et le charme de la diversité.- - - - - - - - - - -Kyriad Eybens **-20 avenue Jean Jaurès-38320 EYBENS-",null,null,"kyriad eybens **;38;hôtel;eybens"]
[null,827,"HOTEL IBIS **","Hôtel/Restaurant","38-Isère","Gieres","HOTEL IBIS **- -Nombre de chambres total : 81- -Confort :-Accueil 24 h/24. Ouvert toute l'année.- -Equipements :-Salle de réunion, Italien parlé, Anglais parlé, Allemand parlé, Chèques vacances, Carte de crédit, Restaurant, Parking, Ascenseur.-",null,null,"hotel ibis **;38;hôtel-restaurant;gieres"]
[null,828,"Ugerel Alpexpo ***","Hôtel/Restaurant","38-Isère","Grenoble","Ugerel Alpexpo ***- -Bienvenue à l'hôtel Ugerel Alpexpo-Situé à  250 m du parc des Expositions d'Alpexpo, à côté du centre Commercial Grand Place et à côté de la patinoire Pôle Sud, notre établissement est facilement accessible. Le tramway face à l'hôtel  vous conduira à la nouvelle Maison de la Culture MC2, en dix minutes au cinéma Pathé Echirolles et en moins de douze minutes au centre ville. Pour votre séjour, nous mettons à votre disposition, 98 chambres, 2 Suites, une piscine (14 m sur 7m), 300 m2 de salles de conférence, un bar, un billard et une brasserie et le wi-fi dans tout l'hôtel.- - -Nos chambres-100 chambres spacieuses et de grand confort dont 2 Suites : climatisées, insonorisées, lumineuses, fumeurs ou non fumeurs, vues sur les massif environnants, salle de bains complète, WI-FI Haut Débit, téléphone avec ligne directe, mini-bar, TV avec un choix de 35 chaînes nationales et internationales, room-service, blanchisserie…  -Chambre Privilège (28m²) : un grand lit doubleChambre « Club » (32m²) : deux grands lits doublesChambre « Business » : un grand lit double, un bureau et un canapéSuite (60m²) Nuptiale ou Présidentielle : grand lit double, grande salle de bains, canapé et bureau.  Nouveauté 2006 : mini-bar GRATUIT; à votre arrivée, 6 consommations vous sont offertes.-Package Prestige : pour 12 euro seulement, offrez un traitement VIP à vos invités.- -Restauration-Brasserie ~le Belledonne~…vos repas prennent une autre dimension. - -Au 2ème étage, surplombant notre piscine, éclairée à la lumière du jour notre restaurant peut accueillir jusqu’à 100 couverts. Notre chef vous invite à découvrir une cuisine raffinée et savoureuse que les fins gourmets ou « les hommes pressés » peuvent apprécier du dimanche soir au vendredi soir compris, toute l’année. - -Ardoise du Jour « selon l’humeur du marché » à partir de 20 euros TTC :-Un choix de trois entrées - Un choix de plats chauds - servis avec deux garnitures &amp; un dessert.  - -Nous mettons à votre disposition, un room service aux couleurs de notre carte brasserie.-De juin à septembre, profitez de notre terrasse ombragée pour déjeuner au bord de la piscine.- -Réservation conseillée au 04 76 33 02 02. Merci de demander le Restaurant.- -La piscine de l'hôtel-Notre piscine vous accueille tous les jours de juin à septembre.    - -Avec une température en moyenne de 28°, une taille de bassin de 7 m x 14 m, vous pouvez venir profitez de notre terrasse pour un bain de soleil dans d'excellentes conditions.  - -Depuis le début du mois de Juin vous pouvez venir découvrir notre formule ~dejeuner au bord de l'eau~ dès 16 euro par personne. Ambiance estivale garantie, même en centre ville !-Rien de tel qu'un moment tranquille entre 12h00 et 14h00.-Plazza Hôtel Alpexpo-1 av Innsbruck-38100 GRENOBLE-",null,null,"ugerel alpexpo ***;38;hôtel-restaurant;grenoble"]
[null,831,"Hotel Alizé *","Hôtel","38-Isère","Grenoble","Hotel Alizé *- -Notre équipe sera heureuse de vous accueillir dans un hôtel entièrement rénové, tout confort et au calme, à deux pas du centre de Grenoble.- -Situé à deux pas de la gare en plein coeur de Grenoble, l'Hôtel Alizé vous accueille chaleureusement dans ses locaux rénovés et tout confort. Référencé dans plusieurs guides, ses 35 chambres sont toutes équipées de téléviseur et téléphone. - -L'équipe de l'Hôtel Alizé est à votre disposition pour tout renseignement concernant votre séjour. Le service petit déjeuner est ouvert 24h/24.- -Restaurants et Bars--Petit DéjeunerPetit Déjeuner a partir de 1:00 heures à 11:00 heures Petit déjeuner anglais Euros 4.00 Détails de la chambre - double-Chambre rénovée, calme à deux pas du centre ville.- - -Hotel Alizé *-1 Rue Amiral Courbet-38000 Grenoble-",null,null,"hotel alizé *;38;hôtel;grenoble"]
[null,836,"SunnyDream","Vacances","06-Alpes Maritimes","Cannes","Sunny Dream-Motor Yacht de 31 mètres- -Croisière à la carte avec équipage : -Journée, soirée, semaine, mois-     . 12 personnes en navigation -     .  5 cabines : 9/10 personnes- -programme : -FRENCH RIVIERA, CANNES, MONACO, SAINT TROPEZ, CORSE, BONIFACCIO, GOLFE DE PORTO, ILES LAVEZZI, ITALIE, PORTOFINO, ROME, CAPRI, SARDAIGNE, PORTO CERVO, BALEARES, IBIZA, MAJORQUE, MINORQUE, BARCELONE, GRECE, CROATIE...- -Organisation d'événements :- -soirées, réceptions, anniversaires, mariages- -Séminaires, Congrès, - -Bateau à quai à GOLFE JUAN- -     - Cocktails : 80 personnes-     - Repas assis : 45 personnes - - -Sunny Day : ~motor yacht~ de 25 mètres-4 cabines : 10 couchages12 personnes en navigation 60 personnes en cocktail25 personnes repas assisLocation avec équipage : Sorties en mer : journée, semaineorganisations d'événements : soirées, anniversaires, mariagesTWINY : LEOPARD SPORT 23 mètres- -      3 cabines : 7 couchages-      12 personnes en navigation-      25 personnes en cocktail - -1. location avec équipage : sorties journées -2. organisation d'événéments- - -",null,null,"sunnydream;06;vacances;cannes"]
[null,837,"BEST WESTERN TERMINUS ***","Hôtel/Restaurant","38-Isère","Grenoble","Best Western Hôtel Terminus ***-10 place Gare-38000 GRENOBLE- -Présentation-Les clients de l'hôtel Terminus apprécient l'accueil chaleureux et le cadre spacieux d'un établissement typique de la Belle époque (1906).- -Cet hôtel offre des chambres insonorisées avec vue panoramique sur les montagnes, face à la gare SNCF et routière, face au complexe Europole et au nouveau Palais de Justice. Des garages privés sont à votre disposition. Des restaurants à proximité en zone piétonne, conduisant au centre historique en dix minutes.- -Visite-Les chambres sont climatisées, insonorisées équipées de la télévision satellite et de Canal + du téléphone direct, d'une prise modem et du Wifi (wireless connection) et selon le choix d'une douche ou d'une baignoire.- -Offre spéciale-L'hôtel Terminus offre : Blanchisserie, coffre , télécopie , minibar. -Petit déjeuner : 11 euros , garage privé : 15 euros. Tarifs exceptionnels du vendredi au dimanche inclus. Des salles de réunion sont à votre disposition.- ",null,null,"best western terminu;38;hôtel-restaurant;grenoble"]
[null,840,"GRAND HOTEL MERCURE PRESIDENT ***","Hôtel","38-Isère","Grenoble","GRAND HOTEL MERCURE PRESIDENT ***- -Nombre de chambres total : 105- -Confort :-Hôtel de dimension Européenne au centre de Grenoble, entouré par les massifs alpins de Chartreuse, Belledonne, Vercors. Décors très soignés, équipement de grande qualité Ouvert toute l'année.- -Equipements :-Salle de réunion, Espagnol parlé, Allemand parlé, Anglais parlé, Chèques vacances, Carte de crédit, Restaurant, Parking, Ascenseur.- - -GRAND HOTEL MERCURE PRESIDENT ***-11 rue du Général Mangin-38000 GRENOBLE-",null,null,"grand hotel mercure ;38;hôtel;grenoble"]
[null,841,"HOTEL IBIS GRENOBLE GARE **","Hôtel/Restaurant","38-Isère","Grenoble","HOTEL IBIS GRENOBLE GARE **- -Equipements et prestations HOTEL IBIS GRENOBLE GARE-Nombre de chambres total : 36- -Confort :-Proche gares SNCF et routière ; sortie autoroute Grenoble-Bastille Chambres entièrement rénovées - -Equipements :-Anglais parlé, Carte de crédit, Parking, Ascenseur.- - -HOTEL IBIS GRENOBLE GARE **-27, quai Claude Bernard-38000 GRENOBLE-",null,null,"hotel ibis grenoble ;38;hôtel-restaurant;grenoble"]
[null,842,"Les3Roses ***","Hôtel/Restaurant","38-Isère","Grenoble","Les 3 Roses ***- -La Chaleur d'un lieu d'accueil- -Arriver... confiant : Un cadre, un lieu, une ambiance qui vous donneront envie d'entrer, d'apprécier et de revenir. -S'évader... chaleur : Un petit coin salon pour se détendre ou discuter entre amis près d'une cheminée. -Attendre... détente : Un salon spacieux pour lire, attendre un ami ou prendre le temps de ne rien faire. -Dîner... convivial : Une salle de restaurant intime et un personnel attentif qui saura vous faire aimer le gîte et la table.   -Le Confort d'un lieu de vie- -S'éveiller... gourmand : Tous les matins, un buffet somptueusement garni pour vous mettre en appétit... de vie -Travailler... ensemble : Chartreuse et Belledonne, 2 salons pour accueillir vos séminaires et séances de travail. -Déjeuner... gourmet : Les menus raffinés d'une cuisine riche en parfum, en couleur, en saveur. -Dormir... tranquille : TV satellite, mini-bar... le confort de chambres climatisées pour bien vivre... et dormir. -Hôtel-Restaurant ~Les 3 Roses~-32, avenue du Grésivaudan-F-38700 Corenc - Grenoble-Téléphone : 33 (0)4 76 90 35 09 - Télécopie : 33 (0)4 76 90 71 72-E-Mail : <A href=~mailto:info@les3roses.fr~>info@les3roses.fr-Web : http://www.les3roses.fr-",null,null,"les3roses ***;38;hôtel-restaurant;grenoble"]
[null,844,"HOTEL PARIS-NICE **","Hôtel","38-Isère","Grenoble","HOTEL PARIS-NICE **- -L'Hôtel Paris Nice est idéalement situé à 10 min du centre ville de Grenoble. Ligne bus 5 arrêt Ampère Vallier. Nous sommes également à 10 min des centres de congrès avec accès direct au campus de Saint Martin d'Heres.- -Equipements et prestations HOTEL PARIS-NICE-Nombre de chambres total : 29- -Confort :-L'hôtel a été entièrement rénové et insonorisé pour vous donner entière satisfaction pour vos affaires ou vos loisirs. Très bien situé. Accueil 24H/24. - -Equipements :-Zone WI FI, CANAL +, CINE CINEMA, CINE FRISSON.-Services : Petit déjeuner en chambre sur demande.--- -HOTEL PARIS-NICE **-61, bd Joseph Vallier-38100 GRENOBLE-",null,null,"hotel paris-nice **;38;hôtel;grenoble"]
[null,846,"PAINTBALL DES NARCES","parc d'attraction","38-Isère","Meaudre","Une partie de paintball oppose deux équipes composée chacune d'au moins 2 joueurs. Les joueurs sont munis de marqueurs propulsant, au moyen de gaz comprimé, des billes de peinture biodégradables. -Nous fournissons pour chaque joueur un masque, une combinaison, des gants, un marqueur ainsi que des billes.-Terrain boisé de 5000 m² environ, une partie plate et dégagée, une autre pentue et en forêt.-Obstacles ~écolos~ (matières naturels, du bois partout...)Grand parking gratuit.Restauration et rafraîchissements (barbecue sur réservation).Terrasse ensoleillée et calme.Accès facile et beau!!! (route forestière).Nous pouvons également nous déplacer chez vous avec nos structures gonflables.-Nous conseillons un minimum de 2 joueurs contre 2 et un maximum de 10 contre 10, mais n'hésitez pas à venir plus nombreux :-))-Expérience d'organisation de journée pour 200 personnes, et tournoi de 400 personnes sur site.-PAINTBALL DES NARCES-ROUTE DES NARCES-38112 MEAUDRE---",null,null,"paintball des narces;38;parc;meaudre"]
[null,855,"National Citer","Location de voitures","26-Drome","Alixan","Une présence, près de chez vous…-À l’arrivée d’un train, à la descente d’un avion, en centre ville …où que vous soyez, où que vous alliez, une agence National/Citer vous attend.-Aujourd’hui, en France, ce sont près de 300 adresses, dont plus de 40 en gare et 63 en aéroport qui sont à votre disposition.-Nous mettons tout en œuvre pour être proche de vous.-",null,null,"national citer;26;location;alixan"]
[null,857,"Caves et Distillerie de la Chartreuse","Visite/Loisir","38-Isère","Voiron","Caves et Distillerie de la Chartreuse-10, Boulevard Edgar-kofler-BP 102-38503 Voiron- -Les Caves sont située à Voiron, à 25 Km de Grenoble, au coeur des Alpes françaises, entre le Parc Naturel Régional de la Chartreuse  et celui du Vercors.- -La visite guidée des Caves est gratuite pour tous et dure une heure.-La dégustation qui la termine est également gratuite. --- -Film 3D RELIEF :- -Inclus dans la visite gratuite, ce film retrace toutes les activités développées par les Pères Chartreux au cours des siècles depuis leur arrivée en Chartreuse en 1084 : agriculture, forge, coupe de bois, pharmacie, élaboration des liqueurs. - -Commentaires de Robert HOSSEIN, film projeté dans une salle climatisée de 70 places assises. - -La Chartreuse fait partie des Sites Remarquables du Goût et des Sites Emblèmes d'Isère en Dauphiné. - --Horaires des Visites :    La Visite des Caves est ouverte toute l'année  --Saison : --* du 1er Avril 2006 au 1er Novembre inclus, tous les jours y compris les samedis, dimanches et jours fériés :-          - de 9h00 à 11h30  -          - de 14h00 à 18h30Hors saison : --* du 2 Novembre au 31 Mars, du lundi au vendredi (sauf jours fériés)  -          - de 9h00 à 11h30  -          - de 14h00 à 17h30 -Visites des individuels :  -                                                                                             -La visite est possible aux horaires indiqués à l'accueil :-en saison, une visite (de 1 à 60 personnes selon l'affluence) toutes les 20/30 minutes environ,hors saison, une visite toute les 30/40 minutes environ.Visite et dégustation gratuites.-  -Visites des groupes : (&gt;10 personnes)                                                                            -  -Les groupes sont les bienvenus; nous pouvons organiser des départs de groupes de 65 personnes à 15 minutes d'intervalle. Même visite que les individuels.- -Pour éviter les attentes, il est fortement conseillé de réserver !   -     --Pour les groupes étrangers, des visites avec un guide parlant leur langue et les films dans leur langue sont possibles sur réservation (anglais, allemand, italien et espagnol). Notre parking privé dispose de places réservées aux autocars.  - -Surprise !  Bonus Internet :                                                                                             - -~VISITE PASS~ -Imprimez et découpez ce ~Visite Pass~, présentez le à la fin de la visite des Caves : nous serons heureux de vous offrir une miniature 3 cl de Chartreuse (limite = une par groupe) - -Visite pédagogique - Spéciale Scolaire :                                                                       - -~Le relief, comment ça marche ?~ - -Visite pédagogique adaptée aux scolaires sur le thème du Relief. Film expliquant la technique des films en Relief. Atelier ~Stéréoscopes~.-Durée 12 minutes, projeté sur réservation, pour les scolaires uniquement. -Ce film est montré avant le film en Relief, et est particulièrement adapté aux plus jeunes. - -Personnes en fauteuils :                                                                                             - -La visite est partiellement accessible (de part la configuration des lieux,  il n'est pas possible de descendre les fauteuils dans la cave)- -Emplacements réservés sur notre parking.- -A voir -Film sur l'histoire du manuscrit projeté dans une salle d'accueilFilm 3D relief dans la seconde salle de projection (spécialement construite à cet effet),Visite de la distillerie,Dégustation dans la salle des grands vitraux. --Accès- -Les Caves sont situées à 100 m des gares routières et ferroviaires de Voiron. - -En venant de Lyon, sortir de l'Autoroute à ~Voiron-Champfeuillet~ et suivre Voiron; dans Voiron, suivre direction Grenoble et les panneaux ~Caves de la Chartreuse~.En venant de Grenoble, sortir de l'autoroute avant le péage de Voreppe et suivre ~Voreppe-La Buisse-Voiron~. Les caves sont situées à l'entrée de Voiron.En venant de Chambéry, dans Voiron, suivre direction Grenoble et les panneaux ~Caves de la Chartreuse~.---Suggestion de promenade en Chartreuse :  (une journée)     -                                   -MATIN : Visite des Caves de la Chartreuse à Voiron (une heure à une heure et demi d'arrêt)MIDI : à St Pierre de Chartreuse (25 Km de Voiron), déjeuner dans un restaurant ou pique-nique sur le site du Musée de la Grande-Chartreuse. Salle hors-sac pour les groupes, sur réservation au Musée. APRES-MIDI : Visite du Musée de la Grande-Chartreuse (La Correrie) - visite non guidée - puis marche jusqu'au Monastère : route goudronnée piétonne uniquement - aller-retour une heure (zone de silence).  Point de départ de nombreuses randonnées.-Renseignements au Musée de la Grande-Chartreuse,-04.76.88.60.45 -Le Musée de la Grande-Chartreuse-(La Correrie)-",null,null,"caves et distillerie;38;visite-loisir;voiron"]
[null,858,"Park Hôtel Grenoble","Hôtel/Restaurant","38-Isère","Grenoble","Park Hôtel Grenoble ****- -Park Hôtel Grenoble, hôtel restaurant 4 étoiles à proximité du centre ville de Grenoble. - -Le Park Hôtel Grenoble s'inscrit dans la plus pure tradition hôtelière : il allie confort et charme à un sens de l'accueil et du service qui font partie, depuis plus de 40 ans, de l'esprit de la maison.  -Notre hôtel de charme, seul 4 étoiles de Grenoble, bénéficie d'une situation privilégiée, se trouvant tout à la fois à deux pas du centre-ville et en bordure du Parc Paul Mistral.- -Proche des grands axes, Park Hôtel Grenoble, se prête idéalement aux séjours professionnels (proximité des grandes entreprises de l'agglomération grenobloise) comme aux ~séjours découverte~ de la ville, de la région de Grenoble et de ses stations de ski. - -Hôtel Park Hôtel-10 place Paul Mistral -38000 GRENOBLE-",null,null,"park hôtel grenoble;38;hôtel-restaurant;grenoble"]
[null,859,"PATRICK HOTEL INTERHOTEL","Hôtel","38-Isère","Grenoble","Patrick Hôtel InterHotel Grenoble ***- -Facilité d'accès, proximité du centre-ville, des salons, des congrés et des centres d'expositions et , parking privé, le Patrick Hotel InterHotel Grenoble a de nombreux atouts quelle que soit la nature de votre séjour.- - -Réception-Pour votre bien être...-Un accueil personnalisé, dans un cadre sobre et élégant. - - -Grenoble-Grenoble est une grande ville située à mi-chemin entre la Suisse et le centre de la France.-La ville et sa région sont riches en musées, festivités, et lieux à visiter: La Chartreuse, Le Vercors, Les Grands Goulets, etc....Les Chambres-L'hôtel vous propose 56 chambres entièrement rénovées. Les chambres sont toutes équipées de salles de bain complètes, de coffre-fort, canal +, téléphone et connection à internet sans fil gratuit, la climatisation est présente dans toutes les chambres.  - -Pour votre vitalité... - -Le petit déjeuner... un moment privilégié. - -Services-Un parking privé gratuit est à la disposition de la clientèle ainsi qu'un Bar et l'acceuil est 24/24.- - -PATRICK HOTEL INTERHOTEL-116 cours Libération Gén de Gaulle-38100 GRENOBLE-",null,null,"patrick hotel interh;38;hôtel;grenoble"]
[null,861,"Ibis Grenoble Centre","Hôtel/Restaurant","38-Isère","Grenoble","Ibis Grenoble Centre- -Nombre de chambres total : 71- -Confort :-Hôtel de 71 chambres. L’hôtel Ibis Grenoble est situé en centre ville en zone piétonnière près du musée et du stade ~Les Diguières~. L' hôtel propose un restaurant ~La Table~, un bar et une terrasse.- - -Ibis Grenoble Centre-5, rue de Miribel-38000 GRENOBLE-",null,null,"ibis grenoble centre;38;hôtel-restaurant;grenoble"]
[null,866,"Hôtel Première Classe","Hôtel","38-Isère","L'isle d'abeau","Hôtel Première Classe Isle d'Abeau- -Idéalement situé à proximité de grands axes autoroutiers en destination de Lyon (30 minutes) ou des stations de ski. L'hôtel Première Classe Isle d'Abeau et son personnel sont ravis de vous accueillir.- -Nombre de chambres total : 62-",null,null,"hôtel première class;38;hôtel;l'isle"]
[null,867,"Murtel","Hôtel","38-Isère","La mure","- -Murtel **-Coteau de Beauregard-38350 La Mure--",null,null,"murtel;38;hôtel;la"]
[null,871,"WALIBI RHONE ALPES","parc d'attraction","38-Isère","Les avenieres ","Walibi Rhône-Alpes, c'est le luxe d'un environnement exceptionnel faisant large place à une nature verdoyante, aux fleurs et plantes, arbres et bosquets mettant joliment en valeur les nombreux plans d'eau et attractions aquatiques. A elle seule, la promenade à pied est déjà un grand plaisir dans ce très joli parc. Et pour ceux qui souhaiterait avoir un aperçu plus rapide, le petit train les emmènera faire le tour du parc. Autre façon de prendre l'air et de se délasser entre mille et une attractions amusantes. - -Rire et s'émerveiller, il paraît que c'est bon pour la santé !- -Nouveau en 2006 : le cirque Romanza !- -Sous un chapiteau couvert de 800 places, le cirque Romanza vous convie dans un univers fascinant où se côtoient acrobates, artistes, clowns et dresseurs. Des numéros débordants de bonne humeur à ceux de voltige à vous couper le souffle, Romanza -est un spectacle unique où l'ennui n'existe pas !- -Une région où se niche l'un des parc les plus populaires. De l'autoroute jusqu'à sa destination Les Avenières, les hôtels, campings, gîtes et chambres d'hôtes des environs font de Walibi Rhône-Alpes un des parcs très apprécié. - -Il est fortement recommandé de profiter, après une visite à Walibi, des autres sites et curiosités touristiques du Nord-Isère. - -Une organisation qui ne se fait pas sans quelques informations de première importance, telles : Comment accéder au parc ? Quels sont les hôtels partenaires, les formules ~ hébergement ~ individuels ou groupes, les sites touristiques- -<FONT size=+0>Si les grands ont leurs émotions fortes, les plus jeunes ne risquent pas d'être indifférents aux rendez-vous qui leur sont fixés. Ainsi, ils pourront tout à loisir devenir pilote de mini-jets à bord du Baron Rouge ; découvrir le parc dans le petit train ou à dos de cheval ou encore à ~ pidibus ~ pour mieux se délier les gambettes. Et si le cœur bien accroché leur en dit, le Grand Soleil les entraîne, en famille, dans les hauteurs pour une vue panoramique sur le parc. De quoi swinguer dans les airs d'un espace peuplé d'éclats de rire et de bonne humeur généralisée. Adieu morosité, ici, les touts petits ont également leurs moments de fun assuré.-",null,null,"walibi rhone alpes;38;parc;les"]
[null,875,"La Soupière **","Hôtel/Restaurant","38-Isère","Meylan","La Soupière **- - -L'hôtel KYRIAD, restaurant ~la soupière~, est situé au coeur de la zirst de MEYLAN (Zone d'Innovation de Recherche Scientifiques et Technologique).A 5 minutes de Grenoble, entre Chartreuse, Vercors et Belledonne, au milieu de montagnes ou nature et grand air sont au rendez-vous. - - -Accessible De CHAMBERY, par la ROCADE SUD, SORTIE N°26, et de LYON, par la ROCADE SUD, direction CHAMBERY.  Sortie MEYLAN EST / ZIRST (au rond-point, à gauche, l'hôtel se situe à <st1:metricconverter w:st=~on~ ProductID=~400 mètres~>400 mètres.).-- -Prestations : Bienvenue dans le royaume du roi sommeil.-Chambre 1 personne : 65 Euros Chambre 2 personnes : 65 EurosPériode évènementiel : 70 EurosLit supplémentaire offert, jusqu'à 12 ans, dans la chambre des parents.Tarifs préférentiel les vendredi et samedi : 48 Euros la nuit (selon période) Petit déjeuner, sous forme de buffet : 7 Euros Journée étude : 35 Euros Menu a partir de 11,50 Euros + carte Repas de famille, banquet ...à partir de 31 Euros tout compris.- - -La Soupière-12, chemin du vieux chêne-38240 Meylan-",null,null,"la soupière **;38;hôtel-restaurant;meylan"]
[null,876,"Mercure Grenoble Meylan ***","Hôtel/Restaurant","38-Isère","Meylan","Mercure Grenoble Meylan ***- -Hôtel de 77 chambres.- -L'hôtel Mercure Grenoble Alpha Meylan est situé à <st1:metricconverter w:st=~on~ ProductID=~5 kilomètres~>5 kilomètres du centre-ville de Grenoble et à moins de <st1:metricconverter w:st=~on~ ProductID=~50 kilomètres~>50 kilomètres des stations de sports d'hiver et d'été les plus près.- -L'hôtel vous propose des chambres non-fumeurs climatisées avec télévision par satellite, Canal +, télévision payante et mini-bar. L'hôtel offre également un restaurant, un bar et 6 salles de réunion. Piscine extérieure fermée pour travaux du jeudi 8 juin au dimanche 18 Juin inclusivement.- -Les Chambres-Equipements dans la chambre : -Alarme incendie sonoreDiffuseur d'extinction incendieVerrou automatique de chambre220/240 V ACAir conditionnéCoffre-fortFilm payantMini barRadio en chambreTéléphoneTélévision par satellite/cableWIFI Internet sans filPrise RJ45 Equipements dans la salle de bain : -Sèche-cheveux dans la S. de bain- -Hotel Mercure Grenoble Meylan-34, Avenue Verdun-38240 Meylan-",null,null,"mercure grenoble mey;38;hôtel-restaurant;meylan"]
[null,877,"Parcours Aventure de Saint Nizier","parc d'attraction","38-Isère","Saint nizier du moucherotte ","Parcours Aventure est ouvert de pâques à la toussaint. Nous pouvons accueillir 300 personnes par jour, dont 200 en simultané. Dans la mesure où nous ouvrons sur réservation, le parc est ouvert la plupart des jours notamment en haute saison et par beau temps.- - -Périodes Horaires - DE PAQUES A LA TOUSSAINT- -Mai , Juin , Septembre , Octobre : tous les week-end. La semaine sur réservation ( à partir de 8 personnes )- - JUILLET ET AOUT : 7 jours sur 7- PARC OUVERT DE 10H00 à 19H00- -AIRE DE PIQUE-NIQUE---La réservation est conseillée pour les individuels et obligatoire pour les groupes de plus de 15 personnes.- -Le parcours bleu est adapté aux enfants dont la taille est d’au moins 1m10 ou 6ans. La ligne de vie et les ateliers sont étudiés pour faciliter leur progression en autonomie. Les plus petits peuvent effectuer ce parcours avec l'aide obligatoire de leurs parents. Ils pourront se déplacer seuls mais accrochage et décrochage des tyroliennes se feront avec l’aide de maman ou de papa. Pour les plus grands les parents ont à tout moment la possibilité de contrôler leurs évolutions car les hauteurs se situent entre 1 et 4 mètres.-Tyroliennes, ponts de singes, passerelles, étrier filant : un vrai parcours de grands pour les mini aventuriers.-",null,null,"parcours aventure de;38;parc;saint"]
[null,879,"TOUROPARC ZOO","parc d'attraction","71-Saone et Loire","Romaneche thorins","La trace des animaux-Venez surprendre les animaux dans leur vie familière et dans un cadre naturel ! Vous admirerez la diversité des espèces représentées ( plus de 800 animaux sur 10 hectares), et vous passerez avec bonheur de l'éléphant d'Asie aux zèbres d'Afrique, des aras d'Amérique du Sud au walabis d'Australie... quel fabuleux voyage. - - Mille et un plaisirs ! des animations gouters surprenantes-Tout au long de la journée, les soigneurs vous attendent pour des rendez-vous ~gouters~ avec les animaux. Une manière ludique d'en apprendre un peu plus sur toutes les espèces du parc.- -Chacun sa passion, chacun son chemin !-La piste des jeux-Lancez-vous sans hésiter dans le labyrinthe des jeux : un drôle de TGV pour rire aux éclats, un super monorail pour admirer le paysage, une balade en tacot avec vos animaux préférés : quel que soit votre choix, l'émotion sera au rendez-vous ! Embarquez audacieusement pour le torrent des grottes ! Et si vous êtes amateur de sensations fortes, du mois de juin à la fin du mois d'août, à vous les jeux aquatiques ! Venez découvrir le Kamikaze, le grand Boa et le Toboraft... Pensez aux maillots de bain : ils sont obligatoires !- -L'univers tropical-Image d'un paradis perdu, la serre offre au regard ébloui les multiples beautés de la Nature. Une Nature exubérante et riche qui s'épanouit en un désordre savamment organisé ; une Nature idéalisée, exempte d'insectes urticants, de serpents venimeux ou de prédateurs inquiétants ; en un mot une Nature telle qu'on la rêve.- -Le pays de la tradition-L'empreinte du souvenir-Remontez le cours du temps en partant à la découverte des métiers d'antan : vous apprécierez tout le savoir-faire des artisans du passé, dans la pénombre du cuvage, à la lueur des vieilles devantures : celles du coiffeur, du tonnelier, de l'horloger, du grainetier et du marchand de jouets vous attendent pour vous révéler leurs trésors... sans compter le musée des Minéraux, qui recèle bien des merveilles ! Laissez-vous gagner par la nostalgie des années trente...- -Espace restauration-Ne restez pas sur votre faim !-Nous vous proposons plusieurs formules-• Le snack-bar vous attend pour les petits creux !-• Le restaurant vous propose un cadre agréable, en terrasse ou dans la salle intérieure qui donne sur la serre tropicale, d'où vous parviendront le chant des oiseaux exotiques et le murmure de la cascade...-• Les aires de pique-nique sont également à votre disposition-N'oubliez pas la pause shopping !-La boutique de Touroparc vous offre un grand choix de souvenirs, insolites ou plus classiques...- -Le parc zoologique est ouvert de 09H30 à 18h30. -16,50 euros / pers. à partir de 4 ans -Les attractions fonctionnent de 11h30 à 17h30 -Les toboggans aquatiques fonctionnent en alternance de 13h30 à 17h30. -Fermeture générale : 19 h.-",null,null,"touroparc zoo;71;parc;romaneche"]
[null,880,"LES ACROBOIS","parc d'attraction","42-Loire","La versanne","Parc du Pilat (42)- -En plein coeur du Massif du Pilat, notre parc des Acrobois a déjà ravi plus de 280 000 acrobates !- -Le parc possède 10 parcours et plus de 140 jeux accessibles à tous les types de publics.- -Le village des Elfes et le parcours d'initiation, parcours de cabanes dans les arbres accueillent les plus petits à partir de 2/3 ans. - -Vous pouvez dès à présent réserver vos entrées au : -06 62 46 12 33- -Accueil des scolaires : Site conventionné par l'Inspection Académique de la Loire et encadrement assuré par un guide de haute montagne, agréé par l'Education National en tant qu'intervenant extérieur.- -- -Tarifs   Individuel Groupe*- -Village des Elfes et parcours d'initiation : 9,50 Euros (Individuel), 8,50 Euros (Groupe)Enfants de 5 à 10 ans :                             12 Euros (Individuel), 10 Euros (Groupe). Ados de 11 à 14 ans :                               15 Euros (Individuel),  13 Euros (Groupe). Adultes :                                                20 Euros (Individuel),  18 Euros (Groupe). Etudiants/chômeurs :                             18 Euros (Individuel),  16 Euros (Groupe). Visiteurs                                                gratuit  * A partir de 20 personnes - ** 2 adultes + 2 enfants minimum- -Enterrement vie de garçon ou vie de fille : l'entrée est offerte à l'heureux(se) élu(e).- -Nous proposons aussi pour les enfants : chasse au trésor, goûter d'anniversaire.- -Périodes et horaires d'ouverture -Le parc est ouvert d’avril à septembre, les week-end, les jours fériés et les vacances scolaires.Ouverture possible aussi, uniquement sur réservation pour des groupes déjà constitués de 20 personnes minimum.AVRIL/MAI/JUIN/SEPTEMBRE : de 10 heures à 18 heuresJUILLET/AOUT : tous les jours de 9 heures à 20 heuresAccès --Depuis Lyon / Saint Etienne--Autoroute A 47 en direction de Firminy Le Puy. Sortie n° 24 direction Annonay RN 82. Franchir le col de la République puis à l'auberge du Grand Bois, suivre la direction à droite de Saint-Sauveur en Rue, D 22. Le parc se situe à 300 mètres de l'auberge.Depuis Valence / Annonay--RN 82 en direction de Saint-Etienne. Au niveau de l'auberge du Grand Bois, suivre la direction à gauche de Saint-Sauveur en Rue, D 22. Le parc se situe à 300 mètres de l'auberge.",null,null,"les acrobois;42;parc;la"]
[null,881,"ASTRONEF","parc d'attraction","42-Loire","Saint etienne","Un voyage dans l'espace comme si vous y étiez !- -Le Planétarium de Saint-Etienne vous propose d'embarquer à son bord pour une fabuleuse expédition à la découverte du ciel et de ses merveilles. Installez-vous confortablement sous l'écran en demi-sphère, et 3,2,1... Décollage ! C'est parti pour des instants d'évasion uniques, le temps d'une séance.- -A la fois ludique et pédagogique, une séance de planétarium dure environ une heure ; elle comprend la diffusion d'un film en images de synthèse (en immersion dans l'image, les sensations sont garanties!) et une découverte du ciel nocturne en direct, guidée par un animateur, en reproduisant à l'écran le ciel tel qu'on pourrait le voir la nuit.- -Tout public à partir de 5 ans, le Planétarium de Saint-Etienne propose plusieurs séances, pour tous les âges et sur différentes thématiques astronomiques : les planètes du système solaire, la Voie Lactée, l'histoire de la conquête spatiale, les origines de la vie sur Terre, les missions spatiales, etc.- -HORAIRES-mercredi : 15h30-samedi et dimanche : 14h15* - 15h30 - 16h45-vacances scolaires (zone A) : 14h15* - 15h30 - 16h45-* séance de 14h15 de mars à cotobre uniquement- -TARIFS-tarif plein : 6.60 euros-tarif réduit : 5.50 euros-gratuit - de 5 ans-carte Astropass : 6 entrées = 24 euros (valable 1 an)- -Planétarium de Saint-Etienne-Espace Fauriel - 28 rue Pierre et Dominique Ponchardier - 42100 SAINT-ETIENNE-Tél. 04 77 33 43 01 - fax 04 77 33 35 70 - info(at)planetarium-st-etienne.fr-www.planetarium-st-etienne.fr-",null,null,"astronef;42;parc;saint"]
[null,882,"Campanile Moirans-Voreppe **","Hôtel/Restaurant","38-Isère","Moirans","Campanile Moirans-Voreppe **- -Notre Campanile Moirans Voreppe se situe à 20 km au Nord de la superbe ville de Grenoble !-Dans notre hôtel, vous recevrez un accueil chaleureux et sincère. Vos vacances promettent d'être fortement agréables.- -Nombre de chambres total : 49- -Confort :-Une étape sur la route du soleil ou des stations de ski ? Une invitation au tourisme vert ? Pourquoi ne pas s'arrêter à Moirans pour découvrir son patrimoine, ses ressources hôtelières, ses expositions artistiques ou participer à 'Cerises en Fête' , temps fort qui marque le début de la saison estivale en rappelant, par cette grande fête du terroir, le dynamisme de l'agriculture à Moirans. Un accueil simple et généreux, à l'occasion d'un voyage d'affaires ou en famille, quel que soit l'événement, vous aurez toujours une bonne raison de choisir le Campanile Grenoble - Moirans-Voreppe.- - -Campanile Moirans-Voreppe **-Centr'Alp - Entrée Ouest-38430 Moirans-",null,null,"campanile moirans-vo;38;hôtel-restaurant;moirans"]
[null,883,"Hôtel Balladins Moirans","Hôtel","38-Isère","Moirans","Hôtel Balladins Moirans- -L'hôtel Balladins Express est situé à Moirans, à quelques minutes de la charmante ville de Grenoble. Vous apprécierez l'excellent rapport qualité-prix de nos hôtels et un service de qualité.- -Nombre de chambres total : 48-- -Hôtel Balladins Moirans-230 Rue de l'Eygala-38430 Moirans-",null,null,"hôtel balladins moir;38;hôtel;moirans"]
[null,884,"Au Sans Souci","Hôtel/Restaurant","38-Isère","Saint paul les monestier","Au Sans Souci- -Le Restaurant-Voici la présentation de notre restaurant composé de deux salles, d'un salon et d'une terrasse pour les beaux jours. Sa capacité varie de 50 à 80 couverts selon la configuration. Vous pourrez y déguster nos spécialités telles que les poissons d'eau douce, gibiers, morilles farcies au foie gras. Les menus sont revisités chaque saison avec des produits frais de saison issus des producteurs de la région tels les poissons issus de la pisciculture des sources de l'Archiane dans le Vercors.   - - -Vous pourrez consulter la carte de saison, visiter notre établissement et pourquoi pas réserver pour vos prochaines vacances, repas de famille ou séminaires.-",null,null,{"$f":"SUBSTITUTE(LOWER(LEFT(C196,20) & \";\" & LEFT(E196,2) & \";\" & IFERROR(LEFT(D196,SEARCH(\" \",D196)-1),D196) & \";\" & IFERROR(LEFT(F196,SEARCH(\" \",F196)-1),F196)),\"/\",\"-\")","v":"au sans souci;38;hôtel-restaurant;saint"}]
[null,889,"LA ROSELIÈRE **","Hôtel/Restaurant","38-Isère","Saint quentin fallavier","HÔTEL <st1:PersonName ProductID=~LA ROSELIÈRE~ w:st=~on~>LA ROSELIÈRE **- -<st1:PersonName ProductID=~LA ROSELIÈRE~ w:st=~on~>La Roselière, à l'opposé de l'hôtellerie de chaîne, se veut un établissement à vocation ~d'hôtel de charme~ et vous donne l'assurance d'un séjour agréable.-A votre disposition une salle de billard et une bibliothèque pour vos soirées détente.- - -40 chambres de catégorie ** NN toutes équipées :-d'une salle de bain (douche, WC) d'un téléviseur couleur avec canal + et canal satellited'un téléphone-RESTAURANT <st1:PersonName ProductID=~LA ROSELIÈRE~ w:st=~on~>LA ROSELIÈRE- -Notre restaurant gastronomique vous accueillera dans un cadre intime et chaleureux aux couleurs méditerranéennes. Laissez vous séduire par notre carte. Chaque plat a été mis au point par notre chef talentueux et inventif qui a sélectionné avec soin des produits frais et de qualité, et cela pour votre plus grand plaisir.- -En saison d'hiver, soyez gourmets et laissez vous tenter par nos plateaux de fruits de mer (huîtres, coquillages, crustacés, poissons...) En saison d'été, notre Grill, côté piscine, vous propose un large éventail de grillades et salades.-- -LA ROSELIERE**-20 Boucle Ramée-38070 Saint Quentin Fallavier-",null,null,"la roselière **;38;hôtel-restaurant;saint"]
[null,892,"Kyriad Seyssins **","Hôtel","38-Isère","Seyssins","-Kyriad Seyssins **- - -L'Hôtel qui dit mieux !-Le meilleur équilibre entre la garantie de qualité et le charme de la diversité.- - -Nombre de chambres total : 45- -",null,null,"kyriad seyssins **;38;hôtel;seyssins"]
[null,893,"VENTOUX AVENTURE","parc d'attraction","84-Vaucluse","Mormoiron","Avec le Ventoux en toile de fond, au milieu de falaises d'ocres, au bord d'un plan d'eau (baignade surveillée Juillet et Août).Venez vivre une aventure inoubliable, en évoluant d'arbre en arbre en toute sécurité, entre amis, en famille nous vous proposons 3 heures de sensations et de plaisir.- -Emotions Garanties- -Avant le départ un briefing vous présentera les règles de sécurité et les consignes à respecter. Nos accompagnateurs sont présents sur l'ensemble du parcours pour vous conseiller et vous surveiller.- -Dans ce parc, de 4 hectares, on trouve une végétation méditerranéenne composée de chênes, de marronniers et principalement de pins maritimes. Les arbres du parc utilisés pour les plates-formes ont une hauteur allant de 25 à 30 mètres. Les pins maritimes sont utilisés car ce sont les plus résistants et les plus appropriés pour supporter des charges.- - -Il n'y a eu ce jour aucun changement d'arbres cependant en cas de problème sur un arbre, l'atelier serait automatiquement remplacé ! Les collines qui entourent le parc offrent de nombreuses possibilités de randonnée sur des sentiers et chemins.- -Pour des randonnées sportives, le Mt Ventoux est un terrain à la fois exigeant par le dénivelé et l'altitude (1912 m)  et étonnant par la richesse et la variété de la flore et la faune présente. Vous trouverez de nombreux chemins et itinéraires balisés ainsi que de nombreuses activités de pleine nature à la station de ski du Mt Serein.-",null,null,"ventoux aventure;84;parc;mormoiron"]
[null,894,"FUN PARC AVENTURE","parc d'attraction","84-Vaucluse","Richerenches","Au coeur de ~l'Enclave des Papes~, à quelques minutes de VALREAS,  venez découvrir un parc de loisirs familial- -A partir de 6 ans-Location de quads 50, 60 et 200 cm3, sur une piste de vitesse de 400 m, une piste initiation de 150 m et une piste de trial (initiation au franchissement).Randonnées quad de 40 minutes à la journéeLaserBall sur terrain naturel (16 personnes maximum) Ouvert tous les jours en juillet et août et toute l'année sur réservation à partir de 6 personnes pour le LaserBall et 3 personnes pour le quad - -Nous pouvons organiser à votre demande des demi-journées- -ou journées d'animation avec un choix d'activités supplémentaires-",null,null,"fun parc aventure;84;parc;richerenches"]
[null,895,"Le Musée de l'eau ","Visite/Loisir","38-Isère","Pont en royans","-Un concept audacieux : Le musée de l'eau et l'hôtel**restaurant du musée de l'eau. dans le Parc Régional du Vercors.- - -Le musée de l'eau de Pont en Royans est un complexe audacieux ludique, scientifique, culturel et pédagogique consacré à l'eau sous toutes ses formes. Les eaux du Vercors, les eaux du Monde, l'eau à boire, l'eau poétique et vitale, le sujet, objet de ce musée, semble inépuisable...Audacieuse et visionnaire, cette invitation à la découverte de l'eau s'adresse aux habitants de la région et aux touristes amateurs de lieux inédits. Son concept novateur et contemporain, tant par l'approche interactive de ses expositions que par sa conception architecturale, séduira le grand public, adultes et enfants, ainsi que les spécialistes, étudiants, et enseignants. L'eau entre en scène dans ce lieux imaginé par Andrea BRUNO. Muséographie légère, fluide ; tout a été prévu par l'architecte pour surprendre et captiver le visiteur, depuis l'entrée qui le conduit comme s'il était une goutte d'eau, jusqu'au couloir dans lequel il passera du climat tempéré aux climats polaire et tropical. Yvez Pillet, maire de Pont-en-Royans et initiateur du projet, confie que la visite du musée sera ~un grand moment de plaisir dans un lieu sympatique, frais, avec de belles choses à voir~ . - - -Aujourd'hui, un rôle important...- -Plus qu'un outil à simple vocation touristique, c'est un équipement au service du développement local, régional et internationnal emmené par Bruno Vitte, le directeur, et son équipe de 16 personnes. - -Développement local-Grâce aux salles de séminaires et conférences, à l'hôtel** restaurant  du musée de l'eau, au bar à eaux et son espace d'expositions temporaires, cet ensemble complet est un véritable levier économique pour le territoire. Le pari de générer une activité touristique sur les 3/4 de l'année est gagné.- -Une recette toute simple en apparence, qui représente un véritable défi. ~Je voulais une partie commerciale en appui à l'espace culturel pour équilibrer le budget~, explique le maire de Pont-en-Royans. - -Pôle d'information régional :-Un relais d'informations ~Parc Naturel Régional du Vercors~ intégré également dans la structure constitue un pôle d'informations au service du territoire et du public. - -Rôle international :-Le co-financement d'un barrage au Sénégal est un parfait exemple de l'implication des collectivités locales et du musée dans les échanges avec des pays d'Afrique et des pays européens. - -Nouveauté 2007 :-La salle de projection équipée pour films 3D-Actuellement à l'écran : Le film ~monstres des abysses~ co-produit par la cité des Sciences et de l'industrie, Océanopolis et le grand aquarium de Gênes. Une immersion totale dans les grands fonds océaniques à la rencontre d'animaux extraordinaires. En 3D et immages de synthèse.-",null,null,"le musée de l'eau ;38;visite-loisir;pont"]
[null,897,"Aven Grotte de Marzal ","Visite/Loisir","07-Ardèche","Saint remeze","Historique du Site de Marzal-Le site de l'Aven-Grotte de MARZAL se situe à quelques kilomètres des célèbres gorges de l'Ardèche, qui se caractérisent par une profondeur de plus de 200 mètres, sur 35 km. En outre, le Pont d'Arc est une curiosité géologique remarquable. -Le nom de Marzal, donné à ce qui était alors connu comme ~l'Aven de la Barthe~, a pour origine le surnom d'un Garde-Chasse qui avait été tué par un braconnier en 1812, et qui l'avait jeté, ainsi que son chien, dans le gouffre. Quelques jours plus tard, le berger qui accompagnait le braconnier alla tout raconter à la gendarmerie qui récupéra le corps à 15 m. de profondeur  dans la première partie de l'Aven.--L'Aven-Grotte de MARZAL fut explorée pour la première fois en 1892 par le maître de la spéléologie, Edouard-Alfred MARTEL Il la décrivît, dans son livre ~Les Abîmes~, comme une des plus belles qu'il connaissait du point de vue de la variété et des couleurs de ses concrétions. Puis, l'orifice du gouffre fut bouché et son emplacement oublié. Ce n'est que le 27 Mars 1949  que le spéléologue valentinois Pierre AGERON, le redécouvrit après 15 ans de recherches. L'aménagement du gouffre même fut entreprit et la visite de sa première partie a été ouverte  au public dès 1951. Les visiteurs accèdent dès lors à la salle principale par son plafond, à l'aide d'un escalier facile, dont la construction est unique et particulièrement audacieuse pour l'époque. -Visite de la Grotte  (visite guidée, 55 mn)-(température à l'interieur de la grotte: 10 à 12°C)-Après que votre guide vous ait donné quelques explications sur sa découverte et son aménagement à son entrée, vous pénétrerez dans l'Aven proprement dit. L'accès se fait par son orifice naturel dans sa partie ~Aven~ (mot d'origine celte signifiant puits naturel). Pierre AGERON et son équipe ont réalisé un escalier sur mesure, de façon à épouser  au mieux les parois de la cavité en préservant ses concrétions. Au cours de cette descente saisissante, vous surplomberez d'une hauteur de près de 40 mètres la ~Salle du Tombeau~,  vous vous en souviendrez longtemps ! --Arrivés sur le plancher de la grande salle, la plus volumineuse, son volume est comparable à l'intérieur de la cathédrale de Paris, vous découvrirez une gigantesque cascade de stalactites, où les couleurs varient à l'infini...d'un brun sombre du au passage de l'eau dans les couches d'oxyde de fer, ou transférant des matières organiques de la surface, au blanc neigeux de la calcite pure. -La découverte de cette salle débute par un son et lumière particulièrement émouvant, créé avec la chanson de Nicole Rieu ~la Goutte d'Eau~ et sa voix pure et cristalline. Puis, vous descendrez progressivement vers le fond de la partie visitable, par des salles aux concrétions variées (draperies, disques, stalactites, stalagmites, exentriques, ...). -Son trésor se trouve à - 125 m.: ~la salle des diamants~ et ses cristaux de calcite pure! La remontée se fait par un autre itinéraire qui vous conduiera vers la sortie à travers des ~marmites de géants~, puis un excalier artificiel.-Le Musée du Monde Souterrain   (visite ~audio-guidée~ 25 mn)-Visite auto-guidée de 21 mn en Français, Allemand et Anglais, accessible à tous, gratuite. Ce Musée est composé d'éléments offerts par la pllupart des familles des spéologues illustres.-Les spécialistes s'accordent à dire qu'il rassemble près de 80% de l'histoire de l'exploration souterraine -Salle 1: l'origine de la Spéléologie: Edouard-Alfred Martel et son livre ~ Les Abîmes ~ et le récit de sa découverte du Gouffre de Marzal en 1892--Salle 2: Les grands noms de la Spéléologie, avec leur matériel authentique (mannequins, matériel d'exploration, livres et documents): Norbert CASTERET, Guy de LAVAUR, Robert de JOLY, Pierre AGERON et Jean-Claude FLAHAUD. --Salle 3: Les découvertes lors des explorations ou des fouilles -· Moulage d'un authentique bébé Mammouth,  Oeufs de Dinosaures-· Ossements: crânes humains (préhistorique et récents), bison, renne, bouquetin, ours des cavernes, tigre à dents de sabre, chevaux, molaires de mammouth, vélocéraptor...-· Objets: pièces de monnaies, pierres taillées, perles des cavernes, etc... Le Zoo Préhistorique  (visite libre, 45 mn à ...)-Créé en 1983, le premier en France, il présente le long d'un parcours ombragé de 800 m. accessible à tous, des maquettes de Dinosaures, animaux et hommes préhistoriques ~grandeur nature~, pour la plupart réalisées sous contrôle de paléontologues. -En début et fin de visite, vous ferez connaissance avec des tarpans (poneys) et un Aurochs vivants, dont leurs races, recrées, étaient contemporaines des Hommes de Cro-Magnon.-Une sonorisation locale et d'ambiance  (tremblement de terre, irruption volcanique, traversée sonore du parc par un troupeau de mammouths, ...) vous surprendra. -Environnement du site-Le site de Marzal a été aménagé dans un souci constant de sa préservation écologique, avec des bâtiments d'accueil légers s'intégrant parfaitement à la nature environnante. Pour cette raison, les voies de circulation n'ont pas été goudronnées et sont terrassées avec matériaux locaux-Le site est complété par un bar avec terrasses, un restaurant ouvert en été sous les chênes verts, de nombreuses zones de pique-nique (dont une couverte pour près de 300 personnes), des parkings ombragés et des sanitaires, dont un est accessible aux handicapés.-Un véritable dolmen authentique se trouve à proximité de son parking!- Le site de Marzal a notamment été le théâtre du livre de P.J. Bonzon ~Les 6 compagnons au Gouffre de Marzal~, puis du film de Coline Serreau ~10 ans aprés~ (la suite de 3 hommes et un couffin).-Le site se trouve à proximité (3 km) des fabuleuses Gorges de l'Ardèche, qui dominent la rivière parfois de plus de 200 m. C'est le paradis des canöetistes (descentes de 25 à 35 km, nombreux rapides)--",null,null,"aven grotte de marza;07;visite-loisir;saint"]
[null,898,"Bonsaï Etape Vienne","Hôtel","38-Isère","Vienne","Bonsaï Etape Vienne *- - -Notre hôtel est situé dans la zone industrielle d'Estressin et nous sommes à 3km du centre ville. A proximité immédiate de la ville, forêts et rivières, vous incitent à une balade ou à un séjour culturel ou sportif.- - -Nombre de chambres total : 48--",null,null,"bonsaï etape vienne;38;hôtel;vienne"]
[null,899,"HOTEL IBIS **","Hôtel/Restaurant","38-Isère","Vienne","HOTEL IBIS **- - -Nombre de chambres total : 54- - -HOTEL IBIS **-Place CJouffroy-38200 VIENNE-",null,null,"hotel ibis **;38;hôtel-restaurant;vienne"]
[null,900,"PYRAMIDE F. POINT","Hôtel","38-Isère","Vienne","HOTEL PYRAMIDE F. POINT ****- - -Nombre de chambres total : 25- -Confort :-L'hôtel propose 20 ch et 4 appts + 1 ch à mobilité réduite. Dans un décor subtil et raffiné où la sérénité et le confort se disputent au silence. Il est doté d'un restaurant gastronomique- -Equipements :-Salle de réunion, Espagnol parlé, Anglais parlé, Allemand parlé, Italien parlé, Carte de crédit, Restaurant, Parking, Ascenseur.-",null,null,"pyramide f. point;38;hôtel;vienne"]
[null,901,"Best Western Grand Hotel De Paris ***","Hôtel/Restaurant","38-Isère","Villard de lans","Best Western Grand Hotel De Paris ***- - -A chacun de leurs séjours, nos clients apprécient la qualité Best Western, la première chaîne hôtelière au monde. Parce que chaque voyage est une expérience unique, bienvenue dans notre univers de charme et de grand confort !- - -Nombre de chambres total : 60-",null,null,"best western grand h;38;hôtel-restaurant;villard"]
[null,903,"La Taïga **","Hôtel/Restaurant","38-Isère","Villard de lans","A Villard de Lans, au coeur du Parc Naturel Régional du Vercors, La Taiga vous accueille toute l'année pour des séjours pleine nature : VTT, Cyclotourisme, Randonnée pédestre ou raquettes.- -Dans ce Chalet Hôtel de montagne, vous trouverez un accueil personnalisé dans un cadre calme et reposant.- -Jardin ombragé et fleuri, agréable terrasse. Endroit idéal pour se ressourcer et profiter des plaisirs de la neige ou du bon air des montagnes.- -Au restaurant  ~Vercors et Saveurs~, Marie José et Dominique vous préparent une cuisine traditionnelle de montagne à base de produits régionaux et de terroir.- -La Taïga-150, rue des Jeux Olympiques-38250 VILLARD DE LANS-",null,null,"la taïga **;38;hôtel-restaurant;villard"]
[null,904,"Musée de la Lavande ","Visite/Loisir","07-Ardèche","Saint remeze","-Cette plante millénaire serait originaire de Perse. Au 1er siècle, Pline l'ancien, le naturaliste et Dioscoride médecin et botaniste mentionnent dans leurs ouvrages les lavandes ~Aspic~ et ~Stoechas~ et Dioscoride les classe parmi les plantes précieuses.- -Le mot lavande daterait du moyen-âge, mais cette plante était déjà utilisée par les Egyptiens, les Grecs et les romains pour parfumer leurs bains et entretenir leur linge. Les celtes fabriquaient une lotion à base d'huile essentielle de lavande appelée le ~Nard Celtique~ employé en pharmacie et en parfumerie. On fait référence au nard dans le nouveau testament, dans la maison de Simon le lépreux, Madeleine la pécheresse oignit les pieds du seigneur avec ce nard. En 1371, la culture de la lavande existait en bourgogne sous forme de ~jardins de simples~ où l'on cultivait d'autres herbes servant aux apothicaires. A partir de 16ème siècle l'essence de lavande est distillée en Provence, elle soigne les plaies et sert de vermifuge. Au 18ème siècle, en association avec d'autres plantes aromatiques, la lavande était un remède employé contre la peste. C'est au 19ème siècle avec le développement de l'industrie et de la parfumerie que l'on commence à cultiver cette plante sauvage.- -La lavande appartient à la famille des labiées qui groupe des plantes aromatiques comme le thym, la sarriette, le romarin, l'origan, la menthe, la sauge etc, des espèces abondantes dans les régions méditerranéennes. La lavande pousse sur les sols arides et dans les montagnes calcaires à faible altitude. Sur tous les continents, plusieurs espèces de lavandes existent à l'état sauvage ou cultivées. La structure de la fleur de lavande semble adaptée à la visite des abeilles, le dos de l'insecte se couvre de pollen et lorsque l'insecte pénètre dans une autre fleur il pourra assurer la pollinisation. La lavande maritime pousse sur des terrains siliceux, sa floraison est précoce, son odeur est forte et légèrement camphrée, son essence de qualité inférieure est utilisée en peinture. Cette lavande n'existe pas en Ardèche, elle n'offre aucun intérêt pour la parfumerie et n'a jamais été cultivée. Sur notre petit plateau ardéchois, poussent à l'état sauvage la lavande aspic, dans les garrigues environnantes et la lavande fine, sur la Dent de Rez qui culmine à <st1:metricconverter ProductID=~700 mètres~ w:st=~on~>700 mètres. A une altitude intermédiaire se côtoient ces deux espèces et aussi le lavandin.- -La lavande aspic pousse de 200 à 600 m d'altitude sur des terrains calcaires et secs, exposés au soleil. Son odeur est forte, pénétrante et très camphrée, elle fleurit en Août. De part sa teneur en camphre, elle est employée dans plusieurs produits pharmaceutiques. C'est une lavande très peu cultivée. La lavande fine pousse à partir de 500 m jusqu'à 1400 m d'altitude d'altitude sur les versants sud, les tiges sont relativement courtes avec un seul épi. Comme l'aspic elle a un système de reproduction sexué et donne des graines. Chaque plante est génétiquement différente, c'est ce que l'on appelle des lavandes de population. On observe donc de grandes différences d'aspects entre les plantes et ainsi que dans la composition de l'essence...-",null,null,"musée de la lavande ;07;visite-loisir;saint"]
[null,908,"LASER GAME EVOLUTION PLAN DE CAMPAGNE","Loisir/Sport","13-Bouches du Rhone","Les pennes mirabeau","Fair Play et Convivialité- -Venez découvrir les sensations uniques d'une partie de LASER GAME dans le plus grand centre de jeu laser de PACA. Entre amis ou en famille, vous pouvez jouer de 6 à 35 joueurs en même temps dans un des 3 labyrinthes de 150 à 600 m2.  Jeu accessible à partir de 6 ans !- - -Reservez votre créneau le jour et l'heure de votre choix : vous jouerez entre vous et ne serez jamais mélangés avec des joueurs que vous ne connaissez pas (si vous êtes au moins 6 personnes). Sauf evidemment si vous lancez un défi à un groupe présent sur place dans ce cas jouez ensemble en n'oubliant jamais cette règle : Restez FAIRPLAY !- -Réservation au 04 42 74 11 11.- -Pour vos soirée entreprise, séminaires, anniversaire nous pouvons vous mettre à disposition une salle de réception/séminaire de 140m2 : n'hésitez pas à nous consultez pour tous vos évenements.- -   -Tarifs (par personne) :--En semaine : 9 euros par personne pour 1 partie de 20 minutes-                    16 euros par personne pour 2 parties de 20 minutes-                     21 euros par personne pour 3 parties de 20 minutes- -                         11 euros par personne pour 1 partie de 30 minutes-                          20 euros par personne pour 2 parties de 30 minutes-                      27 euros par personne pour 3 parties de 30 minutes- - - -Week-end (du Vendredi 19h00 au Dimanche), Jours Fériés et veilles de jours fériés à partir de 19h00 :-                   10 euros par personne pour 1 partie de 20 minutes-                    18 euros par personne pour 2 parties de 20 minutes-                          24 euros par personne pour 2 parties de 20 minutes- -Formule anniversaire : 18 euros par personnes : 2 parties de Lasergame de 20 minutes, boissons fraîches à volonté et possibilité  de faire le gateau sur place (Réservation au 04 42 741 111)- -Enterrement de vie de célibataire : parties offertes aux futurs mariés si vous êtes plus de 10 joueurs.- -Entreprises, CE, associations, Mairies, Centres Aérés, BDE : appelez Fabrice au 06 65 01 28 26 : tarifs spéciaux !- - -Horaires d'ouverture :-Hors vacances scolaire : LUNDI : 14h00 - Minuit-                                             MARDI : 14h00 - Minuit-                                    MERCREDI : 14h00 - Minuit-                                    JEUDI : 14h00 - Minuit-                                    VENDREDI : 14h00 - 01h00-                                    SAMEDI : 10h00 - 02h00-                                    DIMANCHE : 10h00 - Minuit- -Pendant les vacances : Tous les jours de 10h00 du matin à 01h00 !!!- -                               - -",null,null,"laser game evolution;13;loisir-sport;les"]
[null,911,"Hôtel Kyriad Voiron Chartreuse **","Hôtel","38-Isère","Voiron","Hôtel Kyriad Voiron Chartreuse **- -L'Hôtel qui dit mieux aux portes de Grenoble, face au parc de l'hôtel de ville de Voiron, à proximité de Centr'Alp emplacement idéal pour un bon séjour d'affaires (Centr'Alp Voreppe-Moirans) ou touristique (30 sites)- -Nombre de chambres total : 56- -Confort :-Hôtel entièrement climatisé à réglage individuel dans chaque chambre, chambres équipées de salle de bain complète (baignoire, sèche cheveux), toilettes, téléphone prise modem, télévision internationale 20 chaînes, plateau de courtoisie, livre de chevet bilingue.- -Equipements :-En plus de nos chambres l'hôtel Kyriad de Voiron-Chartreuse dispose de <st1:metricconverter ProductID=~122 m²~ w:st=~on~>122 m² de salles de réunions modulables, jusqu'à 130 personnes en théâtre, avec <st1:metricconverter ProductID=~18 mètres~ w:st=~on~>18 mètres de baies vitrées, matériel de base compris dans les forfaits, disposition en U, théâtre, école, ou aménagement pour show room, conférence, séminaire.- -Services :-Le restaurant situé au rdc de l'hôtel est ouvert 7j/7, le service est assuré jusqu'à 23h, le room service est possible moyennant un supplément. Grand parking privé.- - -Hôtel Kyriad Voiron Chartreuse **-72, cours Becquart Castelbon-38500 Voiron-",null,null,"hôtel kyriad voiron ;38;hôtel;voiron"]
[null,914,"NOVOTEL ST ETIENNE AEROPORT","Hôtel/Restaurant","42-Loire","Andrezieux boutheon","Etablissement adhérent à l'Office du Tourisme et des Congrès de Saint-Etienne. 98 chambres confortables et spacieuces, toutes équipées de TV satellite, téléphone direct et minibar, dans un véritableécrin de verdure de 2000 m2. Possibilité de réserver des chambres ~familles~ sur demande de disponibilité en direct avec l'hôtel. - -Chez NOVOTEL, aucun supplément et gratuité des petits déjeuners pour les enfants de moins de 16 ans partageant la chambre des parents. - -Notre restaurant ~Côté Jardin~ au décor chaleureux et aux larges ouvertures sur la terrasse, la piscine et le jardin extérieur vous proposera des formules adaptées à vos envies, qu'elles soient festives ou d'ordre professionnel.- -Un cadre idéal pour vos réunions de travail où se conjuguent efficacité, calme et tranquilité.-Situé à15 mn du centre ville.-",null,null,"novotel st etienne a;42;hôtel-restaurant;andrezieux"]
[null,915,"Hôtel Balladins","Hôtel","42-Loire","La ricamarie","Notre Balladins Saint Etienne Confort est situé dans le charmant village de La Ricamarie. Nous sommes situés proche de la ville de Saint Etienne.- -Nombre de chambres total : 48-",null,null,"hôtel balladins;42;hôtel;la"]
[null,916,"VILLAGE DES AUTOMATES","parc d'attraction","13-Bouches du Rhone","Saint cannat","-LE VILLAGE DES AUTOMATES-Parc de loisirs familial/parc d'attraction pour enfants.- - -Situé à 12 Km d'Aix en Provence, le Village des automates, parc de loisirs pour enfants, vous accueille dans un espace boisé de 8 hectares entre chênes et pins.- -Rentrez dans le monde magique des automates et découvrez-les dans des univers amusants, ludiques et féériques. La maison du Mexique, la pagode des pandas, le palais des 1001 nuits, la maison de la jungle, le château de Père-Noël, la baleine de Pinocchio et bien d'autres encore vous ouvriront leurs portes afin que vous puissiez écouter les histoires et chansons de nos chers amis les automates.- -Baladez-vous de maison en maison dans un monde enfantin puis profitez des aires de jeux mises en places pour les petits: Parcours aventure des dragons et de la ferme, chenilles à toboggan, jeux d'eau et brumisateurs (en été uniquement), tourniquet et jeux à ressorts, labyrinthe et boîte à rires, etc....Une multitude de petites attractions qui apporteront à vos bambins joie et bonne humeur.- -Les enfants pourront également voyager à bord du petit train du potager magique et rencontrer ainsi d'amusants légumes....(sup. 1 euro).- -Profiter aussi de la ~Ferme des animaux heureux~ avec sa basse-cour, ses moutons et chèvres, ses vaches, ânes poneys et cochons.  - -Par ailleurs, le Village des automates propose à chaque période de vacances des animations originales et divertissantes: Spectacles, expositions ou/et ateliers...retrouvez notre programme en cliquant sur ce lien: http://parc-de-loisirs-provence.com/evenements-actualites.php .- -Le parc dispose aussi d'un tout nouveau snack avec terrasse ainsi que d'une grande boutique dans laquelle plus de 1000 jouets en bois, en fer ou à poils vous attendent...Il y en à pour tous les budgets, du petit souvenir au cadeau de Noël!- -Nattendez plus pour redevenir un enfant le temps d'une journée et venez nous rendre visite....- -A très bientôt!- - -L'équipe du Village des automates.- -LE VILLAGE DES AUTOMATES-PARC DE LOIRIRS FAMILIAL- -CHEMIN DE LA DILIGENCE, RN7-13760 SAINT-CANNAT-TEL: 04 42 57 30 30- -Dates, horaires d'ouverture et tarifs: www.villagedesautomates.com  -  -",null,null,"village des automate;13;parc;saint"]
[null,917,"Indian Forest Sud Accrobranche ","parc d'attraction","13-Bouches du Rhone","Bouc bel air","~Dans un cadre haut en couleur, venez profiter en famille, entre amis d'un week-end fort en émotion.~- -Vous pourrez vous distraire et évoluer d'arbres en arbres en toute sécurité pendant 2 heures.- -Des aires de pique-niques, l'espace restauration ainsi que les prairies sont à votre disposition pour passer une agréable journée.- -Notre activité est la première située en milieu urbain. Il s'agit d'un parc d'aventures en foret parmi les plus grands d'Europe; 8 parcours avec 130 ateliers sur 4 hectares - -Nos parcours sont ouverts de 10h à 19h, 7jours/7 durant les vacances scolaires et les mercredis,samedis et dimanches le reste de l'année mais aussi sur réservation pour les groupes - à partir de 15 personnes.- -Vous évoluerez en toute sécurité, équipés de matériel récent et contrôlé quotidiennement.-Après une initiation, nos moniteurs suivront toutes vos évolutions. - -C'est une approche qui,associée à différents objectifs pédagogiques vous apportera: -La confiance en soi.l'entraide.L'équilibre.Le contrôle et la coordination des gestesL'évolution et l'adaptation dans un milieu-différent.L'utilisation à bon escient du matériel.Le décryptage des panneaux indicatifs.Le respect des consignes de sécuritépeut  permettre une réflexion intéressante aux  éducateurs et  enseignants.Makikata et Ecureuil-Parcours pour les 5-8ans-Adaptés à leur age et quelque soit la taille.-Parcours ludiques permettant une première approche des différents ateliers garantissant de premières émotions et sensations.-Parcours à 1m de haut, à hauteur des parents pour les suivre dans leur évolution.- -Marcassin-Grand parcours des petits, accessible à tous les enfants, on y teste son courage au départ d'une tyrolienne longue de 60 m.- -Lièvre Blanc-Parcours de découverte pour les adultes-Accessible aux enfants de plus de 150 cm bras tendu.-Durée moyenne 20 minutes. -Parcours très varié d'une hauteur maximale de 5m.- -Pic Vert-Accessible aux enfants de plus de 160 cm bras tendu.-Durée moyenne 30 minutes.-Parcours plus aérien et technique. - -Isatis-Accessible aux enfants de plus de 180 cm bras tendu.-Parcours très aérien avec une grande tyrolienne de 120m.- -Bartavelle-Accessible aux enfants de plus de 190 cm bras tendu-Durée moyenne 40 minutes-Parcours long, aérien très varié-Demande un engagement physique et technique.-Atelier à sensation forte.- -Aigle noir-Accessible aux enfants de plus de 195 cm bras tendu. -Durée moyenne 45 minutes -Parcours réservé aux plus sportifs-Seuls les plus courageux et volontaires parviendront au bout. -Possibilité d'arrêter en cours de parcours grâce à des échappatoires.-",null,null,"indian forest sud ac;13;parc;bouc"]
[null,919,"Parc Zoologique de Fréjus ","Parc animalier","83-Var","Frejus","-Créé en 1971, dans un cadre naturel boisé typiquement méditerranéen, il bénéficie du climat privilégié de la Côte d'Azur - 250 jours de soleil par an! Au cours de votre promenade (à pied ou en voiture) dans notre parc de 20 hectares, vous allez découvrir plus de 130 espèces animales originaires des cinq continents. Du plus petit, le Tamarin Pinché (Saguinus oedipus) au plus gros, l'Eléphant asiatique (Elephas maximus) ; des mammifères, aux oiseaux en passant par les reptiles, il y en aura pour tous les goûts! - - - Mais au-delà du plaisir des yeux, le parc zoologique de Fréjus, à pour principale vocation de mieux faire connaître la faune sauvage, bien souvent menacée dans son habitat d'origine. Le but ambitieux que nous poursuivons, est d'apporter notre pierre à l'édifice de la protection de la nature en assurant la reproduction de certaines des espèces animales les plus fragiles, surtout celles en danger ou en voie d'extinction. Pour mener à bien ce vaste et ambitieux projet, notre parc a été aménagé de façon à respecter les impératifs qui conditionnent l'acclimatation en vue de la reproduction des différentes espèces animales présentées.- -Il est bien évident que la vie au grand air, tout au long de l'année, et un ensoleillement prolongé sont, entre autres, des atouts indéniables favorisant la reproduction de nombreuses espèces. La qualité de l'alimentation joue également un rôle important dans le succès de notre entreprise et nous mettons un point d'honneur à donner à nos pensionnaires une nourriture composée exclusivement d'aliments naturels en respectant bien sur, le régime alimentaire de chaque espèce (viande pour les carnivores, fruits et légumes frais ou foin pour les végétariens, alimentation mixte pour les omnivores). Les évènements récents ne font que conforter la justesse de nôtre démarche.- - -Nos efforts sont régulièrement récompensés par nombre de naissances, d'espèces communes mais aussi et surtout d'espèces menacées - Tigre (Panthera tigris), Panthère (Panthera pardus) - ou en voie de disparition - Maki Vari (Varecia variegatus).- -Enfin, nous sommes également là pour vous faire découvrir les relations privilégiées qui peuvent s'établir entre l'homme et l'animal. Ceci étant démontré par le jeu auquel se livrent nos soigneurs dans nos spectacles de fauves.- --Parc Zoologique de Fréjus-Zone du Capitou-83600 Fréjus--",null,null,"parc zoologique de f;83;parc;frejus"]
[null,921,"Funnyland Parc ","parc d'attraction","83-Var","La seyne sur mer","\u007f-Parc de plus de 15 attractions pour les enfant de 2 à 12 ans avec manèges, tobboggans et jeux en bord de mer.--Funnyland Parc-Parking des sablettes-83500 SEYNE SUR MER (LA) --",null,null,"funnyland parc ;83;parc;la"]
[null,922,"Formule 1 Roanne","Hôtel","42-Loire","Le coteau","Formule 1 Roanne- - -Nombre de chambres total : 62- -Confort :-A 4Km Centre VilleFace IBISAccès du C.Ville Gare par bus No4.",null,null,"formule 1 roanne;42;hôtel;le"]
[null,923,"IBIS ROANNE","Hôtel/Restaurant","42-Loire","Le coteau","Nombre de chambres total : 67- -Confort :-L'hôtel de référence pour les affaires et les loisirs sur l'agglomération de Roanne - -Equipements :-Italien parlé, Espagnol parlé, Anglais parlé, Carte de crédit, Restaurant, Parking.-",null,null,"ibis roanne;42;hôtel-restaurant;le"]
[null,924,"HELIOS","Hôtel/Restaurant","42-Loire","Mably","HOTEL RESTAURANT HELIOS **-Nombre de chambres total : 45- -Nouveaux propriétaire de l'HÔTEL Hélios à ROANNE, Cécile et Henri seront heureux de vous accueillir pour vos séjours affaires ou week -end. -Un accueil personnalisé.Un excellent rapport qualité /prix.Un suivi de qualité par des controles réguliers.  Notre bar et salon donnant sur la piscine est à votre disposition. - -Dans notre salle à manger claire et spacieuse, une cuisine traditionnelle et de qualité vous sera servi du Lundi au Samedi.-Et une salle de 20 pesonnes pour organiser vos séminaires. - -A votre disposition nos 42 Chambres modernes (gd.lit, 2 lits et pour handicapés) avec tout le confort. Télévision et Canal+...- -Petit déjeuner buffet en salle ou servi dans votre chambre. - -Notre hôtel est situé à 5 minutes du centre ville de ROANNE et de la gare SNCF.- -Accès direct RN 7 de Paris ou de Lyon.- -",null,null,"helios;42;hôtel-restaurant;mably"]
[null,925,"Hostellerie La Poularde ***","Hôtel/Restaurant","42-Loire","Montrond les bains","Hostellerie La Poularde ***- -Notre Hôtellerie-Au coeur de Montrond les Bains, pour votre plus grand confort, l'hôtellerie de La Poularde a plusieurs facettes :-3 suites junior de plain-pied, de style contemporain, spacieuses (40 m2) donnant sur le patio intérieur et la piscine ; 3 appartements avec salon indépendant de style cosy dont l'un avec lit à baldaquin ; 3 duplex de style ~rétro~ donnant également sur le patio et la piscine ; 7 chambres agréablement décorées. Les Chambres-7 chambres ~cosy~, spacieuses, de bon confort.- -Les Appartements-3 appartements de style contemporain orientés directement sur la piscine, avec un salon indépendant.- -Les Duplex-3 duplex de style contemporain orientés directement sur la piscine. Le salon se trouve au rez-de-chaussée, la chambre et la salle de bain à l'étage.- -Les Suites junior-3 suites junior (dont une accès handicapé) de plain-pied avec terrasse, de style contemporain, spacieuses (40 m2) donnant sur le patio intérieur et la piscine.-",null,null,"hostellerie la poula;42;hôtel-restaurant;montrond"]
[null,927,"CAMPANILE ROANNE","Hôtel/Restaurant","42-Loire","Roanne","HOTEL RESTAURANT CAMPANILE ROANNE ***-38, rue de Mâtel-42300 ROANNE-04.77.72.72.73 -Le Campanile, situé dans la charmante ville de Roanne, vous offre qualité et confort ! Un accueil chaleureux personnalisé et garanti vous attend.- -Nombre de chambres total : 60- -Equipements :-Carte de créditRestaurantParking gratuitConnexion wifi gratuiteChambres a mobilité reduite -",null,null,"campanile roanne;42;hôtel-restaurant;roanne"]
[null,928,"HELIOS","Hôtel/Restaurant","42-Loire","Roanne","Nouveaux propriétaire de l'HÔTEL Hélios à ROANNE, Cécile et Henri seront heureux de vous accueillir pour vos séjours affaires ou week -end. -Un accueil personnalisé.Un excellent rapport qualité /prix.Un suivi de qualité par des controles réguliers.  Notre bar et salon donnant sur la piscine est à votre disposition. - -Dans notre salle à manger claire et spacieuse, une cuisine traditionnelle et de qualité vous sera servi du Lundi au Samedi.-Et une salle de 20 pesonnes pour organiser vos séminaires. - -A votre disposition nos 42 Chambres modernes (gd.lit, 2 lits et pour handicapés) avec tout le confort.-Télévision et Canal+...- -Petit déjeuner buffet en salle ou servi dans votre chambre. - -Notre hôtel est situé à 5 minutes du centre ville de ROANNE et de la gare SNCF.- -Accès direct RN 7 de Paris ou de Lyon.-",null,null,"helios;42;hôtel-restaurant;roanne"]
[null,929,"Musée de L'Alambic ","Visite/Loisir","07-Ardèche","Saint desirat","- -Une activité débordante ... en fruit - - -Grâce à sa situation géographique privilégiée : le coeur de la vallée du Rhône, la distillerie JEAN GAUTHIER a considérablement développé son activité de distillation et réceptionne chaque année plusieurs milliers de tonnes de fruits : POIRE, MIRABELLE, PRUNE, KIRSCH, ABRICOT, etc...-  -Un outil de production performant et une équipe dynamique - -Avec 20 salariés permanents et quelques saisonniers, notre capacité de réception, de broyage et de préparation des moûts de fruits peut aller jusqu'à 300 tonnes / jour.-La pulpe est stockée dans 70 cuves extérieures soit une capacité totale de 4000 tonnes.-    -Un process d'élaboration suivi de A à Z :- -la maîtrise de la qualité- -L'élaboration d'une eau de vie c'est :- - -La réception des fruits -Le contrôle de la maturité -Le broyage -La mise en fermentation -La distillation -Le stockage et le vieillissement -La mise au degré -La filtration -La mise en bouteille - - -    -Chaque poste clairement défini est soumis en permanence à des contrôles rigoureux par les responsables de production.- -La distillation est une phase importante où la qualité est synonyme de ~savoir-faire~.-Deux batteries d'alambics où se succède une équipe de distillateurs 24h / 24 et 7j / 7 permettent de travailler 45 tonnes de fruits / jour.- -Une commercialisation efficace...        - -Notre contrôle des coûts d'approvisionnement -Notre maîtrise des coûts de production -L'importance des volumes distillés -Les quantités d'eau de vie en stock -      - ... nous permet une offre ciblée en fonction de vos besoins et au meilleur rapport QUALITÉ / PRIX.     -Du fût de 30 litres à la citerne de 30 000 litres, de la mignonnette à la bouteille fantaisie, notre objectif est de présenter à nos clients les Eaux de Vie qu'ils souhaitent au meilleur prix.-Consultez-nous et nous vous apporterons une solution performante et de qualité.- -Plus de 150 000 visiteurs -cette année- - -<FONT size=+0>De la rigueur dans la préparation du moût- -1 - RÉCEPTION DU FRUIT : La Distillerie est passée de quelques centaines de tonnes de fruits issus de notre production dans les années 80 à plus de 6000 tonnes réceptionnées en 1999. Cette augmentation est due aux succès croissant de nos Eaux de Vie, à une production de fruits importante dans notre région ces dernières années, et à une diversification des fruits distillés (en particulier Kirsch, Mirabelle et Framboise). Notre zone d'approvisionnement est essentiellement située dans le sud de la France.- -2 - CONTRÔLE DE LA MATURITÉ : Après une sélection rigoureuse, les fruits sont stockés dans des palox de 450 kg. Notre chef de production pulpe contrôle quotidiennement l'évolution du fruit qui sera acheminé sur les postes de broyage à une maturité optimum. - -3 - BROYAGE : Plusieurs chariots élévateurs et deux postes de broyage nous permettent de transformer jusqu'à 250 tonnes par jour. La pulpe est stockée dans 60 cuves extérieures, soit une capacité totale de 3 200 tonnes.- -4 - FERMENTATION : La fermentation est une phase importante pour le développement aromatique des Eaux de Vie : acidification, levurage, contrôle de températures et remontage quotidien font l'objet d'une attention particulière du responsable de production-<FONT size=+0> -",null,null,"musée de l'alambic ;07;visite-loisir;saint"]
[null,930,"CAMPANILE St Chamond","Hôtel/Restaurant","42-Loire","St chamond","-Le Campanile St Etienne St Chamond vous offre qualité et confort ! Vous y recevrez un accueil incomparable.- -Nombre de chambres total : 47- -Confort :-Climatisation, téléphone, télévision et satellite dans les chambres- -Equipements :-Salle de réunion, Anglais parlé, Carte de crédit, Restaurant, Parking privé, garage privé.-",null,null,"campanile st chamond;42;hôtel-restaurant;st"]
[null,931,"ETAP HOTEL","Hôtel","42-Loire","Saint etienne","--Nombre de chambres total : 48- - -Equipements :-Allemand parlé, Anglais parlé, Carte de crédit, Parking.-",null,null,"etap hotel;42;hôtel;saint"]
[null,932,"IBIS CHATEAUCREUX","Hôtel/Restaurant","42-Loire","Saint etienne","--Nombre de chambres total : 88- - -Equipements :-Anglais parlé, Espagnol parlé, Carte de crédit, Parking, Ascenseur.-",null,null,"ibis chateaucreux;42;hôtel-restaurant;saint"]
[null,934,"Les secrets d'Antésite","Visite/Loisir","38-Isère","Voiron","La formule du concentré Antésite référencée sur le plan national. Créée en 1898 à Voiron, la formule du concentré Antésite est aujourd'hui référencée sur le plan national dans toutes les grandes centrales d'achat françaises. Son volume des ventes a doublé sur les dix dernières années. - -En marge de son produit phare, <st1:PersonName ProductID=~la société Antésite~ w:st=~on~>la société Antésite a multiplié ses activités dans la commercialisation de produits de grande consommation, d'extraits de réglisse aux industries agro-alimentaires et du principe actif de la réglisse à l'industrie pharmaceutique et cosmétologique.- -Voiron au coeur des « Secrets d'Antésite »-Dans son espace muséographique, spécialement dédié aux archives de la société, se côtoient d'anciennes affiches publicitaires, de vieux flacons, des outils ancestraux... Une ambiance d’antan que l'on retrouve dans l'ancienne salle de production conservée en l'état. Par ailleurs, des vidéos et une visite de l'usine de fabrication permettent de plonger dans l'univers actuel d’Antésite. - -Vous pourrez ainsi constater que les notions d’authenticité et de patrimoine prennent toute leur importance dans la réalisation du produit. Enfin, un espace de dégustation et de vente permet de terminer cette visite dans un agréable moment de convivialité et d’échanges. - -Laissez-vous emporter dans un tourbillon d'arômes à travers un siècle d'histoire et de traditions ! Après un an et demi d'existence, les Secrets d'Antésite mettent en place une Carte d'Ambassadeur destinée à encourager les visites des habitants de proximité. Principe de la carte : faire la visite une fois et revenir gratuitement autant de fois que souhaité en faisant découvrir le site à son entourage.- -Les Secrets d'Antésite-RN 75-Coublevie-38500 Voiron-",null,null,"les secrets d'antési;38;visite-loisir;voiron"]
[null,936,"IBIS-NORD LA TERRASSE","Hôtel/Restaurant","42-Loire","Saint etienne","--Nombre de chambres total : 85- - -Equipements :-Anglais parlé, Italien parlé, Espagnol parlé, Carte de crédit, Restaurant, Parking, Ascenseur.-",null,null,"ibis-nord la terrass;42;hôtel-restaurant;saint"]
[null,938,"Espace Zoologique ","Parc animalier","42-Loire","St martin la plaine","Parcourir les allées ombragées du Parc, c'est pénétrer dans un nouveau monde fait de mille et une sensations. -Nez à nez avec un Gorille ou un Lion ! c'est possible grâce à nos enclos vitrés.-",null,null,"espace zoologique ;42;parc;st"]
[null,939,"Hôtel Tenor","Hôtel","42-Loire","Saint etienne","-L'hôtel Tenor ** vous propose, au cœur du centre ville de Saint Etienne une capacité d'hébergement de 64 chambres, la possibilité d'organiser des séminaires et toutes les cordes d'un hôtel 2 étoiles.- -Sa situation exceptionnelle plein centre offre la proximité immédiate des musées, galeries et autres manifestations culturelles, permet de visiter à son rythme les différentes curiosités de la ville, mais aussi de découvrir au détour des rues piétonnes les nombreux restaurants et d'y déguster les spécialités culinaires de la Loire.- -L'équipe de l'hôtel Tenor vous accueille dans son cadre chaleureux 7 jours sur 7 et reste à votre disposition 24h sur 24.-",null,null,"hôtel tenor;42;hôtel;saint"]
[null,940,"Kyriad","Hôtel","42-Loire","Saint etienne","- -Kyriad **-77 rue Montat-42100 Saint-Etienne- -",null,null,"kyriad;42;hôtel;saint"]
[null,941,"Résidence Jules Ferry","Hôtel","42-Loire","Saint etienne","-La résidence avec services para-hôteliers se situe au coeur de la ville, à 5 minutes à pied du centre commercial. St Etienne, deuxième ville de Rhônes-Alpes est réputée pour son art de vivre.- - -Salon :- -A découvrir :-Musée des Arts ModernesMusée de la mineMusée d'art et d'industrieMarché des antiquitésGolf, base nautique de Saint-VictorPlanétarium  -Les manifestations :-Festival des 7 collinesBiennale internationale du DesignFête du livre Les spectacles de l'Esplanade, scène nationale",null,null,"résidence jules ferr;42;hôtel;saint"]
[null,942,"Grottes de la Balme ","Visite/Loisir","38-Isère","La balme les grottes ","LES GROTTES DE LA BALME- -Les Grottes de la Balme constituent une véritable synthèse des grottes en France. Elles étonnent par la richesse et la diversité des phénomènes souterrains qui la composent.- -Avec leur porche monumental creusé dans les falaises calcaires de l'Isle Crémieu, les Grottes de la Balme ont toujours fait partie de la vie du village et de ses habitants. D'abord refuge contre le froid pour les hommes préhistoriques, des magdaléniens, cachette pour le contrebandier isérois Mandrin, lieu de pèlerinage pour François Ier et… salle de bal pour les villageois, elles sont depuis 1807 visitées par des touristes curieux de découvrir ce monde souterrain. - -La visite, dure une heure et quart, et rayonne autour de la Salle de la Grande Coupole, surprenante par ses volumes (<st1:metricconverter ProductID=~40 mètres~ w:st=~on~>40 mètres de haut !)- -Autour de cette salle, des galeries se succèdent, et l'émerveillement s'accroît, vous découvrirez:-les Labyrinthes de Mandrin et de François 1er, le Lac souterrain,la Grande Fontaine et bien d'autres beautés de la nature.-Les Grottes de la Balme abritent une mosaïque de sculptures laissées par le travail de l'eau. D'abord des labyrinthes, pour le plaisir des petits et des grands, formés par l'eau des glaciers. Puis des petits bassins, dont le bleu de l'eau contraste avec le blanc scintillant du calcaire. Et bien sûr des stalactites et stalagmites qui mesurent parfois jusqu'à <st1:metricconverter ProductID=~3 mètres~ w:st=~on~>3 mètres de hauteur.- -Les Grottes de la Balme abritent également une faune très diverse. Vous pourrez observer les choucas, ces cousins des corbeaux, qui nichent sous le porche d'entrée. Les chouettes, araignées et niphargus, des crevettes cavernicoles, se feront plus discrètes à votre passage, et seuls les plus chanceux pourront les apercevoir.- -L'hôte le plus éminent des Grottes de la Balme est sans conteste la chauve-souris. Plusieurs espèces rares ont été répertoriées, comme par exemple le Grand Rhinolophe, et elles sont plusieurs centaines à venir se réfugier dans la galerie supérieure qui leur est désormais réservée. --",null,null,"grottes de la balme ;38;visite-loisir;la"]
[null,943,"HOTEL PREMIERE CLASSE","Hôtel","42-Loire","Villars","-Le Campanile St Etienne Villars la Terrasse vous offre qualité et confort ! Au Campanile vous serez reçus amicalement par notre équipe dévouée.- -Nombre de chambres total : 72- -Equipements :-Espagnol parlé, Anglais parlé, Italien parlé, Chèques vacances, Carte de crédit, Parking.-",null,null,"hotel premiere class;42;hôtel;villars"]
[null,944,"Le relais d'Agay **","Hôtel/Restaurant","83-Var","Agay","Le relais d'Agay **- -Un hôtel** face à la plage- -Deux ambiances disponibles-Un seul hôtel réparti sur 2 habitations ~les Platanes~ et ~les Acacias~- -33 chambres pour vous accueillir. parking privé fermé la nuit.- - -~Les Acacias~-Des chambres provençales climatisées à 5 métres de la plage de sable fin - -~Les Platanes~-Des chambres modernes et fonctionnelles. La réception, la salle petit déjeuner et la terrasse avec ses platanes centenaires.-",null,null,"le relais d'agay **;83;hôtel-restaurant;agay"]
[null,946,"Bastide du Calalou ***","Hôtel","83-Var","Aups"," -Dominant la vallée, nichée au flanc de la colline de Moissac-Bellevue, la Bastide du CALALOU reste fidèle à son histoire.-Ce Bâtiment de caractère est la maison de la mémoire et du charme provençal.-Vous y découvrirez un oasis de calme, de verdure et d'ombrages centenaires, des intérieurs conjuguant meubles d'époque et confort.-Le Chef vous fait découvrir dans un décor provençal, sa cuisine méditerranéenne.-A mi-chemin entre la Provence de Cézanne et celle de Pagnol, vous découvrirez un pays où la douceur de vivre est un art.-Vous aurez envie de goûter à tout.-Dans le Haut Var, les collines sont parsemées d'oliviers, de vignes et de petits villages provençaux. -Et pour les amoureux de la nature, il y a bien sûr les Gorges du Verdon avec le majestueux Lac de Sainte-Croix, à deux pas de la Bastide du Calalou.-Avec le littoral et ses 430 km de côtes, vous profiterez des plages bordées de pins parasols.-De charmants villages tels que Sainte-Maxime ou Saint-Tropez multiplieront votre amour du sud.-Nombre de chambres total : 32.Confort : TV - Satellite / Seminaires / Accueil Enfants / Tennis / Equitation à 10Km.Equipements : parking, piscine en plein air.-Bastide du Calalou ***-MOISSAC-BELLEVUE-83630 AUPS--",null,null,"bastide du calalou *;83;hôtel;aups"]
[null,948,"Pullman Marseille Palm Beach","Hôtel/Restaurant","13-Bouches du Rhone","Marseille","Sofitel Palm Beach Marseille ****-Construit en bord de mer, à 10 minutes du centre ville de Marseille, 28 kilomètres de l'aéroport Marseille Provence, l'hôtel bénéficie d'une vue unique sur la baie du Prado.-150 chambres et 10 suites, toutes vue mer. Etages non-fumeur. TV à la carte. Restaurant méditérranéen spécialités poissons, bar avec terrasse, espace forme, piscine, sauna, jacuzzi, parcours jogging et ponton d'accostage. Tennis et sports aquatiques. Golf. 10 salles de réunions (600 personnes) et un amphithéâtre (340 places).--Restaurant-La Réserve : Le restaurant offre une vue sur la mer et la piscine depuis sa terrasse. Il propose une cuisine méditérrannéenne à base de produits frais et de poissons ainsi qu'une liste de vins régionaux. -Terrasse-Air conditionné-Espace Non Fumeur-Repas au bord de la piscine-Heures d'ouverture : 12:00-14:00 / 20:00-22:00-Animaux acceptés-Type de cuisine : Gastronomique-Menu enfants--Bar-Le Soleil : Bar avec vue sur la mer et la terrasse, spécialisé en préparation de cocktails et en jus fraîchement pressés. -Snack-bar-Heures d'ouverture : 11:00-1:00-",null,null,"pullman marseille pa;13;hôtel-restaurant;marseille"]
[null,950,"New Hotel Of Marseille ****","Hôtel/Restaurant","13-Bouches du Rhone","Marseille","New Hotel Of Marseille ****-Nouveauté : WIFI GRATUIT à la réception, hall, salons, bar et restaurant !-Dernier né de la chaîne New Hotel, le New Hotel of Marseille a ouvert ses portes en avril 2006. L' hotel est situé au coeur de la cité phocéenne, face au palais des congrès du Pharo et à deux pas du Vieux Port. Il s'agit d'un établissement moderne et design de 100 chambres sur cinq niveaux équipé d'un restaurant ~Le Victor Café~ avec terrasse, un bar lounge, une piscine avec terrasse et transats, des espaces de réunion, un business centre et d'un parking public souterrain avec tarif préférentiel (9 euros/24h).-Bénéficiant d'une situation exceptionnelle, à 5 minutes à pied du centre ville, le New Hotel Of Marseille est un établissement de choix pour des séjours de loisir ou affaires...-Le restaurant Victor Café-Grâce à la terrasse du restaurant vous pourrez profiter des beaux jours en vous faisant servir à l'extérieur. C'est dans un décor à la fois chic et sobre que le chef propose une carte aux influences méditerranéennes, mélées d'un soupçon d'originalité venue d'ailleurs.-Parking au tarif préférentiel de 1 euro / heure.--Le Victor Café vous propose différentes formules :-Formule déjeuner à 19 eurosMenu à 25 eurosMenu à 39 eurosAinsi que des nouveautés à découvrir sans plus attendre...-Brunch au champagne à 29 euros, tous les dimanches de 12h30 à 15h30Au bar, venez déguster nos Pic'assiette avec votre apéritif (2 euros/brochette)Le restaurant accepte les chèques restaurant. -Il est ouvert tous les jours de la semaine !-Les chambres-Sur les trois premiers étages, l'hôtel possède 75 chambres standard simples ou doubles, 3 chambres pour personnes à mobilité réduite, 8 chambres supérieures avec terrasse et 8 suites avec terrasse.-Toutes les chambres sont climatisées et insonorisées et possèdent coffre fort (taille ordinateur portable), minibar, Machine Nespresso, bureau, accès WIFI (payant), TV écran plat LCD, chaines satellites, Canal +, salle de bain avec sèche cheveux, peignoirs et chaussons.--New Hotel Of Marseille  -71, Boulevard Charles Livon-13007 Marseille-",null,null,"new hotel of marseil;13;hôtel-restaurant;marseille"]
[null,951,"Hôtel Apogia *** ","Hôtel","06-Alpes Maritimes","Nice ","-Entièrement entouré des couleurs de la côte d'azur, l'hôtel Apogia Nice, a été construit pour répondre à toutes vos exigences ; en plein centre et à deux pas de la Promenade des Anglais, l'hôtel Apogia Nice, se met à la disposition de tout type de clientèle, 100 chambres toutes insonorisées et confortables, un accueil chaleureux, et une mer bleue pour vous, aideront à concilier travail, plaisir, culture, réalisant ainsi un séjour parfait dans notre structure.-Hôtel Apogia Group votre bien-être notre défi.- -A cinq minutes de la promenade des anglais et de ses plages, du centre historique et de son pittoresque Marché des fleurs, l'hôtel Apogia Nice jouit d'un placement idéal pour participer au fameux carnaval, au prestigieux Nice Jazz Festival ou pour flaner ace Chagall ou Matisse ( musées ) Que ce soit pour vos vacances ou pour vos séjours d'affaires, l'hôtel propose des chambres confortables, insonorisées, et climatisées avec des services privés, sèche cheveux, radio, téléphone, TV, coffre fort, et minibar. Parking souterrain fermé. A dix minutes de l'aéroport international de Nice et à deux pas du palais des congrès Nice Acropolis, l'hôtel Apogia Nice est un lieu privilégié.--",null,null,"hôtel apogia *** ;06;hôtel;nice"]
[null,952,"Holiday Inn Marseille ****","Hôtel/Restaurant","13-Bouches du Rhone","Marseille","Holiday Inn Marseille ****-Situé sur la célèbre Avenue du Prado, artère stratégique du quartier d'affaires de la Cité Phocéenne et à proximité du Parc Chanot, du Stade Vélodrome et du Palais des sports, l'hôtel vous offre des prestations de qualité. Entièrement rénové, Holiday Inn Marseille Avenue du Prado est une destination privilégiée pour vos séjours ~loisirs~ ou ~affaires~. --Le Restaurant--Pour vos déjeuners et dîners, notre restaurant est ouvert de 12h00 à 14h30 et de 19h00 à 22h30. Au restaurant ~Le Mytilus~, notre chef vous invite au voyage à travers sa cuisine créative et audacieuse. Mêlant produits de Provence et épices d’ailleurs, il sait éveiller vos sens et surprendre vos papilles. Faites escale dans les profondeurs des saveurs du Mytilus… -Le petit déjeuner est servi de 6h30 à 10h30 dans une ambiance chaleureuse et raffinée. Il est composé de viennoiseries, céréales, jus de fruits, boissons chaudes, charcuteries, œufs, légumes, corbeille de fruits, produits laitiers... - HOLIDAY IN MARSEILLE-103, AVE DU PRADO-13008 MARSEILLE- -",null,null,"holiday inn marseill;13;hôtel-restaurant;marseille"]
[null,958,"Sofitel Marseille Vieux Port*****","Hôtel/Restaurant","13-Bouches du Rhone","Marseille","Sofitel Marseille Vieux Port***** - -Au coeur de Marseille, à quelques minutes de la Canebière, niché entre le promontoire rocheux du Palais du Pharo, le fort St-Jean et le fort St-Nicolas, l'hôtel offre une vue panoramique sur la cité Phocéenne. - -Le Sofitel Marseille Vieux Port est une escale incontournable le temps d'un séjour culturel, touristique ou d'affaires.- --L'hôtel dispose de 134 chambres dont 3 suites, dans un nouveau design, un Bar Lounge ~Le Carré~, 8 salons privatifs pour l'organisation de tous vos évènements, un restaurant gastronomique ~ les Trois Forts~, un Spa, une piscine extérieure et un business center, ainsi qu'un service de concierges clés d'or , de voituriers et un service de transfert en limousine.--Restaurant Gastronomique ~Les Trois Forts~- -Le restaurant ~Les Trois Forts~ propose une gastronomie méditerranéenne, délicate alliance de tradition et de créativité. Le chef Dominique Frérard,  Maître Cuisinier de France, renouvelle sa prestigieuse carte au gré des saisons, des pêches et des primeurs...- -Heures d'ouverture : 12:00-14:00 / 19:00-22:00 ---Bar Lounge ~LE CARRE~- -Le Carré vous accueille chaque jour dans une ambiance feutrée et décontractée enrichie de saveurs nouvelles. Il vous propose un service en continu en quatre temps : petit déjeuner, brunch, apéritif, tapas, cocktails en soirée.- -Heures d'ouverture : 07:00-01:00- -Les Chambres- -Chambre(s) : 134 -Chambres fumeur : 43-Nombre total de suites : 3 -Chambres handicapé : 4- - -Sports et Loisirs- -Activités et événements dans l'hôtel :- -SO Spa : 570m2 de bien être où remise en forme,-soin du corps, et relaxation, se conjuguent dans un -décor aux effluves marines face au Vieux Port.--Détente et Remise en forme--Bains type ~Jacuzzi~--Hammam--Piscine Intérieure Chauffée--Sauna--Solarium- -Piscine plein air chauffée-Organisation de séminaires et réceptions -Soirées Tapas-3 salles à manger privatives avec vue panoramique-Service du Wine Flight au Carré: ~l'envol oenologique~- -Activités à proximité de l'hôtel :  - -o        Thalassothérapie -o        Thermes marins -o        U.V.A - -·         Golf -o        Golf 18 trous -o        Golf 9 Trous -o        Leçons de golf -o        Practice de golf - -·         Plage et sports nautiques -o        Aviron -o        Excursion en bateau -o        Jet-ski -o        Kayak -o        Pêche en mer -o        Pédalo -o        Plage privée -o        Planche à voile -o        Plongée avec masque et tuba -o        Ski nautique -o        Voile - -·         Tennis -o        Leçons de tennis -o        Tennis sur surface rapide - -·         Autres activités sportives -o        Billard /Snooker -o        Boulodrome / pétanque -o        Equitation -o        Football -o        Location de vélo -o        Piste de jogging -o        Terrain de squash -o        Volley ball - -·         Divertissements -o        Discothèque / Night-Club-",null,null,"sofitel marseille vi;13;hôtel-restaurant;marseille"]
[null,959,"BEL OMBRA **","Hôtel","83-Var","Bandol","Idéalement situé en centre ville, au calme. A 200 mètres de la plage abritée de Renécros. Le port, les commerces, les restaurants à deux pas. Activités sportives proches de votre hôtel. -Vous trouverez calme et confort dans le pastel de votre chambre. -Arrosées de vin de Bandol, vous goûterez nos spécialités provençales dans un agréable cadre de verdure... Buffet petit déjeuner avant une journée de découvertes et de baignades...--BEL OMBRA **-Rue de la Fontaine-83150 Bandol-",null,null,"bel ombra **;83;hôtel;bandol"]
[null,960,"Hôtel de la Baie ***","Hôtel","83-Var","Bandol","Hôtel De La Baie ***-62 rue Docteur Louis Marçon-83150 BANDOL-Situé sur le front de mer face au casino de jeux, deux plages à proximité.-L'hôtel est à deux pas du centre ville et d'un accès facile, c'est un pied-à-terre idéal pour une escapade en amoureux ou un séjour en famille.-Visite des calanques, des îles de BENDOR et des EMBIEZ...--A proximité des activités de toute nature : Ecole de voile, Plongée, Nautisme, Karting, Parachute ascensionnel, Jet-sky, Equitation, Tennis, Golf...- -",null,null,"hôtel de la baie ***;83;hôtel;bandol"]
[null,961,"Dolce Fregate","Hôtel/Restaurant","83-Var","Bandol","Dolce Fregate Provence ****- -Avec son hôtel **** de 133 chambres et suites chaleureusement décorées, son centre de conférences pouvant accueillir jusqu'à 200 personnes, ses piscines intérieure et extérieures, son parcours de golf de 18 + 9 trous, ses tennis, son institut de beauté, ... Dolce Frégate Provence est la destination idéale pour vos séminaires, incentives ou séjours de loisirs.- - -Les Chambres- -Chacune des 133 chambres, suites et suites resort est authentique et chaleureuse. Les meubles en bois peint aux tons pastels, les sols en terre cuite, les murs à la chaux patinée, font écho aux tissus traditionnels. Et cet ensemble crée une ambiance reposante. Depuis votre balcon ou terrasse, vous apercevez au loin ... le bleu de la mer qui contraste harmonieusement avec le vert des fairways et du green du trou 18 qui défilent au pied de l'hôtel.- - --DOLCE FREGATE PROVENCE-Lieu-dit Frégate, Route de Bandol-83270 Saint-Cyr-sur-Mer--",null,null,"dolce fregate;83;hôtel-restaurant;bandol"]
[null,963,"Hôtel Best Western Soleil et Jardin ****","Hôtel","83-Var","Sanary sur mer","BEST WESTERN Hôtel Soleil et Jardin-445 avenue de L'Europe Unie-83110 SANARY SUR MER-Dans le sud de la France, à la sortie de l'autoroute du soleil, au coeur d'une charmante station balnéaire, l'hôtel BEST WESTERN Soleil et Jardin vous réserve son meilleur accueil.-En visite touristique ou en voyage d'affaires, dans le cadre d'un séminaire, soyez le bienvenue chez nous !! -Amoureux de la Provence, des terrasses ombragées ou s'éternise les jeux de cartes avec ses ~tu me fend le coeur...~etc , de la ~mer bleue~, de ses couleurs, du chant des cigales, de la pétanque, l'hôtel BEST WESTERN Soleil et Jardin vous accueille été comme hiver. -Hôtel récent et entièrement climatisé, en Provence sur les bord de la méditérranée, entre Marseille et Toulon, notre hôtel 4 étoiles de charme est situé à quelques minutes à pied de la plage, du port et du centre ville.-Notre parking gratuit fermé et sécurisé est à votre disposition lors de votre séjour .-Vous y trouverez tous les services nécessaires à votre confort, votre tranquilité.-Toute l'équipe du BEST WESTERN Soleil et Jardin vous réservera son meilleur accueil pour que votre séjour soit inoubliable.- -",null,null,"hôtel best western s;83;hôtel;sanary"]
[null,964,"ILE ROUSSE ****","Hôtel","83-Var","Bandol","ILE ROUSSE ****Thalazur Bandol- -Sous le signe du soleil et de la Méditerranée- -A quelques pas du centre de Bandol, l'Hôtel Ile Rousse bénéficie d'une implantation idyllique en bord de plage avec une vue exceptionnelle sur les eaux bleues de la baie de Renécros et une plage de sable fin abritée. Des chambres spacieuses baignées de lumière, piscine, centre de thalasso, espace beauté, hammam, parcours marin, cardiotraining , bar, restaurant gastronomique et restaurants de plage, rien n'est laissé au hasard pour rendre votre séjour encore plus agréable. - -Pour votre confort :-55 chambres personnalisées et 12 suitesGarage privé ferméParking extérieur 3 Restaurants Centre de Thalassothérapie&amp;spa Salle de séminaire",null,null,"ile rousse ****;83;hôtel;bandol"]
[null,966,"Hôtel de la Plage **","Hôtel","83-Var","Bormes les mimosas","-L'Hôtel est situé sur la Côte d'Azur, dans un site accueillant et fleuri à deux pas de la plage et des commerces. La proximité des plages et les sentiers du littoral vous permettront de découvrir de somptueux paysages.-Nombre de chambres total : 45.--Hôtel de la Plage **-Boulevard de la Plage-83230 BORMES-LES-MIMOSAS--",null,null,"hôtel de la plage **;83;hôtel;bormes"]
[null,967,"La Garrigue","Hôtel","83-Var","Bormes les mimosas","-Sur la côte varoise, proche du fort de Bregançon.  --Hôtel La Garrigue-5478, Avenue Lou Mistraou-83230 BORMES-LES-MIMOSAS--",null,null,"la garrigue;83;hôtel;bormes"]
[null,969,"Hôtel du Golf de Barbaroux","Hôtel","83-Var","Brignoles","Hôtel du Golf de Barbaroux- -En Provence, au coeur de la forêt méditerranéenne, l'hôtel du GOLF de BARBAROUX vous accueille avec ses 24 chambres de standing et ses 8 appartements. Il est entouré d'un parc arboré, alternant pins, chênes, romarins et lavandes. Le silence et le calme permettent de profiter de la nature et de faire de votre séjour un moment de détente privilégié.- -Intégrées à la forêt, les chambres offrent un confort et une décoration chaleureuse. Elles possèdent toute leur propre terrasse et entrée indépendante. Elles sont entièrement équipées pour votre confort avec la climatisation, une salle de bain avec baignoire, la télévision par satellite, le mini bar et le téléphone. - -A partir du mois d'avril, vous pourrez vous prélasser et vous rafraîchir au bord de notre piscine, véritable havre de paix et de détente.- -2 RESTAURANTS GASTRONOMIQUES : ~LES TERRASSES DU GOLF~ et ~BRASSERIE BAR~- -Le Club House, situé en bordure de parcours, possède un style audacieux et chaleureux qui vous plongera dès votre arrivée dans une ambiance détendue et conviviale. - -Les deux salles de restaurant, d'une capacité de 150 personnes, offrent un style moderne et chaleureux avec des charpentes apparentes et la présence importante de bois clairs.-La grande surface vitrée des salles permet d'avoir la vue sur le parcours de golf, et plus loin sur les collines environnantes. - -Le bar du Club House vous accueille tous les jours, pour prendre votre petit déjeuner, boire un verre ou discuter. Dans les fauteuils du salon ou au comptoir, vous en apprécierez le calme baigné par le soleil. --Notre complexe est situé à seulement 10 mn de la sortie d'autoroute Brignoles (N°35), à 35 mn d'Aix en Provence, 50 mn de Saint Tropez et 1 heure de Nice.- - -<FONT size=+0>Hôtel du Golf de Barbaroux-route Cabasse-83170 BRIGNOLES---",null,null,"hôtel du golf de bar;83;hôtel;brignoles"]
[null,970,"Formule 1","Hôtel","83-Var","Brignoles","-Nombre de chambres total : 63.- -Formule 1-Quartier Raton-83170 Brignoles--",null,null,"formule 1;83;hôtel;brignoles"]
[null,971,"Ibis Brignoles","Hôtel/Restaurant","83-Var","Brignoles","Ibis Brignoles- -Nombre de chambres total : 41- -Confort :-Hôtel de 41 chambres situé près du centre ville. A 4 km se trouve la zone industrielle ~Les Consacs~ et le Parc des Expositions. Espace réunion (50 personnes), parking privé gratuit, piscine, restaurant, bar, terrasse, tennis et mini golf.-",null,null,"ibis brignoles;83;hôtel-restaurant;brignoles"]
[null,972,"Les gorges de Pennafort","Hôtel/Restaurant","83-Var","Callas","Les gorges de Pennafort- -Restaurant -Dans un cadre chaleureux, le chef  Philippe Da Silva, harmonise pour vous des saveurs authentiques.- -Philippe Da Silva, à la fois Chef et maître de ces lieux, utilise la richesse des saveurs locales pour créer des plats qui vous séduiront. Sa cuisine raffinée alliée à la qualité de l'accueil que vous réservera son épouse, sont autant d'arguments pour faire de cette charmante bastide provençale votre prochaine étape gourmande. Les gourmands, les plus curieux ne passeront pas à côté de notre Menu Dégustation.- -Notre cave, riche de plus de 200 vins, vous fait voyager de la Provence au Bordelais en passant par la Bourgogne et les Côtes du Rhône.-",null,null,"les gorges de pennaf;83;hôtel-restaurant;callas"]
[null,973,"Babyland","parc d'attraction","30-Gard","Le grau du roi","Babyland : jeux pour enfants-Amigoland : parc d'attraction- -Avenue du Palais de la Mer (derrière le Seaquarium)-30240 Le Grau-du-Roi- - -Du 04 au 11 Septembre ouvert de 10h à 20h A partir du 12 Septembre ouvert mercredi et week end de 14h à 19h",null,null,"babyland;30;parc;le"]
[null,974,"SITE DU PONT DU GARD","Visite/Loisir","30-Gard","Vers pont du gard","Il y a 2000 ans, pendant 5 ans, plus de 1000 personnes ont travaillé à la construction du Pont du Gard.  L'objectif alors, était d'amener l'eau dans la cité de Nîmes, au travers d'un aqueduc de 50 km de long. - -Depuis cette époque, le monde, ébahi, n'a cessé de tourner autour, marcheurs, promeneurs, amoureux, poètes, peintres en herbe, voyageurs organisés ou explorateurs du dimanche, d'ici et d'ailleurs… Le monument, remis en valeur dans son écrin naturel et protégé, plus majestueux que jamais, est accessible gratuitement. Le site offre de nombreux services (toilettes, renseignements touristiques, secours d'urgence….) et un accueil personnalisé. Amoureux d'histoire et d'archéologie, amateurs de balades et de grands espaces ou simples promeneurs, venez (re)découvrir ce site aménagé pour vous et y passer un moment agréable et inoubliable. En groupe, en famille ou entre amis, libre à vous d'organiser votre visite en fonction de vos goûts et de votre humeur…- -Le Site du Pont du Gard,  ce sont aussi...- -des espaces de découverte : Musée, Ciné, Ludo, Mémoires de garrigue,-des événements toute l'année : les 4 saisons vous convient à des animations, expositions et conférences, des visites guidées.- - -A Bientôt sur le Site du Pont du Gard !-",null,null,"site du pont du gard;30;visite-loisir;vers"]
[null,975,"L'Auberge des Mourgues","Hôtel/Restaurant","83-Var","Callian","L' Auberge des Mourgues **- -L' Auberge des Mourgues : Le charme d'une vieille bastide blottie entre le lac de Saint Cassien, le massif de l'Esterel et les villages de l'arrière pays Varois vous accueille pour un séjour en toute tranquillité.- -L’Auberge-Cette ancienne bergerie provençale vieille de 400 ans est située au pied de CALLIAN, l'un des plus vieux villages du Var, à 10 minutes du Lac de Saint Cassien et 20 minutes de la mer.- -Vous profiterez d'un cadre champêtre, calme et typique. - -Pour votre séjour, des possibilités de 1/2 pension vous seront proposées. Au restaurant vous pourrez déguster des spécialités régionales et traditionnelles. Vos loisirs seront agrémentés de la piscine, du ping-pong, des balades à pied ou à VTT.-",null,null,"l'auberge des mourgu;83;hôtel-restaurant;callian"]
[null,976,"Le Richiardi","Hôtel/Restaurant","83-Var","Carqueiranne","L'hôtel ** LE RICHIARDI, idéalement situé sur le petit port de pêche et de plaisance de CARQUEIRANNE, face à la presqu'île de Giens, vous propose de passer un agréable séjour dans un cadre idyllique.-Vous serez accueilli par une équipe jeune et dynamique.-Le village de Carqueiranne est l'un des derniers sites préservés et privilégiés de la Côte d'Azur. Situé à quelques mètres des plages et des commerces, l'hôtel vous dispensera d'utiliser votre véhicule. Le port de Carqueiranne est à quelques minutes d'Hyères Les Palmiers, desservie par l'aéroport et la gare (TGV).--Le Richiardi **-18 avenue Elie Gautier-83320 CARQUEIRANNE-",null,null,"le richiardi;83;hôtel-restaurant;carqueiranne"]
[null,977,"Hôtel de la Calanque","Hôtel/Restaurant","83-Var","Cavalaire sur mer","Bienvenue à l'Hôtel de la Calanque ****- -A l'Hôtel de la Calanque, la mer est votre invitée !-Du soleil levant au soleil couchant, elle est là à l'infini dans la plus belle baie de la Corniche des Maures. Midi, minuit, elle murmure, miroite, berce les étoiles... et vos nuits.- -Jamais vous ne perdez de vue le bleu de la Méditerranée. Devant le balcon de votre chambre, depuis les terrasses ou le bar, elle apparaît pour vous offrir un cadre de rêve. - -Du restaurant, la mer est la principale source d'inspiration du Chef... et vous pourrez savourer poissons frais péchés, langoustes ou bouillabaisse en admirant les flots.- -L’Hôtel-Il est des endroits inoubliables... L'hôtel de la Calanque vous invite au charme du bord de mer. Dans la région la plus ensoleillée de France, notre hôtel se situe dans un décor féerique, au cœur d'un cadre typique dans la plus belle baie de la Corniche des Maures. Des balcons, terrasses, bar ou restaurant, les couleurs bleutées de <st1:PersonName ProductID=~la mer M?diterran?e~ w:st=~on~>la mer Méditerranée offrent un panorama à perte de vue.- -Notre hôtel est entièrement climatisé et comprend 28 numéros dont 4 appartements et 1 chambre de prestige avec grande terrasse et jacuzzi. L'Hôtel de La Calanque possède 2 chambres côté colline, toutes les autres chambres sont face à <st1:PersonName ProductID=~la mer. T?l?phone~ w:st=~on~>la mer. Téléphone direct, télévision satellite, mini-bar. Accès par ascenseur. Garage et parking privés. Restaurant gastronomique avec terrasse. Piscine, jacuzzi, tennis, hammam. Animaux de compagnie acceptés. Petits séminaires.-",null,null,"hôtel de la calanque;83;hôtel-restaurant;cavalaire"]
[null,978,"Best Western Relais du Font Mourier","Hôtel","83-Var","Cogolin","Au coeur d'une région célèbre pour sa beauté et à quelques kilomètres de Saint-Tropez, le Relais de Font Mourier vous accueille dans une atmosphère familiale, lumineuse et chaleureuse : une halte privilégiée pour un séjour tout en détente.-Dans un cadre verdoyant idyllique et dans une résidence privée très calme, vous pourrez accéder à toutes les commodités liées à l'hôtel.-La piscine, le terrain de tennis privé et le sauna vous permettront de combiner le plaisir à la bonne forme.-L'hôtel met à disposition de son aimable clientèle un parking accessible aux autobus, privé et clos. Les sentiers aux alentours vous feront découvrir la richesse d'une nature préservée avec une magnifique vue sur la plaine de Grimaud et le golf de Saint-Tropez.--Best Western Relais de Font Mourier-Résidence Bellevue-83310 Cogolin--",null,null,"best western relais ;83;hôtel;cogolin"]
[null,979,"Karting du Rove ","Loisir/Sport","13-Bouches du Rhone","Rove"," -KARTING DU ROVE-1 CHEMIN DE LA BERGERIE-13740 LE ROVE- -",null,null,"karting du rove ;13;loisir-sport;rove"]
[null,982,"Proquad / Land ","Loisir/Sport","13-Bouches du Rhone","La penne/huveaune","-Envie d'extrême, de nature et de détente ?-Venez vous ressourcer au pied du Lubéron, à 30 minutes d'Aix en Provence-Le Domaine de La Royère, c'est : 100Ha de chemins privés pour la rando, Nos gîtes chaleureux et cuisine familiale.-notre salle de réception, pour vos séminaires et autres événements-Piloter nos quads 500 Scrambler, et prendre encore plus de plaisir-Découvrir nos « Ranger », ces machines entre le Quad et le 4X4, prendre le volant et franchir des endroits où-vous n'auriez jamais imaginé passer à bord d'un 4 roues !!! ( Nous disposons de plusieurs Rangers )-Notre toute nouvelle salle de Séminaire de 250 m2, toute équipée ( sono et micro, grand écran, salon détente,balcon spacieux plein sud, restauration sur place ) tout cela avec vue imprenable sur notre région splendide.-Pourquoi pas, entre le quad et le ranger, un baptême de l'air à bord d'un hélicoptère magnifique ! Imaginez-celui-ci se poser à vos pieds, embarcation et envol immédiat ! ( jusqu'à 4 personnes par vol )-En plus des nouveautés citées précédemment, après l'effort… la piscine et transats, le Spa,le jacuzzi, le-terrain de pétanque...-Sans oublier nos gîtes pouvant accueillir une vingtaine de personnes, notre cuisine familiale avec les-suggestions diverses et variées de Zora, cuisinière hors paire !-L'ensemble de l'équipe vous attend pour partager ces moments sur une journée, un week-end ou en semaine, laRoyère est ouverte toute l'année pour vos séminaires, anniversaires, mariages ou en famille.--PROQUAD-DOMAINE LA ROYERE-04860 PIERREVERT-- -",null,null,{"$f":"SUBSTITUTE(LOWER(LEFT(C260,20) & \";\" & LEFT(E260,2) & \";\" & IFERROR(LEFT(D260,SEARCH(\" \",D260)-1),D260) & \";\" & IFERROR(LEFT(F260,SEARCH(\" \",F260)-1),F260)),\"/\",\"-\")","v":"proquad - land ;13;loisir-sport;la"}]
[null,983,"LES CARAMAGNOLS","Camping/Location","83-Var","Cogolin","\u007f-Nous sommes un petit camping, en bordure de la forêt des Maures, à 15 km de ST-TROPEZ, 6 km de la mer et  3 km du village de Cogolin.-La période d'ouverture est du 15 juin au 15 septembre de chaque année.--Camping Les Caramagnols-Nationale 98 - Les Caramagnols-83310 Cogolin--",null,null,"les caramagnols;83;camping-location;cogolin"]
[null,984,"La Maison du Monde","Hôtel/Restaurant","83-Var","Cogolin","La Maison du Monde- -Dormir-Nous vous accueillons dans l'une de nos 12 chambres climatisées, aux tons doux et lumineux, aux matières épurées. Derrière chaque porte vous trouverez un havre de paix, un lieu de calme et de vie où nous avons souhaité anticiper chacun de vos souhaits.- -Déguster -Le petit déjeuner est pour nous un moment privilégié. Du café au thé, aux oeufs bacon et autres omelettes, aux fruits et jus de fruits frais, s'ajoute un buffet plein de surprises et de douceurs. En chambre, en terrasse ou en salle petit déjeuner l'hiver près d'un feu de cheminée, de 8h00 à 10h30 vous serez tenté par ce petit déjeuner brunch. La Maison du Monde assure une restauration légère tout au long de <st1:PersonName ProductID=~la journée. Une~ w:st=~on~>la journée. Une envie à la piscine, une arrivée tardive ? - -Nous saurons satisfaire vos envies salées ou sucrées.-Assiette gourmande ou italienne 10 €uro. -Assiette douceur 8 €uro.-Inspiration du jour.- -Pour dîner ou déjeuner nous vous communiquons notre liste de partenaires – à Cogolin, Grimaud ou Saint Tropez.-",null,null,"la maison du monde;83;hôtel-restaurant;cogolin"]
[null,987,"Le Victoria ***","Hôtel","83-Var","Draguignan","Hôtel Victoria ***-52 avenue Lazare Carnot-83300 DRAGUIGNAN-Au coeur de Draguignan, entre le grand canyon des gorges du Verdon et Saint-Tropez, à 50 minutes de l'aéroport international de Nice, vous serez accueilli dans l'hôtel - restaurant*** Victoria dans la grande tradition hôtelière.-Cet hôtel particulier d'époque victorienne, construit sous Napoléon III, vous accueillera dans ses 22 chambres climatisées avec douche ou bain, équipées de TV réception satellite, bar, téléphone direct et, pour votre sécurité, de serrures à cartes.-Equipements-Salles de séminaire,Parking extérieur fermé.",null,null,"le victoria ***;83;hôtel;draguignan"]
[null,988,"LASER QUEST","parc d'attraction","06-Alpes Maritimes","Cannes la bocca"," -Un monde nouveau s'ouvre à vous...- -Vous entrez dans un univers radicalement différent, où votre survie dépend de votre intelligence et de votre facilité à vous adapter à un nouvel environnement. Dans une base sous marine, isolé des autres humains, c'est à VOUS de prendre les armes, des pistolets laser haute technologie, pour sauver la planète...-  - -Tarifs-1 partie (à l'unité) : 8 euros2 parties (en un seul achat) : 14.50 euros*3 parties (en un seul achat) : 19.50 euros**Tarifs dégressifs valables pour l'achat en une seule fois pour une même personne, à jouer d'affilé.-Mardi soir : dès 18h, la 1ére partie est gratuite pour les filles ( sans obligation d'en refaire une autre).- -Horaire d'hiver:-Ouvert du Lundi au Jeudi de 15h à 00HVendredi et Samedi ouvert de 14h à 01hDimanche ouvert de 15h à 20hHoraire d'été: -Ouvert du Lundi au Jeudi de 14h à 23hVendredi et samedi ouvert de  14h à 00hDimanche ouvert de 14h à 20h - Laser Quest Cannes-28 Avenue des ARLUCS-06150 CANNES LA BOCCA- -",null,null,"laser quest;06;parc;cannes"]
[null,989,"Hôtel Mercure Draguignan ***","Hôtel","83-Var","Draguignan","-En centre ville, de l'autre côté des Gorges du Verdon.-Charmant hôtel de 38 chambres climatisées (2 pour personnes handicapées, 10 non fumeurs).-Près de la Vieille Ville, restaurants, musées et marché provençal.-  -Hôtel Mercure-11 A boulevard Georges Clemenceau-83300 DRAGUIGNAN--",null,null,"hôtel mercure dragui;83;hôtel;draguignan"]
[null,990,"MARINELAND COTE D'AZUR","parc d'attraction","06-Alpes Maritimes","Antibes","Le monde de la mer GRANDEUR NATURE- -Toujours étonnant, Marineland vous fait partager un Océan d'Emotions.- -Eblouissants : les orques, dauphins, otaries et rapaces invitent chaque jour les spectateurs à découvrir leurs talents dans des spectacles uniques, riches en émerveillement et en surprises!  - -Impressionnants : les requins vous accueillent avec le mystère qui les honore.- -Fascinants : les poissons tropicaux paradent de leurs multiples couleurs.-Tout pour vivre une aventure unique au coeur du monde marin!- -NOUVEAU EN 2009 : ANTARCTICA - -Un nouvel espace au coeur de la banquise vous plongera dans un univers fascinant, celui d'une colonie de manchots royaux et gorfous sauteurs. - -Bienvenue à L'AUDITORIUM!- -Un monde en images... - ... Un magnifique auditorium pouvant accueillir 300 spectateurs, assure la projection de films inédits sur le monde marin. Les visiteurs du parc ont accès libre à l'amphithéâtre situé derrière le bassin des orques. Une invitation au voyage dans le monde magique des cétacés. - -RENCONTRE ET CONTACT AVEC LES DAUPHINS- -L'expérience tant attendue est proposée toute l'année. La séance dure environ 1h. Il s'agit de découvrir la biologie et l'écologie des dauphins, puis d'approcher les dauphins pendant 20 minutes en compagnie des soigneurs sur une plage immergée. Attraction soumise à conditions : Etre détenteur d'un billet d'entrée à Marineland, mesurer min 1.20m. Tarif unique Adulte/Enfant : 69E par personne.- -RENCONTRE ET CONTACT AVEC LES OTARIES- -Découvrez les otaries également en compagnie de leur soigneur en descendant sur une plage immergée ! Attraction soumise à conditions : Etre détenteur d'un billet d'entrée à Marineland, mesurer min 1.20M. Tarif unique Adulte/Enfant : 35E.- -En journée LE SPECTACLE DES ORQUES- -Un spectacle unique du plus grand dauphin des océans.-Dans un bassin accueillant 5000 personnes et doté d'une vitre panoramique sous-marine de 64 mètres de long, c'est un rendez-vous d'émotions fortes, où le spectaculaire, lié à la puissance de ces mammifères de plusieurs tonnes, rivalise avec la douceur et la complicité qui unissent les orques aux soigneurs. - -Les comportements des animaux présentés au cours du spectacle reproduisent les comportements naturels de ces mastodontes : nage en vitesse pour poursuivre une proie, échouage volontaire sur une plage pour attraper un phoque, sauts en tous genres pour les jeux des plus jeunes, frottements langoureux pour les couples amoureux…-Le show met en scène une véritable ~tranche de vie~  des épaulards.- -Nombreux sont les spectateurs à avoir connu leur premier ~coup de foudre~ pour ces géants des mers à la sortie du spectacle.- -En journée LE SPECTACLE DES DAUPHINS- -La raison d'être de Marineland prend sa source dans l'un des plus beaux spectacles élaborés et inspirés par les dauphins. Le dauphin représente la passion originelle de l'Homme pour les mammifères marins. Pour satisfaire cette fascination bien méritée, la famille des Grands Dauphins de Marineland déploie toutes ses armes de séduction : vitesse, précision, agilité et confiance totale en ses soigneurs.- -La complicité entre l'Homme et l'animal est évidente, et semble donner des ailes à chaque partenaire. Comment ne pas être fasciné par  les bonds prodigieux exécutés par le soigneur propulsé par un dauphin, ou par un triple saut périlleux aérien de l'animal initié par un simple geste de l'homme. -",null,null,"marineland cote d'az;06;parc;antibes"]
[null,991,"Auberge des Mourgues","Hôtel/Restaurant","83-Var","Fayence","Auberge des Mourgues **- -L'Auberge des Mourgues :-Le charme d'une vieille bastide blottie entre le lac de Saint Cassien, le massif de l'Esterel et les villages de l'arrière pays Varois vous accueille pour un séjour en toute tranquillité.- -Cette ancienne bergerie provençale vieille de 400 ans est située au pied de CALLIAN, l'un des plus vieux villages du Var, à 10 minutes du Lac de Saint Cassien et 20 minutes de la mer.-Vous profiterez d'un cadre champêtre, calme et typique. -Chemins de randonnées pédestres ou à VTT.Tennis.Golf.Promenade à cheval. Pêche ou activités nautiques au Lac de Saint Cassien (5 Kms).Visite des villages environnants.Baignades et soleil sur les plages de Mandelieu, Cannes, Fréjus et Saint-Raphaël (15 Kms ).Vol à Voile au centre international de Fayence.Visite des Grottes de Saint Sézaire (15 Kms).Chine à la Foire de la Brocante de Fayence.Visite de la bambouseraie.  -Golf dans les plus prestigieux parcours de la région, autours de Cannes, Fréjus et Saint Raphaël.-Activités Culturelles et Artistiques.-Promenade en voiture sur la Route du Mimosas. - -Sur l'autoroute A8 prendre la sortie Les Adrets (Sortie 39). Longer le Lac de St Cassien en direction de Montauroux. Au carrefour de Montauraux prendre sur la gauche la D562 en direction de Fayence.-Prendre à droite au niveau du Marché Paysan en direction de Callian.-",null,null,"auberge des mourgues;83;hôtel-restaurant;fayence"]
[null,993,"Canyon Forest ","parc d'attraction","06-Alpes Maritimes","Villeneuve loubet","PARCOURS AVENTURE- -Jours d' ouverture :- -Pour les individuels :-Le parc est ouvert jusqu'au 13 novembre 2011 les mercredi, week-end, jours fériés et tous les jours des vacances scolaires de la zone B.- -Pour les groupes de plus de 20 personnes : nous contacter- -Horaires d'ouverture :- -Variable de 9h à 18h/20h selon les périodes de l'année. Pour plus de précisions n'hésitez pas à nous contacter !- -RESERVATION OBLIGATOIRE:- -Par téléphone au 04 92 02 88 88 ou 06 71 56 01 34 - -LE CANYONING- -Activité :-De surprenants chemins d'eau, formés par l'écoulement des rivières, ruisseaux, torrents qui dessinent la montagne, créant des gorges encaissées, ponctuées de cascades, vasques, gours, et autres formes surprenantes. Le paysage est tantôt minéral, aquatique ou luxuriant.-Cascades, bassins, toboggans naturels : C’est un des plus fantastique et ludique enchaînement d’obstacles naturels à franchir à l’aide de descente sur corde, sauts et glissades.- -4 niveaux-Chaque activité peut se pratiquer selon son âge, ses compétences et son envie, de la découverte familiale en demi-journée à la course engagée sur plusieurs jours.-Nous n’acceptons pas les enfants pesant moins de 30Kg.-Niveau 1 : Tous les obstacle du canyoning sans utiliser la corde ; à la journée ou ½ journée.Niveau 2 : Pour débutants en canyoning ne craignant pas de négocier des rappels sur corde jusqu’à 25m ; journée ou ½ journée.Niveau 3 : Parcours plus long et plus technique, saut de 5m à 10m, rappel de plus de 30m.Niveau 4 : Descente engagée de une ou deux journée nécessitant une bonne pratique de l'activité. -Quand ?-Le canyoning se pratique généralement d’avril à octobre.- -Encadrement :-Toutes les prestations comprennent l'encadrement par un professionnel diplômé d'état possédant une assurance en responsabilité civile, ainsi que le matériel spécifique à chaque activité.- -Equipement :-Matériel individuel fourni: combinaison 5mm et chaussettes Néoprène, casque, baudrier, longes, descendeur, sac et bidon étanche.-Matériel à apporter: chaussures de sport montantes, maillot de bain, chaussures de rechange, eau, prévoir aussi son pique-nique pour les sorties à la journée.- -Lieu :-Dans les plus beaux canyons des Alpes-Maritimes et de la Riviera italienne.- -",null,null,"canyon forest ;06;parc;villeneuve"]
[null,995,"Grottes de Saint Cézaire ","parc d'attraction","06-Alpes Maritimes","Saint cezaire sur siagne "," -Il y a 6 millions d'années naissent les grottes de Saint Cézaire, royaume inégalé de l'imaginaire et du merveilleux.- -Découverte grâce au coup de pioche providentiel d'un agriculteur en 1890, elles allient une richesse exceptionnelle en concrétions à des formes fantastique d'une étrange beauté.- -- L'ensemble du parcours est idéalement aménagé: l'accès aux galeries s'effectue à l'intérieur du bâtiment des grottes. Ensuite, guidé de salle en salle, le visiteur découvrira les paysages souterrains spectaculaires d'un univers grandiose, savamment mis en valeur par un éclairage approprié et discret.-- Dans ces profondeurs, l'extraordinaire coloration rose et pourpre des colonnes contribue à la magie des lieux, la où le surnaturel s'allie à la nature pour laisser libre cours à l'imagination: oiseau à l'emennage majestueux, étoiles, coraux, méduses, surprenante tête de mort, sans oublier ~Jules~, étonnant squelette de calcaire.-- Les eaux tumultueuses et les siècles ont apporté la touche finale. Les accords d'un clavier magique d'orgues rouges étreingnent le visiteur d'une émotion profonde.- -Elles se situent dans le département des Alpes-Maritimes (06) à 15 Km à l'ouest de Grasse, sur la commune de Saint-Cézaire sur Siagne.- -Les Grottes de Saint-Cézaire ont été découvertes au hasard d'un coup de pioche en défrichant un champ. La tradition régionale agricole consistait à semer du blé entre des murets de pierres à la base desquels on disposait des pieds de vigne. Ces petits édifices étaient construit pour éviter l'érosion trop importante due aux eaux de pluie ruisselantes.(Continuer la lecture...)- -Les grottes sont accessibles à toutes les personnes valides.-Les animaux y sont interdits, mais peuvent bénéficier des espaces verts à proximité du pavillon des Grottes.-Prenez soin d'emporter un lainage ou un blouson pour la visite et d'éviter les escarpins (préférez les baskets, tennis…).-",null,null,"grottes de saint céz;06;parc;saint"]
[null,997,"La Ferme Pédagogique ","parc d'attraction","06-Alpes Maritimes","Vence","Ferme agréée pédagogique - ouvert toute l'année- -Venez visitez les animaux à la ferme dans un cadre lunaire et une vue panoramique exceptionnelle.-Vaches, chevaux, moutons, paons, poneys, daims, cochons, basse-cour etc... - -Gîtes : prix chambre 70 Euro avec petit déjeuner.-Repas à la ferme entre 15 et 20 Euro- -Equitation - Randonnée à cheval - tourisme équestre - -Location et organisation : Anniversaire - mariage-Monte Américaine- -Activités - -Promenade à poney - -Saloon barbecue -Gîte d'étape et pension cheval --Les animaux de la ferme -Ramassage des oeufs -Approche de l'abeille ( extraction du miel ) -Traite des vaches (fabrication fromages ) -Découverte observation , contact. -  -",null,null,"la ferme pédagogique;06;parc;vence"]
[null,998,"Labyrinthe ","parc d'attraction","06-Alpes Maritimes","Villeneuve loubet","LABYFOLIES-2559 route de Grasse-06270 Villeneuve-Loubet- -Labyrinthe de plantes grimpantes ombragé.- -Défiez les pièges qui se dresseront sur votre chemin !-Vous ferez des jeux de difficultés différentes pour découvrir les mots de passe qui vous ouvriront les portes du Labyrinthe. Partez chaque année sur les traces des grands aventuriers !- -Saison 2011 : LES SAMOURAÏS ! L'aventure dont vous êtes le héros...-Dans le Japon des samouraïs le Sabre Impérial, symbole du pouvoir, a été volé. il fait partie des trois trésors sacrés sans lesquels le couronnement de l'empereur ne peut avoir lieu... le futur empereur vous demande de mener l'enquête. Relevez le défi !- -Nouveau ! Le village des Fous : LabyFolies vous fait perdre la tête. Entrez dans cet univers foisonnant d'activités farfelues !- -",null,null,"labyrinthe ;06;parc;villeneuve"]
[null,999,"ATHENA MOTEL **","Hôtel","83-Var","Frejus","-A Saint-Aygulf, petit village provençal, le Motel Athéna situé à 100 mètres de la plage vous accueille dans un grand jardin parmi les pins et les chênes lièges, bercé par le chant des cigales.--Athena Motel-69 impasse Corot-83370 FREJUS--",null,null,"athena motel **;83;hôtel;frejus"]
[null,1000,"AUBERGE DES ADRETS ****","Hôtel/Restaurant","83-Var","Frejus"," -L'Auberge- -Au Coeur du Massif de l'Estérel, dans ce lieu de Légende qui abrita jadis les amours du fameux Brigand Gaspard de Besse et Dame Rose, l'Auberge des Adrets, ancien Relais de poste du XVIIéme siècle, offre une étape de Charme, Luxueuse, Gourmande et Romantique.- -Chargée d'histoire et restaurée par ses propriétaires, Madame et Monsieur Sialino de Megvinet, cette élégante maison bourgeoise et romantique reçoit ses hôtes, dans un cadre privilégié et unique.- -Les convives peuvent à la fois bénéficier de la tranquilité dans un parc arboré aux senteurs de la Provence et du littoral situé à 15 minutes de l'Auberge.-L'Hôtel--Cette demeure possède 10 chambres de charme à la décoration élégante et raffinée. Grand lits à baldaquins, baignoires d'angle dans la pierre ou à colonnades, plafonds à la française, tissus de chez Pierre Frey, patines beiges ou gris perle, sol en pierre de Bourgogne ...-Toutes les chambres sont équipées de climatisation, téléphone, télévision satellite, wifi, mini bar, coffre. - -Le restaurant- -Le Chef surprend ses hôtes par sa cuisine fraîche et colorée du sud pour Gourmets et Gourmands et  d'un tour de broche, dans les grandes cheminées, les régale d'un agneau de lait, d'une côte de boeuf et de ses beignets de cèpes.- -L'été sur la superbe terrasse panoramique, vous admirez le coucher du soleil sur les collines de l'Estérel.- -Au printemps ou à l'Automne, dans la salle à manger, taftas, bougies et cheminées assurent une soirée gourmande et romantique.-AUBERGE DES ADRETS-Lieu dit Auberge des Adrets-RN7-83600 FREJUS-",null,null,"auberge des adrets *;83;hôtel-restaurant;frejus"]

{"sheet":"Extraction","index":1,"n_rows":6,"n_cols":7,"rows_kept":6,"cut":false,"hidden":false,"merged":[[1,1,1,6],[3,2,3,5]]}
[]
[null,"Tapez les mots clés de la recherche pour extraire les idées de sorties avec Photos."]
[]
[]
[]
[null,"Nom","Activité","Dép.","Ville","Description","Miniature"]